{"text_format":"1","workbook":"xlsx","n_sheets":23,"sheets":["C Data","PS data","Proxy List","SVT Calculator","Social Value Proxies","Pricing Table","Fees","Lots","Main Contractor","Consultant 1","Consultant 2","Consultant 3","Consultant 4","Consultant 5","Consultant 6","Consultant 7","C8 - C9 (1)","C8 - C9 (2)","C11","C5 Day Rates","C10 Day Rates","Pricing Schedules","Social Value Summary"],"not_rendered":{"charts":0,"images":1,"macros":0,"external_links":0,"defined_names":65,"comments":1,"pivot_tables":0},"unopened":[],"bounds":{"document_bytes":16777216,"sheet_cells":100000,"rows_first":2000,"rows_last":500,"rows_between":2000,"halvings":0,"cell_chars":16384,"cell_head_chars":4096},"cells_cut":0,"cells_raw":0,"read":"whole","date_system":"1900"}

{"sheet":"C Data","index":0,"n_rows":35,"n_cols":27,"rows_kept":35,"cut":false,"hidden":true,"merged":[]}
["Action","Full time, 6 month roles","Work placement weeks","Specialist advice hours for Careers IAG","Specialist advice hours for VCSE or SME","Hours for Digital Inclusion","£s towards Digital equipment","£s towards community projects","Hours volunteered for community project","£s for poverty initiatives","Hours to promote healthy living","Hours for Homelessness projects ","Carbon Literacy training provided","Total staff","Procontract staff","If - SME","Lot 1","Lot 2","Lot 3","Lot 4","Lot 5","H1 West West","H2 East","P1 West West","P2 East","A1 West","A2 East"]
["A Connolly",1,2,40,10,40,1,1,10,1,10,10,4,null,null,null,"x","x","","","","","","","","",""]
["Bridgestone",2,4,2,2,1,5,5,0,5,0,4,2,null,null,null,"x","x","","","","x","","","","x",""]
["Caddick",0,2,2.5,2.25,2.25,1.5,2.25,2.25,2.5,2.25,2.25,19,null,null,null,"","","","","","x","x","","","x","x"]
["Carroll",2,0,0,20,24,36,30,0,70,16,26,30,null,null,null,"x","x","","","","","","","","",""]
["Casey",1.75,8,6,5,4,2,5,10,2,0,0,0,null,null,null,"","","","","","","","x","x","",""]
["Countryside",2,20,20,10,20,10,10,30,10,20,20,0,null,null,null,"","","","","","x","x","","","",""]
["Eric Wright",1,1,2.5,0.4,0,2,2,0.5,2,0.5,0.5,0,null,null,null,"","","","","","","","","","x",""]
["Esh",2,3,15,4,5,20,20,12,10,0,0,0,null,null,null,"","","x","x","x","","x","","","",""]
["GK Construction",2,10,16,16,0,1,10,16,10,20,16,10,null,null,null,"","x","","","","x","","","","x",""]
["Hargreaves",0.5,2,4,5,2,1,3,1,1,1,1,1,null,null,null,"x","x","","","","x","","","","x",""]
["Highall",1,1,5,0,0,0,5,5,20,5,5,0,null,null,null,"x","x","","","","","","","","",""]
["J Greenwood",2,2,40,12,5,1,2,10,2,10,10,5,null,null,null,"x","","","","","x","","","","",""]
["John Southworth",1,16,30,8,4,4,8,8,8,4,4,2,null,null,null,"x","x","","","","","","","","",""]
["Keepmoat",1,4,10,5,0,0,10,20,1.5,20,0,0,null,null,null,"","","","","","x","x","","","",""]
["Legacie",2,10,20,30,6,5,5,25,5,15,15,0,null,null,null,"x","","","","","x","","","","x",""]
["Lovell",0,4,12,24,0,40,25,16,40,0,5,0,null,null,null,"","","","","","x","x","","","",""]
["M&Y Maintenance",2,6,50,12,15,10,30,25,10,15,20,0,null,null,null,"x","x","","","","x","","","","",""]
["Manchester and Cheshire",1.5,0,0,0,0,0,0,0,0,0,0,0,null,null,null,"x","","","","","","","","","",""]
["Mansell",1,6,12,12,10,10,20,10,10,45,45,5,null,null,null,"x","","","","","","","","","",""]
["McCaul",2,0.5,2,0,0,0,2.5,5,2.5,0,4,3,null,null,null,"","x","x","x","x","","","","","",""]
["Morris & Spottiswood",0,2,10,10,0,0,5,20,5,0,0,0,null,null,null,"","x","x","x","x","","","","","",""]
["Casey",1.75,8,6,5,4,2,5,10,2,0,0,0,null,null,null,"x","x","","x","","x","x","","","",""]
["PP O'Connor",1,3,15,20,15,10,40,25,10,15,15,3,null,null,null,"","","","","","x","","","","",""]
["PJM",2,1,3,0,0,10,5,4,5,0,4,1,null,null,null,"","x","","","","","","","","",""]
["PLP",2,15,16,3,0,5,10,8,5,8,8,30,null,null,null,"x","x","","x","","x","x","x","x","",""]
["RP Tyson",0.5,2,2,0,0,5,5,0,5,0,0,0,null,null,null,"x","x","","","","x","","","","",""]
["Rowlinson",1.25,1.5,4,10,4,5,10,3,10,8,4,1,null,null,null,"x","x","","x","","x","","x","","x",""]
["Seddon",2,2,8,24,24,40,50,16,40,16,16,10,null,null,null,"x","x","","x","x","x","x","x","x","",""]
["Termrim",2,0,8,8,0,10,10,8,10,0,0,2,null,null,null,"x","x","","x","x","x","x","","","x","x"]
["United Living",1.02,5.2,4.0999999999999996,4,2.5,4.0999999999999996,4.0999999999999996,2.5,4.0999999999999996,2.5,2.4,5.7,null,null,null,"","","","","","","","","","x","x"]
["Watson",1,3,30,2,0,0,5,0,5,0,0,0,null,null,null,"x","x","","","","x","","","","",""]
["Whitfield & Brown",1,2,30,2,0,0,0,0,2,0,0,0,null,null,null,"x","x","","","","x","","","","",""]
["Wiggett",0,30,15,12,12,10,10,0,10,12,12,5,null,null,null,"x","","","","","","","","","",""]
["Winworth",1,10,20,20,20,15,15,0,15,0,0,35,null,null,null,"","x","","","","x","","","","",""]

{"sheet":"PS data","index":1,"n_rows":71,"n_cols":39,"rows_kept":71,"cut":false,"hidden":true,"merged":[]}
["Professional Services - All Data",null,null,null,null,null,null,null,null,null,null,null,null,"C1a - Employers Agent, Cost Consultancy and related Services",null,"C1b -Combined Employers Agent and Principal Designer",null,"C2 - Engineering Consultancy",null,"C3 -Building Surveying",null,"C4a -Architectural Services",null,"C4b - Combined Architectural Services and Principal Designer",null,"C5 - Clerk of Works",null,"C6 - Purchasers Agent",null,"C7 - Principal Designer and H&S Advisor",null,"C8 - Planning Consultancy",null,"C9 - Site Investigation",null,"C10 - M&E Engineer",null,"C11 - Retrofit Consultant"]
["Action","Work placement weeks","Specialist advice hours for Careers IAG","Specialist advice hours for VCSE or SME","Hours for Digital Inclusion","£s towards Digital equipment","£s towards community projects","Hours volunteered for community project","£s for poverty initiatives","Hours to promote healthy living","Hours for Homelessness projects ","Carbon Literacy training provided","SME","West","East","West","East","West","East","West","East","West","East","West","East","West","East","West","East","West","East","West","East","West","East","West","East","West","East"]
["AA Projects",1,2,0,0,0,6,7,12,3,4,0,"Yes","x","x","x","x","","","","","","","","","","","","","","","","","","","","","",""]
["Adept",2,2,0,0,0,0,15,1,0,15,1,"Yes","","","","","x","x","","","","","","","","","","","","","","","","","","","",""]
["AECOM",0.4,10,0,0,0,2,56,0,0,0,0,"No","x","x","","","","","","","","","","","","","","","","","","","","","","","",""]
["AEW",3,5.34,2,3,3,0,0,0,0,0,0,"Yes","","","","","","","","","x","x","x","x","","","","","","","","","","","","","",""]
["AJP",1,7.5,2,0,1,2,5,3,0,0,1,"Yes","","","","","x","x","","","","","","","","","","","","","","","","","","","",""]
["Amrin",0,14,0,0,0,0,0,0,0,0,0,"Yes","","","","","","","","","","","","","x","x","","","","","","","","","","","",""]
["Anderton Gables",0,8,0,0,0,0.5,8,0,0,8,1,"Yes","x","x","x","x","","","x","x","","","","","","","x","x","","","","","","","","","",""]
["Arcus",0,0,0,0,1,3.5,1,1,0,0,1,"Yes","","","x","x","","","","","","","","","","","","","","x","","","","","","","x","x"]
["Bailey Wilson",2,0,0,0,2.5,2.5,4.5,3,5,5,1,"Yes","","","","","","","x","x","","","","","","","","","","","","","","","","","",""]
["BTP",2,6,2,0,0,0,6,0,2,6,1,"Yes","","","","","","","","","x","x","x","x","","","","","x","x","","","","","","","x","x"]
["Bowker Sadler",0.1,3,0,0,2,3,1.5,2,1,1.5,0.5,"Yes","","","","","","","","","x","x","x","x","","","","","","","","","","","","","",""]
["Brownfield Solutions",2,8,2,2,2,4,2,4,0,2,1,"Yes","","","","","","","","","","","","","","","","","","","","","x","x","","","",""]
["Buttress",0.5,5,5,0,0,0,0,0,0,0,2,"Yes","","","","","","","","","","","x","x","","","","","","","","","","","","","",""]
["BWB",0,10,0,0,0,0,0,0,0,5,0,"No","","","","","","","","","","","","","","","","","","","","","","","x","x","",""]
["Campbell Reith Hill",0.6,3,0,0,0,3,3,3,0,1,1,"Yes","","","","","","","","","","","","","","","","","","","","","x","x","","","",""]
["Cassidy & Ashton",2.1,0,0,0,0,3,0,3,0,0,0,"Yes","","","","","","","","","","","","","","","","","","","x","","","","","","",""]
["Clancy",1,6,0,0,0,0,18,0,0,0,2,"Yes","","","","","","","","","","","","","","","","","","","","","x","x","x","","",""]
["CoW Yorkshire",0,2,2,2,2,2,3,2,2,0,2,"Yes","","","","","","","","","","","","","x","x","","","","","","","","","","","",""]
["Concept",0,3,3,0,0,0,0,1,2,2,1,"Yes","","","","","","","","","","","","","","","","","","","","","x","x","","","",""]
["CPC",1,8,1,0,2,2,0,2,1,1,0,"Yes","x","x","x","x","","","","","","","","","","","x","x","x","x","","","","","","","",""]
["Curtins",0.5,2,2,0,0,2,5,0,0,5,0,"No","","","","","","","","","","","","","","","","","","","","","x","x","","","",""]
["Davies M&E",0.5,1,1,0,0,0,2,0,0,2,0.5,"Yes","","","","","","","","","","","","","","","","","","","","","","","x","x","",""]
["DK Architects",0.5,7,5,0,0.5,0.95,2,0.95,0,1,0.25,"Yes","","","","","","","","","x","x","","","","","","","","","","","","","","","",""]
["DPP One",4,1,0,0,0,1,1,1,2,2,2,"Yes","","","","","","","","","","","","","","","","","","","","x","","","","","",""]
["Drome",2,3.6,1,1.5,1,1,1.5,1,2,2,1.5,"Yes","","","","","","","","","x","x","","","","","","","","","","","","","","","",""]
["Frank Shaw",0,4,4,1,1,1,4,1,4,4,1,"Yes","","","","","","","","","","","x","x","","","","","","","","","","","","","",""]
["Gateley Vinden ",1,5,0,0,0,0,11,0,0,0,1,"No","x","x","x","x","","","","","","","","","x","x","","","","","","","","","","","",""]
["Halsall Lloyd",0.2,14,1.5,0,0,0,2,0,0,0,0,"Yes","","","","","","","","","","","x","x","","","","","","","","","","","","","",""]
["HBL",1,1,1,1,2,4,2,2,1,2,4,"Yes","","","","","x","x","","","","","","","","","","","","","","","","","","","",""]
["Hickton",1,1,1,0,0,1,1,0,1,1,0.25,"Yes","","","","","","","","","","","","","x","x","","","","","","","","","","","",""]
["Hive",1,3,0,0,2,2,5,2,0,6,1,"Yes","","","","","","","","","","","","","","","","","","","x","x","","","","","",""]
["Identity Consult",0.5,8,4,0,0,1,0,2,0,4,0,"Yes","x","x","x","x","","","","","","","","","","","x","x","","","","","","","","","",""]
["Jennings Design",1,10,0,0,0,0,15,0,0,15,0,"Yes","","","","","","","","","","","","","","","","","","","","","","","","","x","x"]
["JMA",3,3,2,0,1,2,0,2,0,6,0,"Yes","","","","","","","","","x","x","","","","","","","","","","","","","","","",""]
["Kinetic",1,7,4,0,1,1,8,1,0,0,0,"Yes","","","","","","","","","","","","","","","","","","","","","","","","x","",""]
["The LK Group",2,8,0,0,0,20,336,10,15,30,15,"Yes","","","","","","","","","","","","","","","","","","","","","x","x","","","",""]
["MAC",0,2,0,0,0,1,0,2,0,0,0,"Yes","","","","","","","x","x","","","","","","","","","","","","","","","","","",""]
["Markhams",2,2,2,0,1.2,2.4,7,2.5,2,1,0.4,"Yes","x","x","x","x","","","","","","","","","x","x","x","x","","","","","","","","","",""]
["Michael Dyson",0,8,0,0,0,1,0,0,0,4,0,"Yes","x","x","","","","","","","","","","","","","","","","","","","","","","","",""]
["MHA",0.1,7,0,0,0,5,0,5,0,0,0,"Yes","","","","","","","","","","","","","","","","","","","","","","","","","x","x"]
["MPSL",1,1,0,0,0,0.5,2,1,1,1,0.5,"Yes","","","","","","","","","x","x","","","","","","","","","","","","","","","",""]
["NEO Projects",0,3,0,0,0,1,5,0,2,2,0,"Yes","x","x","x","x","","","","","","","","","","","","","","","","","","","","","",""]
["P+HS",1,1,3.5,3.5,1,1,3.5,1,3.5,3.5,1,"Yes","","","","","","","","","x","x","x","x","","","","","","","","","","","","","",""]
["PJP",3,3.5,1,2,0.5,0.5,6,0.5,2,2.5,1,"Yes","","","","","","","","","x","x","x","x","","","","","x","","","","","","","","",""]
["PARCOR",4,1,1,0,1,1,1,2,2,2,1,"Yes","","","","","","","x","x","","","","","","","","","","","","","","","","","x","x"]
["Pettit Singleton",1,1,1,0,4.33,4.33,0,4.33,0,0,0,"Yes","","","","","","","","","","","","","","","","","","","","","","","x","x","",""]
["Poole Dick",0.34,3.43,8.23,0.1,0.1,0.1,3.43,0.28999999999999998,2.91,1.1399999999999999,1.46,"Yes","x","x","x","x","","","","","","","","","","","x","x","x","x","","","","","","","x","x"]
["Rex Proctor",1,4,4,0,0,2,10,0,0,1,1,"Yes","x","x","x","x","","","","x","","","","","","","","","x","x","","","","","","","",""]
["Ridge",0.2,7.5,2,0,0,0.15,7.5,0,0,0,2,"No","","","","","x","x","","","","","","","","","","","","","","","x","x","","","",""]
["RJD",0,3,0,0,0,1,5,0,2,2,0,"Yes","","","","","","","","","","","","","","","","","x","x","","","","","","","",""]
["Rodgers Leask",0,5,0,0,0,0,0,0,0,0,0,"Yes","","","","","x","x","","","","","","","","","","","","","","","","","","","",""]
["S I Sealy",0.2,0.5,0.1,0.1,0.1,0.1,0.1,0.1,0.1,0.1,0.4,"Yes","","","","","","","","","","","","","","","","","","","","","","","","x","",""]
["Savills",1,15,0,0,0,3,0,0,0,0,0,"No","","","x","x","","","","","","","","","","","","","","","x","x","","","","","",""]
["SCP",0,0,0,0,0,4,7,0,0,0,0,"Yes","","","","","x","x","","","","","","","","","","","","","","","","","","","",""]
["SDA",0,0,12,0,0,1,8,0,0,0,1,"Yes","","","","","","","x","","","","","","x","","","","","","","","","","","","",""]
["Shape",2,4,2,4,1,1,3,1,4,5,1,"Yes","","","","","x","x","","","","","","","","","","","","","","","","","","","",""]
["SFP",1,4,2,0,0,4,0,0,0,0,1,"Yes","x","x","x","x","","","","","","","","","","","x","x","","","","","","","","","",""]
["Stantec UK",0.5,8,8,0,0,0,0,0,0,0,0,"No","","","","","","","","","","","","","","","","","","","x","x","","","","","",""]
["Steven A Hunt",4,5,0,0,0,1,10,0,0,4,1,"Yes","","","","","","","","","","","","","","","","","","","","","","","x","","",""]
["Summers Inman",1,6,4,0,0,0,4,0,0,4,0,"Yes","x","x","x","x","","","x","x","","","","","","","","","","","","","","","","","",""]
["Sutcliffe",2,5,2,1,0,1,4,0,5,2,1,"Yes","","","","","x","x","","","","","","","","","","","x","x","","","x","x","","","",""]
["TADW",0.5,3.5,0,0,1,1,0,1,0,0,0.5,"Yes","","","","","","","","","","","x","x","","","","","","","","","","","","","",""]
["Triangle",3,2,2,0,0,2,3,2,0,3,0,"Yes","","","","","","","","","x","x","","","","","","","","","","","","","","","",""]
["Turner and Townsend",0,15,0,0,0,0,0,0,0,0,0,"No","","","","","","","","","","","","","","","x","x","","","","","","","","","",""]
["Waldeck",0,0,0,0,0,1,0,0,0,0,0,"Yes","","","","","","","","","","","","","x","x","","","","","","","","","","","",""]
["Watson Batty",2,5,0,0,0,1,0,0,0,0,2,"Yes","","","","","","","","","","","x","x","","","","","","","","","","","","","",""]
["Watts Group",1,3,1,1,1,2,3,1,1,1,1,"Yes","","","","","","","","","","","","","","","","","","","","","","","x","x","",""]
["Whiteley Eaves",3,3,0,0,2,2,3,3,1.5,1.5,0,"Yes","x","x","x","x","","","x","x","","","","","","","x","x","","","","","","","","","",""]
["WCP",1,2,0,0,0,1,3,1,1,3,1,"Yes","x","x","x","x","","","x","x","","","","","x","x","","","x","x","","","","","","","",""]

{"sheet":"Proxy List","index":2,"n_rows":33,"n_cols":5,"rows_kept":33,"cut":false,"hidden":true,"merged":[]}
["Action","Value","Methodology "]
["Full time, 6 month roles",14379,"Real Living Wage * 40 hours * six months"]
["New jobs targeted for disadvantaged customers",{"$f":"14328/2","v":7164},"National TOMS - Average of NT3:6A / 2 "]
["Work placement weeks",148.94999999999999,"National TOMS"]
["% Spend with local suppliers",0.27,"Local multiplier for North West - 27p per pound * £400k (assumed 40% spent on supply)",null,"Cap £100k "]
["% Spend with VCSE",0.12,"12p per pound * £400k (assumed 40% spent on supply)",null,"Cap £100k "]
["% Waste diverted from landfill.",88.95,"Tonnes waste diverted against relevant benchmark (e.g. REEB) REF: RE45","Wrap data - 111 tonnes per £1m for residential new builds * £94.15 per tonne landfill tax","Wrap report - assessing the costs and benefits of reducing waste in construction"]
["Specialist advice hours for VCSE or SME",85.57,"National TOMS"]
["Specialist advice hours for Careers IAG",{"$f":"100.33","v":100.33},"National TOMS"]
["Carbon Literacy training provided",246.39080311838504,"National TOMS - Valued as NT10B - apprenticeship weeks to move towards low carbon economy"]
["£100s for poverty initiatives",100,"Equivalent value"]
["£100's towards Digital equipment",100,"Equivalent value"]
["£100s towards community projects",100,"Equivalent value"]
["Hours volunteered for community project",14.8,"National TOMS"]
["Hours for Homelessness projects ",14.8,"National TOMS"]
["Hours for Digital Inclusion",14.8,"National TOMS"]
["Hours to promote healthy living",14.8,"National TOMS"]
[]
[]
[]
["Action","Value","National TOMs Measures and reference number - minimum requirements","Definition used for Great Places"]
["New jobs in the local economy",14827.5,"No. of full time equivalent direct local employees (FTE) hired or retained for the duration of the contract. REF: NT1","Each full-time job lasting six months that will be newly created as a result of spend. Suppliers will be expected to engage with Great Places to identify suitable candidates."]
["Work experience placement ",194.5,"No. of weeks spent on meaningful work placements or pre-employment course; 1-6 weeks student placements (unpaid). REF: NT12","Each week (5 working days) of work experience provided to schools, colleges or job seekers"]
["Careers information, advice and guidance sessions",105.58,"No. of hours dedicated to supporting unemployed people into work by providing career mentoring, including mock interviews, CV advice, and careers guidance. REF: NT11","Each hour committed to schools, colleges or job seekers to help improve employability, e.g. careers mentoring, interview preparation, CV building etc."]
["In-kind advice for business planning  / finance / legal / HR / marketing etc. to SME or VCSE",101,"Provision of expert business advice to VCSEs and SMEs (e.g. financial advice / legal advice / HR advice/HSE). REF: NT15","Each hour committed to support SME or VCSE to further develop business skills"]
["Volunteer to support Digital Inclusion",16.93,"No hours volunteering time provided to support local community projects. REF: NT29","Each hour volunteered to support digital inclusion, e.g. running IT workshops, education or training around digital inclusion etc."]
["Contribution towards the purchase or implementation of IT or digital equipment",100,"Equipment or resources donated to VCSEs (£ equivalent value). REF: NT16","Every £100 contributed towards a digital inclusion initiative, e.g. purchase of software or equipment, sponsorship of courses etc. "]
["Contribution to support a community project",100,"Donations or in-kind contributions to local community projects (£ & materials). REF: NT28","Every £100 contributed towards a community project"]
["In-kind labour/service for community project",16.93,"No hours volunteering time provided to support local community projects. REF: NT29","Each hour committed to volunteer staff time to a community project"]
["Contribution to food, fuel or furniture poverty initiatives",100,"Donations or in-kind contributions to local community projects (£ & materials). REF: NT28","Every £100 contributed towards a poverty (or similar) initiative. "]
["Volunteer initiatives to promote healthy living",16.93,"No hours volunteering time provided to support local community projects. REF: NT29","Each hour volunteered to promote or support Voluntary, Community, Social Enterprise or local community with: exercise, nutrition, wellbeing, drug/alcohol, debt relief, confidence, loneliness, mental health"]
["Volunteer to support Homelessness projects ",16.93,"No hours volunteering time provided to support local community projects. REF: NT29","Each hour volunteered to promote or support Voluntary, Community, Social Enterprise or local community with homeless projects, e.g. soup kitchens, clothing or food campaigns etc."]
["Carbon Literacy training provided to employees OR subcontractor staff",286.22000000000003,"Requirements or support (for micro or small enterprises) for suppliers to demonstrate climate change and carbon reduction training for all staff - e.g. SDGs Academy courses, Supply Chain Sustainability School bronze or higher or equivalent. REF: NT49","Each employee from your organisation or subcontractor employee to receive 1 full day carbon literacy training"]

{"sheet":"SVT Calculator","index":3,"n_rows":35,"n_cols":16,"rows_kept":35,"cut":false,"hidden":false,"merged":[[9,10,9,11],[0,3,0,10],[9,3,9,9],[7,14,7,15]]}
[null,"Social Value Target Calculator",null,"THIS DOCUMENT MUST NOT BE SHARED WITH ANYONE OTHER THAN ICN CLIENT. ICN CLIENTS MAY COPY AND PASTE THE CONTRACTOR OR CONSULTANT TABS TO SHARE WITH THAT SUPPLIER ONLY"]
[null,null,null,null,"Instructions"]
[null,"Name of project",null,null,"1. Input data into the yellow boxes only"]
[null,"Estimate project value (£)",null,null,"2. Do not alter or delete data from any other cells other than those in the yellow boxes"]
[null,"Estimate total number of units",null,null,"3. If there is no stage for your selected lot, choose n/a"]
[null,"Of which, how many units are apartments",null,null,"4. For further guidance on how to use the tool, please contact  ICN@greatplaces.org.uk"]
[null,"Band",{"$f":"IF(C5<35,\"1\",\"2\")","v":"1"}]
[null,"Apartment Band",{"$f":"IF(C6>0,\"3\",C7)","v":"1"},null,null,null,null,null,null,null,null,null,null,null,"No. of Days"]
[]
[null,null,"Main Contractor","Consultants",null,null,null,null,null,null,"C8 or C9 Only",null,"C11","C5 Apartments","C5 Day Rates","C10 Day Rates"]
[null,"Lot"]
[null,"Stage - If no stage, standard service"]
[null,"Provider"]
[null,"Fee % /Day Rate",null,{"$f":"SUMIFS(Fees!$E:$E,Fees!$A:$A,D11,Fees!$C:$C,'SVT Calculator'!$C$7,Fees!$B:$B,'SVT Calculator'!D13,Fees!$D:$D,'SVT Calculator'!D12)","v":0},{"$f":"SUMIFS(Fees!$E:$E,Fees!$A:$A,E11,Fees!$C:$C,'SVT Calculator'!$C$7,Fees!$B:$B,'SVT Calculator'!E13,Fees!$D:$D,'SVT Calculator'!E12)","v":0},{"$f":"SUMIFS(Fees!$E:$E,Fees!$A:$A,F11,Fees!$C:$C,'SVT Calculator'!$C$7,Fees!$B:$B,'SVT Calculator'!F13,Fees!$D:$D,'SVT Calculator'!F12)","v":0},{"$f":"SUMIFS(Fees!$E:$E,Fees!$A:$A,G11,Fees!$C:$C,'SVT Calculator'!$C$7,Fees!$B:$B,'SVT Calculator'!G13,Fees!$D:$D,'SVT Calculator'!G12)","v":0},{"$f":"SUMIFS(Fees!$E:$E,Fees!$A:$A,H11,Fees!$C:$C,'SVT Calculator'!$C$7,Fees!$B:$B,'SVT Calculator'!H13,Fees!$D:$D,'SVT Calculator'!H12)","v":0},{"$f":"SUMIFS(Fees!$E:$E,Fees!$A:$A,I11,Fees!$C:$C,'SVT Calculator'!$C$7,Fees!$B:$B,'SVT Calculator'!I13,Fees!$D:$D,'SVT Calculator'!I12)","v":0},{"$f":"SUMIFS(Fees!$E:$E,Fees!$A:$A,J11,Fees!$C:$C,'SVT Calculator'!$C$7,Fees!$B:$B,'SVT Calculator'!J13,Fees!$D:$D,'SVT Calculator'!J12)","v":0},null,null,{"$f":"SUMIFS(Fees!$N:$N,Fees!$J:$J,M11,Fees!$L:$L,'SVT Calculator'!$C$7,Fees!$K:$K,'SVT Calculator'!M13,Fees!$M:$M,'SVT Calculator'!M12)","v":0},{"$f":"SUMIFS(Fees!$E:$E,Fees!$A:$A,N11,Fees!$C:$C,'SVT Calculator'!$C$8,Fees!$B:$B,'SVT Calculator'!N13,Fees!$D:$D,'SVT Calculator'!N12)","v":0},{"$f":"SUMIFS(Fees!$U:$U,Fees!$Q:$Q,O11,Fees!$S:$S,'SVT Calculator'!$C$7,Fees!$R:$R,'SVT Calculator'!O13,Fees!$T:$T,'SVT Calculator'!O12)","v":0},{"$f":"SUMIFS(Fees!$U:$U,Fees!$Q:$Q,P11,Fees!$S:$S,'SVT Calculator'!$C$7,Fees!$R:$R,'SVT Calculator'!P13,Fees!$T:$T,'SVT Calculator'!P12)","v":0}]
[null,"Value",{"$f":"C4","v":0},{"$f":"IF((D$14*$C$4)<(SUMIFS(Fees!$F:$F,Fees!$A:$A,D11,Fees!$C:$C,'SVT Calculator'!$C$7,Fees!$B:$B,'SVT Calculator'!D13,Fees!$D:$D,'SVT Calculator'!D12)),(SUMIFS(Fees!$F:$F,Fees!$A:$A,D11,Fees!$C:$C,'SVT Calculator'!$C$7,Fees!$B:$B,'SVT Calculator'!D13,Fees!$D:$D,'SVT Calculator'!D12)),IF((D$14*$C$4)>(SUMIFS(Fees!$G:$G,Fees!$A:$A,D11,Fees!$C:$C,'SVT Calculator'!$C$7,Fees!$B:$B,'SVT Calculator'!D13,Fees!$D:$D,'SVT Calculator'!D12)),(SUMIFS(Fees!$G:$G,Fees!$A:$A,D11,Fees!$C:$C,'SVT Calculator'!$C$7,Fees!$B:$B,'SVT Calculator'!D13,Fees!$D:$D,'SVT Calculator'!D12)),(D$14*$C$4)))","v":0},{"$f":"IF((E$14*$C$4)<(SUMIFS(Fees!$F:$F,Fees!$A:$A,E11,Fees!$C:$C,'SVT Calculator'!$C$7,Fees!$B:$B,'SVT Calculator'!E13,Fees!$D:$D,'SVT Calculator'!E12)),(SUMIFS(Fees!$F:$F,Fees!$A:$A,E11,Fees!$C:$C,'SVT Calculator'!$C$7,Fees!$B:$B,'SVT Calculator'!E13,Fees!$D:$D,'SVT Calculator'!E12)),IF((E$14*$C$4)>(SUMIFS(Fees!$G:$G,Fees!$A:$A,E11,Fees!$C:$C,'SVT Calculator'!$C$7,Fees!$B:$B,'SVT Calculator'!E13,Fees!$D:$D,'SVT Calculator'!E12)),(SUMIFS(Fees!$G:$G,Fees!$A:$A,E11,Fees!$C:$C,'SVT Calculator'!$C$7,Fees!$B:$B,'SVT Calculator'!E13,Fees!$D:$D,'SVT Calculator'!E12)),(E$14*$C$4)))","v":0},{"$f":"IF((F$14*$C$4)<(SUMIFS(Fees!$F:$F,Fees!$A:$A,F11,Fees!$C:$C,'SVT Calculator'!$C$7,Fees!$B:$B,'SVT Calculator'!F13,Fees!$D:$D,'SVT Calculator'!F12)),(SUMIFS(Fees!$F:$F,Fees!$A:$A,F11,Fees!$C:$C,'SVT Calculator'!$C$7,Fees!$B:$B,'SVT Calculator'!F13,Fees!$D:$D,'SVT Calculator'!F12)),IF((F$14*$C$4)>(SUMIFS(Fees!$G:$G,Fees!$A:$A,F11,Fees!$C:$C,'SVT Calculator'!$C$7,Fees!$B:$B,'SVT Calculator'!F13,Fees!$D:$D,'SVT Calculator'!F12)),(SUMIFS(Fees!$G:$G,Fees!$A:$A,F11,Fees!$C:$C,'SVT Calculator'!$C$7,Fees!$B:$B,'SVT Calculator'!F13,Fees!$D:$D,'SVT Calculator'!F12)),(F$14*$C$4)))","v":0},{"$f":"IF((G$14*$C$4)<(SUMIFS(Fees!$F:$F,Fees!$A:$A,G11,Fees!$C:$C,'SVT Calculator'!$C$7,Fees!$B:$B,'SVT Calculator'!G13,Fees!$D:$D,'SVT Calculator'!G12)),(SUMIFS(Fees!$F:$F,Fees!$A:$A,G11,Fees!$C:$C,'SVT Calculator'!$C$7,Fees!$B:$B,'SVT Calculator'!G13,Fees!$D:$D,'SVT Calculator'!G12)),IF((G$14*$C$4)>(SUMIFS(Fees!$G:$G,Fees!$A:$A,G11,Fees!$C:$C,'SVT Calculator'!$C$7,Fees!$B:$B,'SVT Calculator'!G13,Fees!$D:$D,'SVT Calculator'!G12)),(SUMIFS(Fees!$G:$G,Fees!$A:$A,G11,Fees!$C:$C,'SVT Calculator'!$C$7,Fees!$B:$B,'SVT Calculator'!G13,Fees!$D:$D,'SVT Calculator'!G12)),(G$14*$C$4)))","v":0},{"$f":"IF((H$14*$C$4)<(SUMIFS(Fees!$F:$F,Fees!$A:$A,H11,Fees!$C:$C,'SVT Calculator'!$C$7,Fees!$B:$B,'SVT Calculator'!H13,Fees!$D:$D,'SVT Calculator'!H12)),(SUMIFS(Fees!$F:$F,Fees!$A:$A,H11,Fees!$C:$C,'SVT Calculator'!$C$7,Fees!$B:$B,'SVT Calculator'!H13,Fees!$D:$D,'SVT Calculator'!H12)),IF((H$14*$C$4)>(SUMIFS(Fees!$G:$G,Fees!$A:$A,H11,Fees!$C:$C,'SVT Calculator'!$C$7,Fees!$B:$B,'SVT Calculator'!H13,Fees!$D:$D,'SVT Calculator'!H12)),(SUMIFS(Fees!$G:$G,Fees!$A:$A,H11,Fees!$C:$C,'SVT Calculator'!$C$7,Fees!$B:$B,'SVT Calculator'!H13,Fees!$D:$D,'SVT Calculator'!H12)),(H$14*$C$4)))","v":0},{"$f":"IF((I$14*$C$4)<(SUMIFS(Fees!$F:$F,Fees!$A:$A,I11,Fees!$C:$C,'SVT Calculator'!$C$7,Fees!$B:$B,'SVT Calculator'!I13,Fees!$D:$D,'SVT Calculator'!I12)),(SUMIFS(Fees!$F:$F,Fees!$A:$A,I11,Fees!$C:$C,'SVT Calculator'!$C$7,Fees!$B:$B,'SVT Calculator'!I13,Fees!$D:$D,'SVT Calculator'!I12)),IF((I$14*$C$4)>(SUMIFS(Fees!$G:$G,Fees!$A:$A,I11,Fees!$C:$C,'SVT Calculator'!$C$7,Fees!$B:$B,'SVT Calculator'!I13,Fees!$D:$D,'SVT Calculator'!I12)),(SUMIFS(Fees!$G:$G,Fees!$A:$A,I11,Fees!$C:$C,'SVT Calculator'!$C$7,Fees!$B:$B,'SVT Calculator'!I13,Fees!$D:$D,'SVT Calculator'!I12)),(I$14*$C$4)))","v":0},{"$f":"IF((J$14*$C$4)<(SUMIFS(Fees!$F:$F,Fees!$A:$A,J11,Fees!$C:$C,'SVT Calculator'!$C$7,Fees!$B:$B,'SVT Calculator'!J13,Fees!$D:$D,'SVT Calculator'!J12)),(SUMIFS(Fees!$F:$F,Fees!$A:$A,J11,Fees!$C:$C,'SVT Calculator'!$C$7,Fees!$B:$B,'SVT Calculator'!J13,Fees!$D:$D,'SVT Calculator'!J12)),IF((J$14*$C$4)>(SUMIFS(Fees!$G:$G,Fees!$A:$A,J11,Fees!$C:$C,'SVT Calculator'!$C$7,Fees!$B:$B,'SVT Calculator'!J13,Fees!$D:$D,'SVT Calculator'!J12)),(SUMIFS(Fees!$G:$G,Fees!$A:$A,J11,Fees!$C:$C,'SVT Calculator'!$C$7,Fees!$B:$B,'SVT Calculator'!J13,Fees!$D:$D,'SVT Calculator'!J12)),(J$14*$C$4)))","v":0},null,null,{"$f":"M14*C5","v":0},{"$f":"IF((N$14*$C$4)<(SUMIFS(Fees!$F:$F,Fees!$A:$A,N11,Fees!$C:$C,'SVT Calculator'!$C$8,Fees!$B:$B,'SVT Calculator'!N13,Fees!$D:$D,'SVT Calculator'!N12)),(SUMIFS(Fees!$F:$F,Fees!$A:$A,N11,Fees!$C:$C,'SVT Calculator'!$C$8,Fees!$B:$B,'SVT Calculator'!N13,Fees!$D:$D,'SVT Calculator'!N12)),IF((N$14*$C$4)>(SUMIFS(Fees!$G:$G,Fees!$A:$A,N11,Fees!$C:$C,'SVT Calculator'!$C$8,Fees!$B:$B,'SVT Calculator'!N13,Fees!$D:$D,'SVT Calculator'!N12)),(SUMIFS(Fees!$G:$G,Fees!$A:$A,N11,Fees!$C:$C,'SVT Calculator'!$C$8,Fees!$B:$B,'SVT Calculator'!N13,Fees!$D:$D,'SVT Calculator'!N12)),(N$14*$C$4)))","v":0},{"$f":"$O$14*$O$9","v":0},{"$f":"$P$14*$P$9","v":0}]
[null,"Full time, 6 month roles",{"$f":"SUMIFS('C Data'!B:B,'C Data'!$A:$A,$C$13)*($C$15/1000000)","v":0}]
[null,"Work placement weeks",{"$f":"SUMIFS('C Data'!C:C,'C Data'!$A:$A,$C$13)*($C$15/1000000)","v":0},{"$f":"SUMIFS('PS data'!$B:$B,'PS data'!$A:$A,D$13)*(D$15/10000)","v":0},{"$f":"SUMIFS('PS data'!$B:$B,'PS data'!$A:$A,E$13)*(E$15/10000)","v":0},{"$f":"SUMIFS('PS data'!$B:$B,'PS data'!$A:$A,F$13)*(F$15/10000)","v":0},{"$f":"SUMIFS('PS data'!$B:$B,'PS data'!$A:$A,G$13)*(G$15/10000)","v":0},{"$f":"SUMIFS('PS data'!$B:$B,'PS data'!$A:$A,H$13)*(H$15/10000)","v":0},{"$f":"SUMIFS('PS data'!$B:$B,'PS data'!$A:$A,I$13)*(I$15/10000)","v":0},{"$f":"SUMIFS('PS data'!$B:$B,'PS data'!$A:$A,J$13)*(J$15/10000)","v":0},{"$f":"SUMIFS('PS data'!$B:$B,'PS data'!$A:$A,K$13)*(K$15/10000)","v":0},{"$f":"SUMIFS('PS data'!$B:$B,'PS data'!$A:$A,L$13)*(L$15/10000)","v":0},{"$f":"SUMIFS('PS data'!$B:$B,'PS data'!$A:$A,M$13)*(M$15/10000)","v":0},{"$f":"SUMIFS('PS data'!$B:$B,'PS data'!$A:$A,N$13)*(N$15/10000)","v":0},{"$f":"SUMIFS('PS data'!$B:$B,'PS data'!$A:$A,O$13)*(O$15/10000)","v":0},{"$f":"SUMIFS('PS data'!$B:$B,'PS data'!$A:$A,P$13)*(P$15/10000)","v":0}]
[null,"Specialist advice hours for Careers IAG",{"$f":"SUMIFS('C Data'!D:D,'C Data'!$A:$A,$C$13)*($C$15/1000000)","v":0},{"$f":"SUMIFS('PS data'!$C:$C,'PS data'!$A:$A,D$13)*(D$15/10000)","v":0},{"$f":"SUMIFS('PS data'!$C:$C,'PS data'!$A:$A,E$13)*(E$15/10000)","v":0},{"$f":"SUMIFS('PS data'!$C:$C,'PS data'!$A:$A,F$13)*(F$15/10000)","v":0},{"$f":"SUMIFS('PS data'!$C:$C,'PS data'!$A:$A,G$13)*(G$15/10000)","v":0},{"$f":"SUMIFS('PS data'!$C:$C,'PS data'!$A:$A,H$13)*(H$15/10000)","v":0},{"$f":"SUMIFS('PS data'!$C:$C,'PS data'!$A:$A,I$13)*(I$15/10000)","v":0},{"$f":"SUMIFS('PS data'!$C:$C,'PS data'!$A:$A,J$13)*(J$15/10000)","v":0},{"$f":"SUMIFS('PS data'!$C:$C,'PS data'!$A:$A,K$13)*(K$15/10000)","v":0},{"$f":"SUMIFS('PS data'!$C:$C,'PS data'!$A:$A,L$13)*(L$15/10000)","v":0},{"$f":"SUMIFS('PS data'!$C:$C,'PS data'!$A:$A,M$13)*(M$15/10000)","v":0},{"$f":"SUMIFS('PS data'!$C:$C,'PS data'!$A:$A,N$13)*(N$15/10000)","v":0},{"$f":"SUMIFS('PS data'!$C:$C,'PS data'!$A:$A,O$13)*(O$15/10000)","v":0},{"$f":"SUMIFS('PS data'!$C:$C,'PS data'!$A:$A,P$13)*(P$15/10000)","v":0}]
[null,"Specialist advice hours for VCSE or SME",{"$f":"SUMIFS('C Data'!E:E,'C Data'!$A:$A,$C$13)*($C$15/1000000)","v":0},{"$f":"SUMIFS('PS data'!$D:$D,'PS data'!$A:$A,D$13)*(D$15/10000)","v":0},{"$f":"SUMIFS('PS data'!$D:$D,'PS data'!$A:$A,E$13)*(E$15/10000)","v":0},{"$f":"SUMIFS('PS data'!$D:$D,'PS data'!$A:$A,F$13)*(F$15/10000)","v":0},{"$f":"SUMIFS('PS data'!$D:$D,'PS data'!$A:$A,G$13)*(G$15/10000)","v":0},{"$f":"SUMIFS('PS data'!$D:$D,'PS data'!$A:$A,H$13)*(H$15/10000)","v":0},{"$f":"SUMIFS('PS data'!$D:$D,'PS data'!$A:$A,I$13)*(I$15/10000)","v":0},{"$f":"SUMIFS('PS data'!$D:$D,'PS data'!$A:$A,J$13)*(J$15/10000)","v":0},{"$f":"SUMIFS('PS data'!$D:$D,'PS data'!$A:$A,K$13)*(K$15/10000)","v":0},{"$f":"SUMIFS('PS data'!$D:$D,'PS data'!$A:$A,L$13)*(L$15/10000)","v":0},{"$f":"SUMIFS('PS data'!$D:$D,'PS data'!$A:$A,M$13)*(M$15/10000)","v":0},{"$f":"SUMIFS('PS data'!$D:$D,'PS data'!$A:$A,N$13)*(N$15/10000)","v":0},{"$f":"SUMIFS('PS data'!$D:$D,'PS data'!$A:$A,O$13)*(O$15/10000)","v":0},{"$f":"SUMIFS('PS data'!$D:$D,'PS data'!$A:$A,P$13)*(P$15/10000)","v":0}]
[null,"Hours for Digital Inclusion",{"$f":"SUMIFS('C Data'!F:F,'C Data'!$A:$A,$C$13)*($C$15/1000000)","v":0},{"$f":"SUMIFS('PS data'!$E:$E,'PS data'!$A:$A,D$13)*(D$15/10000)","v":0},{"$f":"SUMIFS('PS data'!$E:$E,'PS data'!$A:$A,E$13)*(E$15/10000)","v":0},{"$f":"SUMIFS('PS data'!$E:$E,'PS data'!$A:$A,F$13)*(F$15/10000)","v":0},{"$f":"SUMIFS('PS data'!$E:$E,'PS data'!$A:$A,G$13)*(G$15/10000)","v":0},{"$f":"SUMIFS('PS data'!$E:$E,'PS data'!$A:$A,H$13)*(H$15/10000)","v":0},{"$f":"SUMIFS('PS data'!$E:$E,'PS data'!$A:$A,I$13)*(I$15/10000)","v":0},{"$f":"SUMIFS('PS data'!$E:$E,'PS data'!$A:$A,J$13)*(J$15/10000)","v":0},{"$f":"SUMIFS('PS data'!$E:$E,'PS data'!$A:$A,K$13)*(K$15/10000)","v":0},{"$f":"SUMIFS('PS data'!$E:$E,'PS data'!$A:$A,L$13)*(L$15/10000)","v":0},{"$f":"SUMIFS('PS data'!$E:$E,'PS data'!$A:$A,M$13)*(M$15/10000)","v":0},{"$f":"SUMIFS('PS data'!$E:$E,'PS data'!$A:$A,N$13)*(N$15/10000)","v":0},{"$f":"SUMIFS('PS data'!$E:$E,'PS data'!$A:$A,O$13)*(O$15/10000)","v":0},{"$f":"SUMIFS('PS data'!$E:$E,'PS data'!$A:$A,P$13)*(P$15/10000)","v":0}]
[null,"£s towards Digital equipment",{"$f":"SUMIFS('C Data'!G:G,'C Data'!$A:$A,$C$13)*($C$15/1000000)","v":0},{"$f":"SUMIFS('PS data'!$F:$F,'PS data'!$A:$A,D$13)*(D$15/10000)","v":0},{"$f":"SUMIFS('PS data'!$F:$F,'PS data'!$A:$A,E$13)*(E$15/10000)","v":0},{"$f":"SUMIFS('PS data'!$F:$F,'PS data'!$A:$A,F$13)*(F$15/10000)","v":0},{"$f":"SUMIFS('PS data'!$F:$F,'PS data'!$A:$A,G$13)*(G$15/10000)","v":0},{"$f":"SUMIFS('PS data'!$F:$F,'PS data'!$A:$A,H$13)*(H$15/10000)","v":0},{"$f":"SUMIFS('PS data'!$F:$F,'PS data'!$A:$A,I$13)*(I$15/10000)","v":0},{"$f":"SUMIFS('PS data'!$F:$F,'PS data'!$A:$A,J$13)*(J$15/10000)","v":0},{"$f":"SUMIFS('PS data'!$F:$F,'PS data'!$A:$A,K$13)*(K$15/10000)","v":0},{"$f":"SUMIFS('PS data'!$F:$F,'PS data'!$A:$A,L$13)*(L$15/10000)","v":0},{"$f":"SUMIFS('PS data'!$F:$F,'PS data'!$A:$A,M$13)*(M$15/10000)","v":0},{"$f":"SUMIFS('PS data'!$F:$F,'PS data'!$A:$A,N$13)*(N$15/10000)","v":0},{"$f":"SUMIFS('PS data'!$F:$F,'PS data'!$A:$A,O$13)*(O$15/10000)","v":0},{"$f":"SUMIFS('PS data'!$F:$F,'PS data'!$A:$A,P$13)*(P$15/10000)","v":0}]
[null,"£s towards community projects",{"$f":"SUMIFS('C Data'!H:H,'C Data'!$A:$A,$C$13)*($C$15/1000000)","v":0},{"$f":"SUMIFS('PS data'!$G:$G,'PS data'!$A:$A,D$13)*(D$15/10000)","v":0},{"$f":"SUMIFS('PS data'!$G:$G,'PS data'!$A:$A,E$13)*(E$15/10000)","v":0},{"$f":"SUMIFS('PS data'!$G:$G,'PS data'!$A:$A,F$13)*(F$15/10000)","v":0},{"$f":"SUMIFS('PS data'!$G:$G,'PS data'!$A:$A,G$13)*(G$15/10000)","v":0},{"$f":"SUMIFS('PS data'!$G:$G,'PS data'!$A:$A,H$13)*(H$15/10000)","v":0},{"$f":"SUMIFS('PS data'!$G:$G,'PS data'!$A:$A,I$13)*(I$15/10000)","v":0},{"$f":"SUMIFS('PS data'!$G:$G,'PS data'!$A:$A,J$13)*(J$15/10000)","v":0},{"$f":"SUMIFS('PS data'!$G:$G,'PS data'!$A:$A,K$13)*(K$15/10000)","v":0},{"$f":"SUMIFS('PS data'!$G:$G,'PS data'!$A:$A,L$13)*(L$15/10000)","v":0},{"$f":"SUMIFS('PS data'!$G:$G,'PS data'!$A:$A,M$13)*(M$15/10000)","v":0},{"$f":"SUMIFS('PS data'!$G:$G,'PS data'!$A:$A,N$13)*(N$15/10000)","v":0},{"$f":"SUMIFS('PS data'!$G:$G,'PS data'!$A:$A,O$13)*(O$15/10000)","v":0},{"$f":"SUMIFS('PS data'!$G:$G,'PS data'!$A:$A,P$13)*(P$15/10000)","v":0}]
[null,"Hours volunteered for community project",{"$f":"SUMIFS('C Data'!I:I,'C Data'!$A:$A,$C$13)*($C$15/1000000)","v":0},{"$f":"SUMIFS('PS data'!$H:$H,'PS data'!$A:$A,D$13)*(D$15/10000)","v":0},{"$f":"SUMIFS('PS data'!$H:$H,'PS data'!$A:$A,E$13)*(E$15/10000)","v":0},{"$f":"SUMIFS('PS data'!$H:$H,'PS data'!$A:$A,F$13)*(F$15/10000)","v":0},{"$f":"SUMIFS('PS data'!$H:$H,'PS data'!$A:$A,G$13)*(G$15/10000)","v":0},{"$f":"SUMIFS('PS data'!$H:$H,'PS data'!$A:$A,H$13)*(H$15/10000)","v":0},{"$f":"SUMIFS('PS data'!$H:$H,'PS data'!$A:$A,I$13)*(I$15/10000)","v":0},{"$f":"SUMIFS('PS data'!$H:$H,'PS data'!$A:$A,J$13)*(J$15/10000)","v":0},{"$f":"SUMIFS('PS data'!$H:$H,'PS data'!$A:$A,K$13)*(K$15/10000)","v":0},{"$f":"SUMIFS('PS data'!$H:$H,'PS data'!$A:$A,L$13)*(L$15/10000)","v":0},{"$f":"SUMIFS('PS data'!$H:$H,'PS data'!$A:$A,M$13)*(M$15/10000)","v":0},{"$f":"SUMIFS('PS data'!$H:$H,'PS data'!$A:$A,N$13)*(N$15/10000)","v":0},{"$f":"SUMIFS('PS data'!$H:$H,'PS data'!$A:$A,O$13)*(O$15/10000)","v":0},{"$f":"SUMIFS('PS data'!$H:$H,'PS data'!$A:$A,P$13)*(P$15/10000)","v":0}]
[null,"£s for poverty initiatives",{"$f":"SUMIFS('C Data'!J:J,'C Data'!$A:$A,$C$13)*($C$15/1000000)","v":0},{"$f":"SUMIFS('PS data'!$I:$I,'PS data'!$A:$A,D$13)*(D$15/10000)","v":0},{"$f":"SUMIFS('PS data'!$I:$I,'PS data'!$A:$A,E$13)*(E$15/10000)","v":0},{"$f":"SUMIFS('PS data'!$I:$I,'PS data'!$A:$A,F$13)*(F$15/10000)","v":0},{"$f":"SUMIFS('PS data'!$I:$I,'PS data'!$A:$A,G$13)*(G$15/10000)","v":0},{"$f":"SUMIFS('PS data'!$I:$I,'PS data'!$A:$A,H$13)*(H$15/10000)","v":0},{"$f":"SUMIFS('PS data'!$I:$I,'PS data'!$A:$A,I$13)*(I$15/10000)","v":0},{"$f":"SUMIFS('PS data'!$I:$I,'PS data'!$A:$A,J$13)*(J$15/10000)","v":0},{"$f":"SUMIFS('PS data'!$I:$I,'PS data'!$A:$A,K$13)*(K$15/10000)","v":0},{"$f":"SUMIFS('PS data'!$I:$I,'PS data'!$A:$A,L$13)*(L$15/10000)","v":0},{"$f":"SUMIFS('PS data'!$I:$I,'PS data'!$A:$A,M$13)*(M$15/10000)","v":0},{"$f":"SUMIFS('PS data'!$I:$I,'PS data'!$A:$A,N$13)*(N$15/10000)","v":0},{"$f":"SUMIFS('PS data'!$I:$I,'PS data'!$A:$A,O$13)*(O$15/10000)","v":0},{"$f":"SUMIFS('PS data'!$I:$I,'PS data'!$A:$A,P$13)*(P$15/10000)","v":0}]
[null,"Hours to promote healthy living",{"$f":"SUMIFS('C Data'!K:K,'C Data'!$A:$A,$C$13)*($C$15/1000000)","v":0},{"$f":"SUMIFS('PS data'!$J:$J,'PS data'!$A:$A,D$13)*(D$15/10000)","v":0},{"$f":"SUMIFS('PS data'!$J:$J,'PS data'!$A:$A,E$13)*(E$15/10000)","v":0},{"$f":"SUMIFS('PS data'!$J:$J,'PS data'!$A:$A,F$13)*(F$15/10000)","v":0},{"$f":"SUMIFS('PS data'!$J:$J,'PS data'!$A:$A,G$13)*(G$15/10000)","v":0},{"$f":"SUMIFS('PS data'!$J:$J,'PS data'!$A:$A,H$13)*(H$15/10000)","v":0},{"$f":"SUMIFS('PS data'!$J:$J,'PS data'!$A:$A,I$13)*(I$15/10000)","v":0},{"$f":"SUMIFS('PS data'!$J:$J,'PS data'!$A:$A,J$13)*(J$15/10000)","v":0},{"$f":"SUMIFS('PS data'!$J:$J,'PS data'!$A:$A,K$13)*(K$15/10000)","v":0},{"$f":"SUMIFS('PS data'!$J:$J,'PS data'!$A:$A,L$13)*(L$15/10000)","v":0},{"$f":"SUMIFS('PS data'!$J:$J,'PS data'!$A:$A,M$13)*(M$15/10000)","v":0},{"$f":"SUMIFS('PS data'!$J:$J,'PS data'!$A:$A,N$13)*(N$15/10000)","v":0},{"$f":"SUMIFS('PS data'!$J:$J,'PS data'!$A:$A,O$13)*(O$15/10000)","v":0},{"$f":"SUMIFS('PS data'!$J:$J,'PS data'!$A:$A,P$13)*(P$15/10000)","v":0}]
[null,"Hours for Homelessness projects ",{"$f":"SUMIFS('C Data'!L:L,'C Data'!$A:$A,$C$13)*($C$15/1000000)","v":0},{"$f":"SUMIFS('PS data'!$K:$K,'PS data'!$A:$A,D$13)*(D$15/10000)","v":0},{"$f":"SUMIFS('PS data'!$K:$K,'PS data'!$A:$A,E$13)*(E$15/10000)","v":0},{"$f":"SUMIFS('PS data'!$K:$K,'PS data'!$A:$A,F$13)*(F$15/10000)","v":0},{"$f":"SUMIFS('PS data'!$K:$K,'PS data'!$A:$A,G$13)*(G$15/10000)","v":0},{"$f":"SUMIFS('PS data'!$K:$K,'PS data'!$A:$A,H$13)*(H$15/10000)","v":0},{"$f":"SUMIFS('PS data'!$K:$K,'PS data'!$A:$A,I$13)*(I$15/10000)","v":0},{"$f":"SUMIFS('PS data'!$K:$K,'PS data'!$A:$A,J$13)*(J$15/10000)","v":0},{"$f":"SUMIFS('PS data'!$K:$K,'PS data'!$A:$A,K$13)*(K$15/10000)","v":0},{"$f":"SUMIFS('PS data'!$K:$K,'PS data'!$A:$A,L$13)*(L$15/10000)","v":0},{"$f":"SUMIFS('PS data'!$K:$K,'PS data'!$A:$A,M$13)*(M$15/10000)","v":0},{"$f":"SUMIFS('PS data'!$K:$K,'PS data'!$A:$A,N$13)*(N$15/10000)","v":0},{"$f":"SUMIFS('PS data'!$K:$K,'PS data'!$A:$A,O$13)*(O$15/10000)","v":0},{"$f":"SUMIFS('PS data'!$K:$K,'PS data'!$A:$A,P$13)*(P$15/10000)","v":0}]
[null,"Carbon Literacy training provided",{"$f":"SUMIFS('C Data'!M:M,'C Data'!$A:$A,$C$13)*($C$15/1000000)","v":0},{"$f":"SUMIFS('PS data'!$L:$L,'PS data'!$A:$A,D$13)*(D$15/10000)","v":0},{"$f":"SUMIFS('PS data'!$L:$L,'PS data'!$A:$A,E$13)*(E$15/10000)","v":0},{"$f":"SUMIFS('PS data'!$L:$L,'PS data'!$A:$A,F$13)*(F$15/10000)","v":0},{"$f":"SUMIFS('PS data'!$L:$L,'PS data'!$A:$A,G$13)*(G$15/10000)","v":0},{"$f":"SUMIFS('PS data'!$L:$L,'PS data'!$A:$A,H$13)*(H$15/10000)","v":0},{"$f":"SUMIFS('PS data'!$L:$L,'PS data'!$A:$A,I$13)*(I$15/10000)","v":0},{"$f":"SUMIFS('PS data'!$L:$L,'PS data'!$A:$A,J$13)*(J$15/10000)","v":0},{"$f":"SUMIFS('PS data'!$L:$L,'PS data'!$A:$A,K$13)*(K$15/10000)","v":0},{"$f":"SUMIFS('PS data'!$L:$L,'PS data'!$A:$A,L$13)*(L$15/10000)","v":0},{"$f":"SUMIFS('PS data'!$L:$L,'PS data'!$A:$A,M$13)*(M$15/10000)","v":0},{"$f":"SUMIFS('PS data'!$L:$L,'PS data'!$A:$A,N$13)*(N$15/10000)","v":0},{"$f":"SUMIFS('PS data'!$L:$L,'PS data'!$A:$A,O$13)*(O$15/10000)","v":0},{"$f":"SUMIFS('PS data'!$L:$L,'PS data'!$A:$A,P$13)*(P$15/10000)","v":0}]
[null,"Service Provider total",{"$f":"'Social Value Proxies'!C23","v":0},{"$f":"'Social Value Proxies'!D23","v":0},{"$f":"'Social Value Proxies'!E23","v":0},{"$f":"'Social Value Proxies'!F23","v":0},{"$f":"'Social Value Proxies'!G23","v":0},{"$f":"'Social Value Proxies'!H23","v":0},{"$f":"'Social Value Proxies'!K23","v":0},{"$f":"'Social Value Proxies'!L23","v":0},{"$f":"'Social Value Proxies'!K23","v":0},{"$f":"'Social Value Proxies'!L23","v":0},{"$f":"'Social Value Proxies'!O23","v":0},{"$f":"'Social Value Proxies'!P23","v":0},{"$f":"'Social Value Proxies'!O23","v":0},{"$f":"'Social Value Proxies'!P23","v":0}]
[null,"Social Return on Investment",{"$f":"IFERROR(C28/C15,\"\")","v":""},"","","","","","","","","",{"$f":"IFERROR(M28/M15,\"\")","v":""},"","",""]
[]
[]
[null,"This calculator uses data from National Toms Framework, 2022 version. "]
[null,"**National TOMS"]
[null,"Attribution\nTitle: National TOMs 2022\nAuthor: Social Value Portal Ltd\nSource: socialvalueportal.com\nLicense: Creative Commons Attribution-NonCommercial-NoDerivatives 4.0 International License "]
[null,"https://creativecommons.org/licenses/by-nc-nd/4.0/"]

{"sheet":"Social Value Proxies","index":4,"n_rows":33,"n_cols":21,"rows_kept":33,"cut":false,"hidden":true,"merged":[[4,10,4,11],[4,14,4,15],[4,3,4,9]]}
[]
[null,"Social Value Target Proxy Values",null,null,"Instructions"]
[null,null,null,null,"Do not enter or alter any figures - this page is automated for information only"]
[]
[null,null,"Main Contractor","Consultants",null,null,null,null,null,null,"C8 or C9 Only",null,"C11","C5 - Apartments","Day Rates"]
[null,"Lot",{"$f":"'SVT Calculator'!C11","v":0},{"$f":"'SVT Calculator'!D11","v":0},{"$f":"'SVT Calculator'!E11","v":0},{"$f":"'SVT Calculator'!F11","v":0},{"$f":"'SVT Calculator'!G11","v":0},{"$f":"'SVT Calculator'!H11","v":0},{"$f":"'SVT Calculator'!I11","v":0},{"$f":"'SVT Calculator'!J11","v":0},{"$f":"'SVT Calculator'!K11","v":0},{"$f":"'SVT Calculator'!L11","v":0},{"$f":"'SVT Calculator'!M11","v":0},{"$f":"'SVT Calculator'!N11","v":0},{"$f":"'SVT Calculator'!O11","v":0},{"$f":"'SVT Calculator'!P11","v":0}]
[null,"Stage - If no stage, enter n/a",{"$f":"'SVT Calculator'!C12","v":0},{"$f":"'SVT Calculator'!D12","v":0},{"$f":"'SVT Calculator'!E12","v":0},{"$f":"'SVT Calculator'!F12","v":0},{"$f":"'SVT Calculator'!G12","v":0},{"$f":"'SVT Calculator'!H12","v":0},{"$f":"'SVT Calculator'!I12","v":0},{"$f":"'SVT Calculator'!J12","v":0},{"$f":"'SVT Calculator'!K12","v":0},{"$f":"'SVT Calculator'!L12","v":0},{"$f":"'SVT Calculator'!M12","v":0},{"$f":"'SVT Calculator'!N12","v":0},{"$f":"'SVT Calculator'!O12","v":0},{"$f":"'SVT Calculator'!P12","v":0}]
[null,"Provider",{"$f":"'SVT Calculator'!C13","v":0},{"$f":"'SVT Calculator'!D13","v":0},{"$f":"'SVT Calculator'!E13","v":0},{"$f":"'SVT Calculator'!F13","v":0},{"$f":"'SVT Calculator'!G13","v":0},{"$f":"'SVT Calculator'!H13","v":0},{"$f":"'SVT Calculator'!I13","v":0},{"$f":"'SVT Calculator'!J13","v":0},{"$f":"'SVT Calculator'!K13","v":0},{"$f":"'SVT Calculator'!L13","v":0},{"$f":"'SVT Calculator'!M13","v":0},{"$f":"'SVT Calculator'!N13","v":0},{"$f":"'SVT Calculator'!O13","v":0},{"$f":"'SVT Calculator'!P13","v":0}]
[null,"Fee %",{"$f":"'SVT Calculator'!C14","v":0},{"$f":"'SVT Calculator'!D14","v":0},{"$f":"'SVT Calculator'!E14","v":0},{"$f":"'SVT Calculator'!F14","v":0},{"$f":"'SVT Calculator'!G14","v":0},{"$f":"'SVT Calculator'!H14","v":0},{"$f":"'SVT Calculator'!I14","v":0},{"$f":"'SVT Calculator'!J14","v":0},{"$f":"'SVT Calculator'!K14","v":0},{"$f":"'SVT Calculator'!L14","v":0},{"$f":"'SVT Calculator'!M14","v":0},{"$f":"'SVT Calculator'!N14","v":0},{"$f":"'SVT Calculator'!O14","v":0},{"$f":"'SVT Calculator'!P14","v":0}]
[null,"Value",{"$f":"'SVT Calculator'!C15","v":0},{"$f":"'SVT Calculator'!D15","v":0},{"$f":"'SVT Calculator'!E15","v":0},{"$f":"'SVT Calculator'!F15","v":0},{"$f":"'SVT Calculator'!G15","v":0},{"$f":"'SVT Calculator'!H15","v":0},{"$f":"'SVT Calculator'!I15","v":0},{"$f":"'SVT Calculator'!J15","v":0},{"$f":"'SVT Calculator'!K15","v":0},{"$f":"'SVT Calculator'!L15","v":0},{"$f":"'SVT Calculator'!M15","v":0},{"$f":"'SVT Calculator'!N15","v":0},{"$f":"'SVT Calculator'!O15","v":0},{"$f":"'SVT Calculator'!P15","v":0},"Total",null,null,"Proxy Values and Methodology"]
[null,"Full time, 6 month roles",{"$f":"$U11*'SVT Calculator'!C16","v":0},{"$f":"$U11*'SVT Calculator'!D16","v":0},{"$f":"$U11*'SVT Calculator'!E16","v":0},{"$f":"$U11*'SVT Calculator'!F16","v":0},{"$f":"$U11*'SVT Calculator'!G16","v":0},{"$f":"$U11*'SVT Calculator'!H16","v":0},{"$f":"$U11*'SVT Calculator'!I16","v":0},{"$f":"$U11*'SVT Calculator'!J16","v":0},{"$f":"$U11*'SVT Calculator'!K16","v":0},{"$f":"$U11*'SVT Calculator'!L16","v":0},{"$f":"$U11*'SVT Calculator'!M16","v":0},{"$f":"$U11*'SVT Calculator'!N16","v":0},{"$f":"$U11*'SVT Calculator'!O16","v":0},{"$f":"$U11*'SVT Calculator'!P16","v":0},{"$f":"SUM(C11:P11)","v":0},null,null,"Full time, 6 month roles",14827.5]
[null,"Work placement weeks",{"$f":"$U12*'SVT Calculator'!C17","v":0},{"$f":"$U12*'SVT Calculator'!D17","v":0},{"$f":"$U12*'SVT Calculator'!E17","v":0},{"$f":"$U12*'SVT Calculator'!F17","v":0},{"$f":"$U12*'SVT Calculator'!G17","v":0},{"$f":"$U12*'SVT Calculator'!H17","v":0},{"$f":"$U12*'SVT Calculator'!I17","v":0},{"$f":"$U12*'SVT Calculator'!J17","v":0},{"$f":"$U12*'SVT Calculator'!K17","v":0},{"$f":"$U12*'SVT Calculator'!L17","v":0},{"$f":"$U12*'SVT Calculator'!M17","v":0},{"$f":"$U12*'SVT Calculator'!N17","v":0},{"$f":"$U12*'SVT Calculator'!O17","v":0},{"$f":"$U12*'SVT Calculator'!P17","v":0},{"$f":"SUM(C12:P12)","v":0},null,null,"Work placement weeks",194.5]
[null,"Specialist advice hours for Careers IAG",{"$f":"$U13*'SVT Calculator'!C18","v":0},{"$f":"$U13*'SVT Calculator'!D18","v":0},{"$f":"$U13*'SVT Calculator'!E18","v":0},{"$f":"$U13*'SVT Calculator'!F18","v":0},{"$f":"$U13*'SVT Calculator'!G18","v":0},{"$f":"$U13*'SVT Calculator'!H18","v":0},{"$f":"$U13*'SVT Calculator'!I18","v":0},{"$f":"$U13*'SVT Calculator'!J18","v":0},{"$f":"$U13*'SVT Calculator'!K18","v":0},{"$f":"$U13*'SVT Calculator'!L18","v":0},{"$f":"$U13*'SVT Calculator'!M18","v":0},{"$f":"$U13*'SVT Calculator'!N18","v":0},{"$f":"$U13*'SVT Calculator'!O18","v":0},{"$f":"$U13*'SVT Calculator'!P18","v":0},0,null,null,"Specialist advice hours for Careers IAG",105.58]
[null,"Specialist advice hours for VCSE or SME",{"$f":"$U14*'SVT Calculator'!C19","v":0},{"$f":"$U14*'SVT Calculator'!D19","v":0},{"$f":"$U14*'SVT Calculator'!E19","v":0},{"$f":"$U14*'SVT Calculator'!F19","v":0},{"$f":"$U14*'SVT Calculator'!G19","v":0},{"$f":"$U14*'SVT Calculator'!H19","v":0},{"$f":"$U14*'SVT Calculator'!I19","v":0},{"$f":"$U14*'SVT Calculator'!J19","v":0},{"$f":"$U14*'SVT Calculator'!K19","v":0},{"$f":"$U14*'SVT Calculator'!L19","v":0},{"$f":"$U14*'SVT Calculator'!M19","v":0},{"$f":"$U14*'SVT Calculator'!N19","v":0},{"$f":"$U14*'SVT Calculator'!O19","v":0},{"$f":"$U14*'SVT Calculator'!P19","v":0},0,null,null,"Specialist advice hours for VCSE or SME",101]
[null,"Hours for Digital Inclusion",{"$f":"$U15*'SVT Calculator'!C20","v":0},{"$f":"$U15*'SVT Calculator'!D20","v":0},{"$f":"$U15*'SVT Calculator'!E20","v":0},{"$f":"$U15*'SVT Calculator'!F20","v":0},{"$f":"$U15*'SVT Calculator'!G20","v":0},{"$f":"$U15*'SVT Calculator'!H20","v":0},{"$f":"$U15*'SVT Calculator'!I20","v":0},{"$f":"$U15*'SVT Calculator'!J20","v":0},{"$f":"$U15*'SVT Calculator'!K20","v":0},{"$f":"$U15*'SVT Calculator'!L20","v":0},{"$f":"$U15*'SVT Calculator'!M20","v":0},{"$f":"$U15*'SVT Calculator'!N20","v":0},{"$f":"$U15*'SVT Calculator'!O20","v":0},{"$f":"$U15*'SVT Calculator'!P20","v":0},0,null,null,"Hours for Digital Inclusion",16.93]
[null,"£s towards Digital equipment",{"$f":"$U16*'SVT Calculator'!C21","v":0},{"$f":"$U16*'SVT Calculator'!D21","v":0},{"$f":"$U16*'SVT Calculator'!E21","v":0},{"$f":"$U16*'SVT Calculator'!F21","v":0},{"$f":"$U16*'SVT Calculator'!G21","v":0},{"$f":"$U16*'SVT Calculator'!H21","v":0},{"$f":"$U16*'SVT Calculator'!I21","v":0},{"$f":"$U16*'SVT Calculator'!J21","v":0},{"$f":"$U16*'SVT Calculator'!K21","v":0},{"$f":"$U16*'SVT Calculator'!L21","v":0},{"$f":"$U16*'SVT Calculator'!M21","v":0},{"$f":"$U16*'SVT Calculator'!N21","v":0},{"$f":"$U16*'SVT Calculator'!O21","v":0},{"$f":"$U16*'SVT Calculator'!P21","v":0},0,null,null,"£s towards Digital equipment",100]
[null,"£s towards community projects",{"$f":"$U17*'SVT Calculator'!C22","v":0},{"$f":"$U17*'SVT Calculator'!D22","v":0},{"$f":"$U17*'SVT Calculator'!E22","v":0},{"$f":"$U17*'SVT Calculator'!F22","v":0},{"$f":"$U17*'SVT Calculator'!G22","v":0},{"$f":"$U17*'SVT Calculator'!H22","v":0},{"$f":"$U17*'SVT Calculator'!I22","v":0},{"$f":"$U17*'SVT Calculator'!J22","v":0},{"$f":"$U17*'SVT Calculator'!K22","v":0},{"$f":"$U17*'SVT Calculator'!L22","v":0},{"$f":"$U17*'SVT Calculator'!M22","v":0},{"$f":"$U17*'SVT Calculator'!N22","v":0},{"$f":"$U17*'SVT Calculator'!O22","v":0},{"$f":"$U17*'SVT Calculator'!P22","v":0},0,null,null,"£s towards community projects",100]
[null,"Hours volunteered for community project",{"$f":"$U18*'SVT Calculator'!C23","v":0},{"$f":"$U18*'SVT Calculator'!D23","v":0},{"$f":"$U18*'SVT Calculator'!E23","v":0},{"$f":"$U18*'SVT Calculator'!F23","v":0},{"$f":"$U18*'SVT Calculator'!G23","v":0},{"$f":"$U18*'SVT Calculator'!H23","v":0},{"$f":"$U18*'SVT Calculator'!I23","v":0},{"$f":"$U18*'SVT Calculator'!J23","v":0},{"$f":"$U18*'SVT Calculator'!K23","v":0},{"$f":"$U18*'SVT Calculator'!L23","v":0},{"$f":"$U18*'SVT Calculator'!M23","v":0},{"$f":"$U18*'SVT Calculator'!N23","v":0},{"$f":"$U18*'SVT Calculator'!O23","v":0},{"$f":"$U18*'SVT Calculator'!P23","v":0},0,null,null,"Hours volunteered for community project",16.93]
[null,"£s for poverty initiatives",{"$f":"$U19*'SVT Calculator'!C24","v":0},{"$f":"$U19*'SVT Calculator'!D24","v":0},{"$f":"$U19*'SVT Calculator'!E24","v":0},{"$f":"$U19*'SVT Calculator'!F24","v":0},{"$f":"$U19*'SVT Calculator'!G24","v":0},{"$f":"$U19*'SVT Calculator'!H24","v":0},{"$f":"$U19*'SVT Calculator'!I24","v":0},{"$f":"$U19*'SVT Calculator'!J24","v":0},{"$f":"$U19*'SVT Calculator'!K24","v":0},{"$f":"$U19*'SVT Calculator'!L24","v":0},{"$f":"$U19*'SVT Calculator'!M24","v":0},{"$f":"$U19*'SVT Calculator'!N24","v":0},{"$f":"$U19*'SVT Calculator'!O24","v":0},{"$f":"$U19*'SVT Calculator'!P24","v":0},0,null,null,"£s for poverty initiatives",100]
[null,"Hours to promote healthy living",{"$f":"$U20*'SVT Calculator'!C25","v":0},{"$f":"$U20*'SVT Calculator'!D25","v":0},{"$f":"$U20*'SVT Calculator'!E25","v":0},{"$f":"$U20*'SVT Calculator'!F25","v":0},{"$f":"$U20*'SVT Calculator'!G25","v":0},{"$f":"$U20*'SVT Calculator'!H25","v":0},{"$f":"$U20*'SVT Calculator'!I25","v":0},{"$f":"$U20*'SVT Calculator'!J25","v":0},{"$f":"$U20*'SVT Calculator'!K25","v":0},{"$f":"$U20*'SVT Calculator'!L25","v":0},{"$f":"$U20*'SVT Calculator'!M25","v":0},{"$f":"$U20*'SVT Calculator'!N25","v":0},{"$f":"$U20*'SVT Calculator'!O25","v":0},{"$f":"$U20*'SVT Calculator'!P25","v":0},0,null,null,"Hours to promote healthy living",16.93]
[null,"Hours for Homelessness projects ",{"$f":"$U21*'SVT Calculator'!C26","v":0},{"$f":"$U21*'SVT Calculator'!D26","v":0},{"$f":"$U21*'SVT Calculator'!E26","v":0},{"$f":"$U21*'SVT Calculator'!F26","v":0},{"$f":"$U21*'SVT Calculator'!G26","v":0},{"$f":"$U21*'SVT Calculator'!H26","v":0},{"$f":"$U21*'SVT Calculator'!I26","v":0},{"$f":"$U21*'SVT Calculator'!J26","v":0},{"$f":"$U21*'SVT Calculator'!K26","v":0},{"$f":"$U21*'SVT Calculator'!L26","v":0},{"$f":"$U21*'SVT Calculator'!M26","v":0},{"$f":"$U21*'SVT Calculator'!N26","v":0},{"$f":"$U21*'SVT Calculator'!O26","v":0},{"$f":"$U21*'SVT Calculator'!P26","v":0},0,null,null,"Hours for Homelessness projects ",16.93]
[null,"Carbon Literacy training provided",{"$f":"$U22*'SVT Calculator'!C27","v":0},{"$f":"$U22*'SVT Calculator'!D27","v":0},{"$f":"$U22*'SVT Calculator'!E27","v":0},{"$f":"$U22*'SVT Calculator'!F27","v":0},{"$f":"$U22*'SVT Calculator'!G27","v":0},{"$f":"$U22*'SVT Calculator'!H27","v":0},{"$f":"$U22*'SVT Calculator'!I27","v":0},{"$f":"$U22*'SVT Calculator'!J27","v":0},{"$f":"$U22*'SVT Calculator'!K27","v":0},{"$f":"$U22*'SVT Calculator'!L27","v":0},{"$f":"$U22*'SVT Calculator'!M27","v":0},{"$f":"$U22*'SVT Calculator'!N27","v":0},{"$f":"$U22*'SVT Calculator'!O27","v":0},{"$f":"$U22*'SVT Calculator'!P27","v":0},0,null,null,"Carbon Literacy training provided",286.22000000000003]
[null,"Total",{"$f":"SUM(C11:C22)","v":0},0,0,0,0,0,null,null,{"$f":"SUM(K11:K22)","v":0},{"$f":"SUM(L11:L22)","v":0},null,null,{"$f":"SUM(O11:O22)","v":0},{"$f":"SUM(P11:P22)","v":0},{"$f":"SUM(Q11:Q22)","v":0}]
[null,"Social Return on Investment",{"$f":"IFERROR(C23/C10,\"\")","v":""},"","","","","",null,null,{"$f":"IFERROR(K23/K10,\"\")","v":""},{"$f":"IFERROR(L23/L10,\"\")","v":""},null,null,{"$f":"IFERROR(O23/O10,\"\")","v":""},{"$f":"IFERROR(P23/P10,\"\")","v":""},{"$f":"IFERROR(Q23/C10,\"\")","v":""}]
[]
[]
[]
[]
[]
[null,"This calculator uses data from National Toms Framework, 2019 version. "]
[null,"**National TOMS"]
[null,"Attribution\nTitle: National TOMs 2019\nAuthor: Social Value Portal Ltd\nSource: socialvalueportal.com\nLicense: Creative Commons Attribution-NonCommercial-NoDerivatives 4.0 International License "]
[null,"https://creativecommons.org/licenses/by-nc-nd/4.0/"]

{"sheet":"Pricing Table","index":5,"n_rows":729,"n_cols":14,"rows_kept":729,"cut":false,"hidden":true,"merged":[]}
["Lot","Band","Stage","Provider","% Fee","Min","Max",null,null,null,"Lot","Stage","Provider","Cost"]
["_C1A_EAST",1,"n/a","AA Projects Ltd",8.9999999999999993E-3,19500,97500,null,null,null,"_C2_EAST",1,"Align Property Partners",502]
["_C1A_EAST",2,"n/a","AA Projects Ltd",6.8999999999999999E-3,19500,97500,null,null,null,"_C2_EAST",2,"Align Property Partners",430]
["_C1A_EAST",1,"n/a","Appleyard & Trew LLP",1.2E-2,18000,60000,null,null,null,"_C2_EAST",1,"Campbell Reith Hill LLP",800]
["_C1A_EAST",2,"n/a","Appleyard & Trew LLP",6.0000000000000001E-3,18000,60000,null,null,null,"_C2_EAST",2,"Campbell Reith Hill LLP",550]
["_C1A_EAST",1,"n/a","BWA",9.7999999999999997E-3,10000,75000,null,null,null,"_C2_EAST",1,"Carley Daines & Partners",525]
["_C1A_EAST",2,"n/a","BWA",7.0000000000000001E-3,10000,75000,null,null,null,"_C2_EAST",2,"Carley Daines & Partners",455]
["_C1A_EAST",1,"n/a","CPC Project Services LLP",8.9999999999999993E-3,10000,80000,null,null,null,"_C2_EAST",1,"Elluc Projects",637.5]
["_C1A_EAST",2,"n/a","CPC Project Services LLP",6.4999999999999997E-3,10000,80000,null,null,null,"_C2_EAST",2,"Elluc Projects",525]
["_C1A_EAST",1,"n/a","Currie & Brown UK Ltd",8.5000000000000006E-3,20000,75000,null,null,null,"_C2_EAST",1,"Pell Frischmann Consultants",750]
["_C1A_EAST",2,"n/a","Currie & Brown UK Ltd",6.4999999999999997E-3,20000,75000,null,null,null,"_C2_EAST",2,"Pell Frischmann Consultants",500]
["_C1A_EAST",1,"n/a","Edge Property Solutions",0.01,5000,112500,null,null,null,"_C2_EAST",1,"Portland Consulting",600]
["_C1A_EAST",2,"n/a","Edge Property Solutions",7.4999999999999997E-3,5000,112500,null,null,null,"_C2_EAST",2,"Portland Consulting",450]
["_C1A_EAST",1,"n/a","Faithful & Gould",5.1999999999999998E-3,15000,66000,null,null,null,"_C2_EAST",1,"Ridge and Partners LLP",675]
["_C1A_EAST",2,"n/a","Faithful & Gould",4.4000000000000003E-3,15000,66000,null,null,null,"_C2_EAST",2,"Ridge and Partners LLP",450]
["_C1A_EAST",1,"n/a","Identity Consult",1.2E-2,20000,85500,null,null,null,"_C2_EAST",1,"Shape Consulting Engineers",480]
["_C1A_EAST",2,"n/a","Identity Consult",8.0000000000000002E-3,20000,85500,null,null,null,"_C2_EAST",2,"Shape Consulting Engineers",400]
["_C1A_EAST",1,"n/a","Markhams Ltd",8.5000000000000006E-3,12000,80000,null,null,null,"_C2_EAST",1,"Sutcliffe",675]
["_C1A_EAST",2,"n/a","Markhams Ltd",7.0000000000000001E-3,12000,80000,null,null,null,"_C2_EAST",2,"Sutcliffe",525]
["_C1A_EAST",1,"n/a","Michael Dyson Associates Limited",8.9999999999999993E-3,16500,75000,null,null,null,"_C2_WEST",1,"Alan Johnston Partnership",562.5]
["_C1A_EAST",2,"n/a","Michael Dyson Associates Limited",6.0000000000000001E-3,16500,75000,null,null,null,"_C2_WEST",2,"Alan Johnston Partnership",412.5]
["_C1A_EAST",1,"n/a","Poole Dick Associates",8.9999999999999993E-3,13500,65000,null,null,null,"_C2_WEST",1,"Align Property Partners",502]
["_C1A_EAST",2,"n/a","Poole Dick Associates",8.0000000000000002E-3,13500,65000,null,null,null,"_C2_WEST",2,"Align Property Partners",430]
["_C1A_EAST",1,"n/a","Rider Levett Bucknall UK Ltd",1.026E-2,10000,63825,null,null,null,"_C2_WEST",1,"Bradshaw Gass & Hope LLP",600]
["_C1A_EAST",2,"n/a","Rider Levett Bucknall UK Ltd",1.026E-2,10000,63825,null,null,null,"_C2_WEST",2,"Bradshaw Gass & Hope LLP",480]
["_C1A_EAST",1,"n/a","Ridge and Partners LLP",8.3999999999999995E-3,3500,99000,null,null,null,"_C2_WEST",1,"Brennan Consult",680]
["_C1A_EAST",2,"n/a","Ridge and Partners LLP",6.6E-3,3500,99000,null,null,null,"_C2_WEST",2,"Brennan Consult",560]
["_C1A_EAST",1,"n/a","Savills UK Limited",8.9999999999999993E-3,9000,135000,null,null,null,"_C2_WEST",1,"Campbell Reith Hill LLP",800]
["_C1A_EAST",2,"n/a","Savills UK Limited",8.9999999999999993E-3,9000,135000,null,null,null,"_C2_WEST",2,"Campbell Reith Hill LLP",550]
["_C1A_EAST",1,"n/a","Tozer Gallagher LLP",7.2500000000000004E-3,26500,77500,null,null,null,"_C2_WEST",1,"Carley Daines & Partners",525]
["_C1A_EAST",2,"n/a","Tozer Gallagher LLP",6.7499999999999999E-3,26500,77500,null,null,null,"_C2_WEST",2,"Carley Daines & Partners",455]
["_C1A_EAST",1,"n/a","Vextrix",1.3000000000000001E-2,7500,12500,null,null,null,"_C2_WEST",1,"Elluc Projects",637.5]
["_C1A_EAST",2,"n/a","Vextrix",0.01,7500,12500,null,null,null,"_C2_WEST",2,"Elluc Projects",525]
["_C1A_EAST",1,"n/a","Whiteley Eaves Ltd",6.4999999999999997E-3,3250,19250,null,null,null,"_C2_WEST",1,"Pell Frischmann Consultants",750]
["_C1A_EAST",2,"n/a","Whiteley Eaves Ltd",5.4999999999999997E-3,3250,19250,null,null,null,"_C2_WEST",2,"Pell Frischmann Consultants",500]
["_C1A_EAST",1,"n/a","Wilkinson Cowan Partnership",8.5000000000000006E-3,15000,72500,null,null,null,"_C2_WEST",1,"Portland Consulting",600]
["_C1A_EAST",2,"n/a","Wilkinson Cowan Partnership",6.4999999999999997E-3,15000,72500,null,null,null,"_C2_WEST",2,"Portland Consulting",450]
["_C1A_WEST",1,"n/a","AA Projects Ltd",8.9999999999999993E-3,19500,97500,null,null,null,"_C2_WEST",1,"Ridge and Partners LLP",675]
["_C1A_WEST",2,"n/a","AA Projects Ltd",6.8999999999999999E-3,19500,97500,null,null,null,"_C2_WEST",2,"Ridge and Partners LLP",450]
["_C1A_WEST",1,"n/a","Appleyard & Trew LLP",1.2E-2,18000,60000,null,null,null,"_C2_WEST",1,"Shape Consulting Engineers",480]
["_C1A_WEST",2,"n/a","Appleyard & Trew LLP",6.0000000000000001E-3,18000,60000,null,null,null,"_C2_WEST",2,"Shape Consulting Engineers",400]
["_C1A_WEST",1,"n/a","CPC Project Services LLP",8.9999999999999993E-3,10000,80000,null,null,null,"_C2_WEST",1,"Sutcliffe",675]
["_C1A_WEST",2,"n/a","CPC Project Services LLP",6.4999999999999997E-3,10000,80000,null,null,null,"_C2_WEST",2,"Sutcliffe",525]
["_C1A_WEST",1,"n/a","Currie & Brown UK Ltd",8.5000000000000006E-3,20000,75000,null,null,null,"_C3_EAST",1,"Align Property Partners",502]
["_C1A_WEST",2,"n/a","Currie & Brown UK Ltd",6.4999999999999997E-3,20000,75000,null,null,null,"_C3_EAST",2,"Align Property Partners",427]
["_C1A_WEST",1,"n/a","Edge Property Solutions",0.01,5000,112500,null,null,null,"_C3_EAST",3,"Align Property Partners",427]
["_C1A_WEST",2,"n/a","Edge Property Solutions",7.4999999999999997E-3,5000,112500,null,null,null,"_C3_EAST",1,"Anderton Gables",960]
["_C1A_WEST",1,"n/a","Faithful & Gould",5.1999999999999998E-3,15000,66000,null,null,null,"_C3_EAST",2,"Anderton Gables",600]
["_C1A_WEST",2,"n/a","Faithful & Gould",4.4000000000000003E-3,15000,66000,null,null,null,"_C3_EAST",3,"Anderton Gables",880]
["_C1A_WEST",1,"n/a","Identity Consult",1.2E-2,20000,85500,null,null,null,"_C3_EAST",1,"Faithful & Gould",550]
["_C1A_WEST",2,"n/a","Identity Consult",8.0000000000000002E-3,20000,85500,null,null,null,"_C3_EAST",2,"Faithful & Gould",420]
["_C1A_WEST",1,"n/a","Markhams Ltd",8.5000000000000006E-3,12000,80000,null,null,null,"_C3_EAST",3,"Faithful & Gould",450]
["_C1A_WEST",2,"n/a","Markhams Ltd",7.0000000000000001E-3,12000,80000,null,null,null,"_C3_EAST",1,"MAC Construction Consultants Ltd",500]
["_C1A_WEST",1,"n/a","Michael Dyson Associates Limited",8.9999999999999993E-3,16500,75000,null,null,null,"_C3_EAST",2,"MAC Construction Consultants Ltd",350]
["_C1A_WEST",2,"n/a","Michael Dyson Associates Limited",6.0000000000000001E-3,16500,75000,null,null,null,"_C3_EAST",3,"MAC Construction Consultants Ltd",350]
["_C1A_WEST",1,"n/a","Poole Dick Associates",8.9999999999999993E-3,13500,65000,null,null,null,"_C3_EAST",1,"Rider Levett Bucknall UK Ltd",712.5]
["_C1A_WEST",2,"n/a","Poole Dick Associates",8.0000000000000002E-3,13500,65000,null,null,null,"_C3_EAST",2,"Rider Levett Bucknall UK Ltd",502.5]
["_C1A_WEST",1,"n/a","Rider Levett Bucknall UK Ltd",1.026E-2,10000,63825,null,null,null,"_C3_EAST",3,"Rider Levett Bucknall UK Ltd",502.5]
["_C1A_WEST",2,"n/a","Rider Levett Bucknall UK Ltd",1.026E-2,10000,63825,null,null,null,"_C3_EAST",1,"Sutcliffe",675]
["_C1A_WEST",1,"n/a","Ridge and Partners LLP",8.3999999999999995E-3,3500,99000,null,null,null,"_C3_EAST",2,"Sutcliffe",525]
["_C1A_WEST",2,"n/a","Ridge and Partners LLP",6.6E-3,3500,99000,null,null,null,"_C3_EAST",3,"Sutcliffe",675]
["_C1A_WEST",1,"n/a","Savills UK Limited",8.9999999999999993E-3,9000,135000,null,null,null,"_C3_EAST",1,"Waldeck Associates Limited",650]
["_C1A_WEST",2,"n/a","Savills UK Limited",8.9999999999999993E-3,9000,135000,null,null,null,"_C3_EAST",2,"Waldeck Associates Limited",575]
["_C1A_WEST",1,"n/a","SDA Consulting LLP",1.24E-2,12400,91500,null,null,null,"_C3_EAST",3,"Waldeck Associates Limited",650]
["_C1A_WEST",2,"n/a","SDA Consulting LLP",7.4000000000000003E-3,12400,91500,null,null,null,"_C3_EAST",1,"Wilkinson Cowan Partnership",520]
["_C1A_WEST",1,"n/a","Simon Fenton Partnership",9.1000000000000004E-3,11750,114800,null,null,null,"_C3_EAST",2,"Wilkinson Cowan Partnership",320]
["_C1A_WEST",2,"n/a","Simon Fenton Partnership",8.2000000000000007E-3,11750,114800,null,null,null,"_C3_EAST",3,"Wilkinson Cowan Partnership",600]
["_C1A_WEST",1,"n/a","Tozer Gallagher LLP",7.0000000000000001E-3,25000,75000,null,null,null,"_C3_WEST",1,"Align Property Partners",502]
["_C1A_WEST",2,"n/a","Tozer Gallagher LLP",6.4999999999999997E-3,25000,75000,null,null,null,"_C3_WEST",2,"Align Property Partners",427]
["_C1A_WEST",1,"n/a","Vextrix",1.3000000000000001E-2,7500,12500,null,null,null,"_C3_WEST",3,"Align Property Partners",427]
["_C1A_WEST",2,"n/a","Vextrix",0.01,7500,12500,null,null,null,"_C3_WEST",1,"Anderton Gables",960]
["_C1A_WEST",1,"n/a","Whiteley Eaves Ltd",6.4999999999999997E-3,3250,55000,null,null,null,"_C3_WEST",2,"Anderton Gables",600]
["_C1A_WEST",2,"n/a","Whiteley Eaves Ltd",5.4999999999999997E-3,3250,55000,null,null,null,"_C3_WEST",3,"Anderton Gables",880]
["_C1A_WEST",1,"n/a","Wilkinson Cowan Partnership",8.5000000000000006E-3,15000,80000,null,null,null,"_C3_WEST",1,"Faithful & Gould",550]
["_C1A_WEST",2,"n/a","Wilkinson Cowan Partnership",6.4999999999999997E-3,15000,80000,null,null,null,"_C3_WEST",2,"Faithful & Gould",420]
["_C1B_EAST",1,"n/a","AA Projects Ltd",1.2499999999999999E-2,25500,119500,null,null,null,"_C3_WEST",3,"Faithful & Gould",450]
["_C1B_EAST",2,"n/a","AA Projects Ltd",8.6E-3,25500,119500,null,null,null,"_C3_WEST",1,"MAC Construction Consultants Ltd",500]
["_C1B_EAST",1,"n/a","AECOM",1.6500000000000001E-2,15000,111000,null,null,null,"_C3_WEST",2,"MAC Construction Consultants Ltd",350]
["_C1B_EAST",2,"n/a","AECOM",1.1299999999999999E-2,15000,111000,null,null,null,"_C3_WEST",3,"MAC Construction Consultants Ltd",350]
["_C1B_EAST",1,"n/a","Anderton Gables",1.4999999999999999E-2,35000,220000,null,null,null,"_C3_WEST",1,"Rider Levett Bucknall UK Ltd",712.5]
["_C1B_EAST",2,"n/a","Anderton Gables",1.0999999999999999E-2,35000,220000,null,null,null,"_C3_WEST",2,"Rider Levett Bucknall UK Ltd",502.5]
["_C1B_EAST",1,"n/a","Arcus Consulting LLP",9.4999999999999998E-3,12000,107000,null,null,null,"_C3_WEST",3,"Rider Levett Bucknall UK Ltd",502.5]
["_C1B_EAST",2,"n/a","Arcus Consulting LLP",7.4999999999999997E-3,12000,107000,null,null,null,"_C3_WEST",1,"Sutcliffe",675]
["_C1B_EAST",1,"n/a","CPC Project Services LLP",1.0500000000000001E-2,10000,80000,null,null,null,"_C3_WEST",2,"Sutcliffe",525]
["_C1B_EAST",2,"n/a","CPC Project Services LLP",8.0000000000000002E-3,10000,80000,null,null,null,"_C3_WEST",3,"Sutcliffe",675]
["_C1B_EAST",1,"n/a","Edge Property Solutions",1.15E-2,7000,127500,null,null,null,"_C3_WEST",1,"Waldeck Associates Limited",650]
["_C1B_EAST",2,"n/a","Edge Property Solutions",8.5000000000000006E-3,7000,127500,null,null,null,"_C3_WEST",2,"Waldeck Associates Limited",575]
["_C1B_EAST",1,"n/a","Faithful & Gould",8.3000000000000001E-3,17750,84000,null,null,null,"_C3_WEST",3,"Waldeck Associates Limited",650]
["_C1B_EAST",2,"n/a","Faithful & Gould",6.3E-3,17750,84000,null,null,null,"_C3_WEST",1,"Wilkinson Cowan Partnership",520]
["_C1B_EAST",1,"n/a","Markhams Ltd",9.4999999999999998E-3,13500,83000,null,null,null,"_C3_WEST",2,"Wilkinson Cowan Partnership",320]
["_C1B_EAST",2,"n/a","Markhams Ltd",7.4999999999999997E-3,13500,83000,null,null,null,"_C3_WEST",3,"Wilkinson Cowan Partnership",600]
["_C1B_EAST",1,"n/a","Michael Dyson Associates Limited",0.01,17000,75000,null,null,null,"_C5_EAST",1,"Amrin Resources Ltd",260]
["_C1B_EAST",2,"n/a","Michael Dyson Associates Limited",7.0000000000000001E-3,17000,75000,null,null,null,"_C5_EAST",1,"Currie & Brown UK Ltd",337.5]
["_C1B_EAST",1,"n/a","Rider Levett Bucknall UK Ltd",1.2760000000000001E-2,10975,77325,null,null,null,"_C5_EAST",1,"Hickton Consultants",336]
["_C1B_EAST",2,"n/a","Rider Levett Bucknall UK Ltd",9.2999999999999992E-3,10975,77325,null,null,null,"_C5_EAST",1,"MAC Construction Consultants Ltd",300]
["_C1B_EAST",1,"n/a","Ridge and Partners LLP",0.01,4250,114000,null,null,null,"_C5_EAST",1,"Waldeck Associates Limited",595]
["_C1B_EAST",2,"n/a","Ridge and Partners LLP",8.3000000000000001E-3,4250,114000,null,null,null,"_C5_EAST",1,"Whiteley Eaves Ltd",150]
["_C1B_EAST",1,"n/a","RJD Associates (North West) Limited",1.0699999999999999E-2,12500,96000," ",null,null,"_C5_EAST",1,"Wilkinson Cowan Partnership",300]
["_C1B_EAST",2,"n/a","RJD Associates (North West) Limited",7.7000000000000002E-3,12500,96000,null,null,null,"_C5_WEST",1,"Aegis Services Ltd",250]
["_C1B_EAST",1,"n/a","Simon Fenton Partnership",1.24E-2,15065,135500,null,null,null,"_C5_WEST",1,"Amrin Resources Ltd",260]
["_C1B_EAST",2,"n/a","Simon Fenton Partnership",1.0500000000000001E-2,15065,135500,null,null,null,"_C5_WEST",1,"Currie & Brown UK Ltd",337.5]
["_C1B_EAST",1,"n/a","Thornton Firkin & Partners",1.15E-2,17000,100000,null,null,null,"_C5_WEST",1,"Hickton Consultants",336]
["_C1B_EAST",2,"n/a","Thornton Firkin & Partners",8.0999999999999996E-3,17000,100000,null,null,null,"_C5_WEST",1,"MAC Construction Consultants Ltd",300]
["_C1B_EAST",1,"n/a","Tozer Gallagher LLP",9.2499999999999995E-3,32000,90000,null,null,null,"_C5_WEST",1,"SDA Consulting LLP",360]
["_C1B_EAST",2,"n/a","Tozer Gallagher LLP",8.2500000000000004E-3,32000,90000,null,null,null,"_C5_WEST",1,"Waldeck Associates Limited",595]
["_C1B_EAST",1,"n/a","Whiteley Eaves Ltd",7.7999999999999996E-3,3900,62000,null,null,null,"_C5_WEST",1,"Whiteley Eaves Ltd",150]
["_C1B_EAST",2,"n/a","Whiteley Eaves Ltd",6.1999999999999998E-3,3900,62000,null,null,null,"_C5_WEST",1,"Wilkinson Cowan Partnership",300]
["_C1B_EAST",1,"n/a","Wilkinson Cowan Partnership",1.03E-2,18500,80000]
["_C1B_EAST",2,"n/a","Wilkinson Cowan Partnership",7.3000000000000001E-3,18500,80000]
["_C1B_EAST",1,"n/a","WYG Engineering Limited",1.35E-2,12000,115000]
["_C1B_EAST",2,"n/a","WYG Engineering Limited",9.1999999999999998E-3,12000,115000]
["_C1B_WEST",1,"n/a","AA Projects Ltd",1.2499999999999999E-2,25500,119500]
["_C1B_WEST",2,"n/a","AA Projects Ltd",8.6E-3,25500,119500]
["_C1B_WEST",1,"n/a","AECOM",1.61E-2,15000,111000]
["_C1B_WEST",2,"n/a","AECOM",1.0999999999999999E-2,15000,111000]
["_C1B_WEST",1,"n/a","Anderton Gables",1.4999999999999999E-2,35000,220000]
["_C1B_WEST",2,"n/a","Anderton Gables",1.0999999999999999E-2,35000,220000]
["_C1B_WEST",1,"n/a","Arcus Consulting LLP",9.4999999999999998E-3,12000,107000]
["_C1B_WEST",2,"n/a","Arcus Consulting LLP",7.4999999999999997E-3,12000,107000]
["_C1B_WEST",1,"n/a","Bradshaw Gass & Hope LLP",1.15E-2,7500,82500]
["_C1B_WEST",2,"n/a","Bradshaw Gass & Hope LLP",8.0000000000000002E-3,7500,82500]
["_C1B_WEST",1,"n/a","CPC Project Services LLP",1.0500000000000001E-2,10000,80000]
["_C1B_WEST",2,"n/a","CPC Project Services LLP",8.0000000000000002E-3,10000,80000]
["_C1B_WEST",1,"n/a","Edge Property Solutions",1.15E-2,7000,127500]
["_C1B_WEST",2,"n/a","Edge Property Solutions",8.5000000000000006E-3,7000,127500]
["_C1B_WEST",1,"n/a","Faithful & Gould",8.3000000000000001E-3,17750,84000]
["_C1B_WEST",2,"n/a","Faithful & Gould",6.3E-3,17750,84000]
["_C1B_WEST",1,"n/a","Markhams Ltd",9.4999999999999998E-3,13500,83000]
["_C1B_WEST",2,"n/a","Markhams Ltd",7.4999999999999997E-3,13500,83000]
["_C1B_WEST",1,"n/a","Michael Dyson Associates Limited",0.01,17000,75000]
["_C1B_WEST",2,"n/a","Michael Dyson Associates Limited",7.0000000000000001E-3,17000,75000]
["_C1B_WEST",1,"n/a","Rider Levett Bucknall UK Ltd",1.2760000000000001E-2,10975,77325]
["_C1B_WEST",2,"n/a","Rider Levett Bucknall UK Ltd",9.2999999999999992E-3,10975,77325]
["_C1B_WEST",1,"n/a","Ridge and Partners LLP",0.01,4250,114000]
["_C1B_WEST",2,"n/a","Ridge and Partners LLP",8.3000000000000001E-3,4250,114000]
["_C1B_WEST",1,"n/a","RJD Associates (North West) Limited",1.0699999999999999E-2,12500,96000]
["_C1B_WEST",2,"n/a","RJD Associates (North West) Limited",7.7000000000000002E-3,12500,96000]
["_C1B_WEST",1,"n/a","Simon Fenton Partnership",1.12E-2,13130,119975]
["_C1B_WEST",2,"n/a","Simon Fenton Partnership",9.4000000000000004E-3,13130,119975]
["_C1B_WEST",1,"n/a","Thornton Firkin & Partners",1.15E-2,17000,100000]
["_C1B_WEST",2,"n/a","Thornton Firkin & Partners",8.0999999999999996E-3,17000,100000]
["_C1B_WEST",1,"n/a","Tozer Gallagher LLP",8.9999999999999993E-3,30500,88500]
["_C1B_WEST",2,"n/a","Tozer Gallagher LLP",8.0000000000000002E-3,30500,88500]
["_C1B_WEST",1,"n/a","Whiteley Eaves Ltd",7.7999999999999996E-3,3900,62000]
["_C1B_WEST",2,"n/a","Whiteley Eaves Ltd",6.1999999999999998E-3,3900,62000]
["_C1B_WEST",1,"n/a","Wilkinson Cowan Partnership",1.03E-2,18500,80000]
["_C1B_WEST",2,"n/a","Wilkinson Cowan Partnership",7.3000000000000001E-3,18500,80000]
["_C1B_WEST",1,"n/a","WYG Engineering Limited",1.35E-2,12000,115000]
["_C1B_WEST",2,"n/a","WYG Engineering Limited",9.1999999999999998E-3,12000,115000]
["_C2_EAST",1,"n/a","Align Property Partners",5.28E-3,5400,45600]
["_C2_EAST",2,"n/a","Align Property Partners",3.5999999999999999E-3,5400,45600]
["_C2_EAST",1,"n/a","Campbell Reith Hill LLP",5.4999999999999997E-3,35000,82500]
["_C2_EAST",2,"n/a","Campbell Reith Hill LLP",5.4999999999999997E-3,35000,82500]
["_C2_EAST",1,"n/a","Carley Daines & Partners",7.4999999999999997E-3,9000,49500]
["_C2_EAST",2,"n/a","Carley Daines & Partners",6.0000000000000001E-3,9000,49500]
["_C2_EAST",1,"n/a","Elluc Projects",8.5000000000000006E-3,25000,55000]
["_C2_EAST",2,"n/a","Elluc Projects",8.0000000000000002E-3,25000,55000]
["_C2_EAST",1,"n/a","Pell Frischmann Consultants",0.01,500,75000]
["_C2_EAST",2,"n/a","Pell Frischmann Consultants",5.0000000000000001E-3,500,75000]
["_C2_EAST",1,"n/a","Portland Consulting",8.0000000000000002E-3,9000,99000]
["_C2_EAST",2,"n/a","Portland Consulting",7.0000000000000001E-3,9000,99000]
["_C2_EAST",1,"n/a","Ridge and Partners LLP",6.4000000000000003E-3,5000,84000]
["_C2_EAST",2,"n/a","Ridge and Partners LLP",5.5999999999999999E-3,5000,84000]
["_C2_EAST",1,"n/a","Shape Consulting Engineers",7.0000000000000001E-3,5000,90000]
["_C2_EAST",2,"n/a","Shape Consulting Engineers",6.0000000000000001E-3,5000,90000]
["_C2_EAST",1,"n/a","Sutcliffe",1.2E-2,5000,135000]
["_C2_EAST",2,"n/a","Sutcliffe",1.0999999999999999E-2,5000,135000]
["_C2_WEST",1,"n/a","Alan Johnston Partnership",7.0000000000000001E-3,6250,90000]
["_C2_WEST",2,"n/a","Alan Johnston Partnership",6.4999999999999997E-3,6250,90000]
["_C2_WEST",1,"n/a","Align Property Partners",5.28E-3,5400,45600]
["_C2_WEST",2,"n/a","Align Property Partners",3.5999999999999999E-3,5400,45600]
["_C2_WEST",1,"n/a","Bradshaw Gass & Hope LLP",7.0000000000000001E-3,4500,78750]
["_C2_WEST",2,"n/a","Bradshaw Gass & Hope LLP",6.0000000000000001E-3,4500,78750]
["_C2_WEST",1,"n/a","Brennan Consult",6.4999999999999997E-3,4000,80000]
["_C2_WEST",2,"n/a","Brennan Consult",6.0000000000000001E-3,4000,80000]
["_C2_WEST",1,"n/a","Campbell Reith Hill LLP",5.4999999999999997E-3,35000,82500]
["_C2_WEST",2,"n/a","Campbell Reith Hill LLP",5.4999999999999997E-3,35000,82500]
["_C2_WEST",1,"n/a","Carley Daines & Partners",7.4999999999999997E-3,9000,49500]
["_C2_WEST",2,"n/a","Carley Daines & Partners",6.0000000000000001E-3,9000,49500]
["_C2_WEST",1,"n/a","Elluc Projects",8.5000000000000006E-3,25000,55000]
["_C2_WEST",2,"n/a","Elluc Projects",8.0000000000000002E-3,25000,55000]
["_C2_WEST",1,"n/a","Pell Frischmann Consultants",0.01,500,75000]
["_C2_WEST",2,"n/a","Pell Frischmann Consultants",5.0000000000000001E-3,500,75000]
["_C2_WEST",1,"n/a","Portland Consulting",8.0000000000000002E-3,9000,99000]
["_C2_WEST",2,"n/a","Portland Consulting",7.0000000000000001E-3,9000,99000]
["_C2_WEST",1,"n/a","Ridge and Partners LLP",6.4000000000000003E-3,5000,84000]
["_C2_WEST",2,"n/a","Ridge and Partners LLP",5.5999999999999999E-3,5000,84000]
["_C2_WEST",1,"n/a","Shape Consulting Engineers",7.0000000000000001E-3,5000,90000]
["_C2_WEST",2,"n/a","Shape Consulting Engineers",6.0000000000000001E-3,5000,90000]
["_C2_WEST",1,"n/a","Sutcliffe",1.0999999999999999E-2,5000,135000]
["_C2_WEST",2,"n/a","Sutcliffe",0.01,5000,135000]
["_C3_EAST",1,"n/a","Align Property Partners",3.9399999999999998E-2,48000,264000]
["_C3_EAST",2,"n/a","Align Property Partners",3.61E-2,48000,264000]
["_C3_EAST",1,"n/a","Anderton Gables",3.2500000000000001E-2,50000,450000]
["_C3_EAST",2,"n/a","Anderton Gables",0.03,50000,450000]
["_C3_EAST",1,"n/a","Faithful & Gould",4.8000000000000001E-2,13500,60000]
["_C3_EAST",2,"n/a","Faithful & Gould",4.2000000000000003E-2,13500,60000]
["_C3_EAST",1,"n/a","MAC Construction Consultants Ltd",0.06,6000,65000]
["_C3_EAST",2,"n/a","MAC Construction Consultants Ltd",4.4999999999999998E-2,6000,65000]
["_C3_EAST",1,"n/a","Rider Levett Bucknall UK Ltd",3.5000000000000003E-2,4000,210000]
["_C3_EAST",2,"n/a","Rider Levett Bucknall UK Ltd",1.9E-2,4000,210000]
["_C3_EAST",1,"n/a","Sutcliffe",0.05,5000,500000]
["_C3_EAST",2,"n/a","Sutcliffe",0.04,5000,500000]
["_C3_EAST",1,"n/a","Waldeck Associates Limited",2.1999999999999999E-2,9500,180000]
["_C3_EAST",2,"n/a","Waldeck Associates Limited",1.7000000000000001E-2,9500,180000]
["_C3_EAST",1,"n/a","Wilkinson Cowan Partnership",0.06,20000,80000]
["_C3_EAST",2,"n/a","Wilkinson Cowan Partnership",0.05,20000,80000]
["_C3_WEST",1,"n/a","Align Property Partners",3.9399999999999998E-2,48000,264000]
["_C3_WEST",2,"n/a","Align Property Partners",3.61E-2,48000,264000]
["_C3_WEST",1,"n/a","Anderton Gables",3.2500000000000001E-2,50000,450000]
["_C3_WEST",2,"n/a","Anderton Gables",0.03,50000,450000]
["_C3_WEST",1,"n/a","Faithful & Gould",4.8000000000000001E-2,13500,60000]
["_C3_WEST",2,"n/a","Faithful & Gould",4.2000000000000003E-2,13500,60000]
["_C3_WEST",1,"n/a","MAC Construction Consultants Ltd",0.06,6000,65000]
["_C3_WEST",2,"n/a","MAC Construction Consultants Ltd",4.4999999999999998E-2,6000,65000]
["_C3_WEST",1,"n/a","Rider Levett Bucknall UK Ltd",3.5000000000000003E-2,4000,210000]
["_C3_WEST",2,"n/a","Rider Levett Bucknall UK Ltd",1.9E-2,4000,210000]
["_C3_WEST",1,"n/a","Sutcliffe",0.05,5000,500000]
["_C3_WEST",2,"n/a","Sutcliffe",0.04,5000,500000]
["_C3_WEST",1,"n/a","Waldeck Associates Limited",2.1999999999999999E-2,9500,180000]
["_C3_WEST",2,"n/a","Waldeck Associates Limited",1.7000000000000001E-2,9500,180000]
["_C3_WEST",1,"n/a","Wilkinson Cowan Partnership",0.06,20000,80000]
["_C3_WEST",2,"n/a","Wilkinson Cowan Partnership",0.05,20000,80000]
["_C4A_EAST",1,"C4 Stage 2 - With/Without Planning Consultant","Acanthus WSM Architects",1.5100000000000001E-2,11325,118500]
["_C4A_EAST",2,"C4 Stage 2 - With/Without Planning Consultant","Acanthus WSM Architects",1.34E-2,11325,118500]
["_C4A_EAST",1,"C4 Stage 1 - With Planning Consultant","Acanthus WSM Architects",7.1000000000000004E-3,4850,68200]
["_C4A_EAST",2,"C4 Stage 1 - With Planning Consultant","Acanthus WSM Architects",6.1999999999999998E-3,4850,68200]
["_C4A_EAST",1,"C4 Stage 1 - Without Planning Consultant","Acanthus WSM Architects",8.0999999999999996E-3,4850,79000]
["_C4A_EAST",2,"C4 Stage 1 - Without Planning Consultant","Acanthus WSM Architects",7.1999999999999998E-3,4850,79000]
["_C4A_EAST",1,"C4 Stage 2 - With/Without Planning Consultant","AEW Architects",1.0699999999999999E-2,2470,135000]
["_C4A_EAST",2,"C4 Stage 2 - With/Without Planning Consultant","AEW Architects",9.9000000000000008E-3,2470,135000]
["_C4A_EAST",1,"C4 Stage 1 - With Planning Consultant","AEW Architects",8.9999999999999993E-3,3197,122550]
["_C4A_EAST",2,"C4 Stage 1 - With Planning Consultant","AEW Architects",8.6999999999999994E-3,3197,122550]
["_C4A_EAST",1,"C4 Stage 1 - Without Planning Consultant","AEW Architects",9.4999999999999998E-3,3197,129000]
["_C4A_EAST",2,"C4 Stage 1 - Without Planning Consultant","AEW Architects",8.9999999999999993E-3,3197,129000]
["_C4A_EAST",1,"C4 Stage 2 - With/Without Planning Consultant","Bernard Taylor Partnership",7.0000000000000001E-3,3000,90000]
["_C4A_EAST",2,"C4 Stage 2 - With/Without Planning Consultant","Bernard Taylor Partnership",6.4999999999999997E-3,3000,90000]
["_C4A_EAST",1,"C4 Stage 1 - With Planning Consultant","Bernard Taylor Partnership",7.0000000000000001E-3,3000,90000]
["_C4A_EAST",2,"C4 Stage 1 - With Planning Consultant","Bernard Taylor Partnership",6.0000000000000001E-3,3000,90000]
["_C4A_EAST",1,"C4 Stage 1 - Without Planning Consultant","Bernard Taylor Partnership",8.0000000000000002E-3,3000,90000]
["_C4A_EAST",2,"C4 Stage 1 - Without Planning Consultant","Bernard Taylor Partnership",7.0000000000000001E-3,3000,90000]
["_C4A_EAST",1,"C4 Stage 2 - With/Without Planning Consultant","Brewster Bye Architects",1.14E-2,5700,95000]
["_C4A_EAST",2,"C4 Stage 2 - With/Without Planning Consultant","Brewster Bye Architects",9.4999999999999998E-3,5700,95000]
["_C4A_EAST",1,"C4 Stage 1 - With Planning Consultant","Brewster Bye Architects",5.4999999999999997E-3,2750,60000]
["_C4A_EAST",2,"C4 Stage 1 - With Planning Consultant","Brewster Bye Architects",4.5999999999999999E-3,2750,60000]
["_C4A_EAST",1,"C4 Stage 1 - Without Planning Consultant","Brewster Bye Architects",6.1000000000000004E-3,3050,65000]
["_C4A_EAST",2,"C4 Stage 1 - Without Planning Consultant","Brewster Bye Architects",5.1000000000000004E-3,3050,65000]
["_C4A_EAST",1,"C4 Stage 2 - With/Without Planning Consultant","Condy & Lofthouse Ltd",1.0500000000000001E-2,4300,230000]
["_C4A_EAST",2,"C4 Stage 2 - With/Without Planning Consultant","Condy & Lofthouse Ltd",9.4999999999999998E-3,4300,230000]
["_C4A_EAST",1,"C4 Stage 1 - With Planning Consultant","Condy & Lofthouse Ltd",6.4999999999999997E-3,2600,133500]
["_C4A_EAST",2,"C4 Stage 1 - With Planning Consultant","Condy & Lofthouse Ltd",5.4999999999999997E-3,2600,133500]
["_C4A_EAST",1,"C4 Stage 1 - Without Planning Consultant","Condy & Lofthouse Ltd",8.0000000000000002E-3,3200,170000]
["_C4A_EAST",2,"C4 Stage 1 - Without Planning Consultant","Condy & Lofthouse Ltd",7.0000000000000001E-3,3200,170000]
["_C4A_EAST",1,"C4 Stage 2 - With/Without Planning Consultant","DK Architects",1.4489999999999999E-2,2200,140000]
["_C4A_EAST",2,"C4 Stage 2 - With/Without Planning Consultant","DK Architects",1.311E-2,2200,140000]
["_C4A_EAST",1,"C4 Stage 1 - With Planning Consultant","DK Architects",6.1999999999999998E-3,930,55000]
["_C4A_EAST",2,"C4 Stage 1 - With Planning Consultant","DK Architects",5.5799999999999999E-3,930,55000]
["_C4A_EAST",1,"C4 Stage 1 - Without Planning Consultant","DK Architects",6.5100000000000002E-3,975,60000]
["_C4A_EAST",2,"C4 Stage 1 - Without Planning Consultant","DK Architects",5.8900000000000003E-3,975,60000]
["_C4A_EAST",1,"C4 Stage 2 - With/Without Planning Consultant","GWP Architecture Ltd",8.0999999999999996E-3,15000,150000]
["_C4A_EAST",2,"C4 Stage 2 - With/Without Planning Consultant","GWP Architecture Ltd",8.6250000000000007E-3,15000,150000]
["_C4A_EAST",1,"C4 Stage 1 - With Planning Consultant","GWP Architecture Ltd",4.7999999999999996E-3,10000,75000]
["_C4A_EAST",2,"C4 Stage 1 - With Planning Consultant","GWP Architecture Ltd",2.7000000000000001E-3,10000,75000]
["_C4A_EAST",1,"C4 Stage 1 - Without Planning Consultant","GWP Architecture Ltd",5.4000000000000003E-3,10000,97500]
["_C4A_EAST",2,"C4 Stage 1 - Without Planning Consultant","GWP Architecture Ltd",2.8999999999999998E-3,10000,97500]
["_C4A_EAST",1,"C4 Stage 2 - With/Without Planning Consultant","John McCall Architects",9.1000000000000004E-3,5625,90000]
["_C4A_EAST",2,"C4 Stage 2 - With/Without Planning Consultant","John McCall Architects",7.4999999999999997E-3,5625,90000]
["_C4A_EAST",1,"C4 Stage 1 - With Planning Consultant","John McCall Architects",8.6E-3,5000,90000]
["_C4A_EAST",2,"C4 Stage 1 - With Planning Consultant","John McCall Architects",7.1000000000000004E-3,5000,90000]
["_C4A_EAST",1,"C4 Stage 1 - Without Planning Consultant","John McCall Architects",9.1000000000000004E-3,5625,90000]
["_C4A_EAST",2,"C4 Stage 1 - Without Planning Consultant","John McCall Architects",7.6E-3,5625,90000]
["_C4A_EAST",1,"C4 Stage 2 - With/Without Planning Consultant","Langtry-Langton Architects",1.2E-2,0,122000]
["_C4A_EAST",2,"C4 Stage 2 - With/Without Planning Consultant","Langtry-Langton Architects",1.0500000000000001E-2,0,122000]
["_C4A_EAST",1,"C4 Stage 1 - With Planning Consultant","Langtry-Langton Architects",6.0000000000000001E-3,0,50000]
["_C4A_EAST",2,"C4 Stage 1 - With Planning Consultant","Langtry-Langton Architects",4.7999999999999996E-3,0,50000]
["_C4A_EAST",1,"C4 Stage 1 - Without Planning Consultant","Langtry-Langton Architects",6.1999999999999998E-3,0,55000]
["_C4A_EAST",2,"C4 Stage 1 - Without Planning Consultant","Langtry-Langton Architects",5.1999999999999998E-3,0,55000]
["_C4A_EAST",1,"C4 Stage 2 - With/Without Planning Consultant","Michael Hyde and Associated Ltd",9.9749999999999995E-3,4000,149625]
["_C4A_EAST",2,"C4 Stage 2 - With/Without Planning Consultant","Michael Hyde and Associated Ltd",9.9749999999999995E-3,4000,149625]
["_C4A_EAST",1,"C4 Stage 1 - With Planning Consultant","Michael Hyde and Associated Ltd",5.2500000000000003E-3,4000,91350]
["_C4A_EAST",2,"C4 Stage 1 - With Planning Consultant","Michael Hyde and Associated Ltd",6.0899999999999999E-3,4000,91350]
["_C4A_EAST",1,"C4 Stage 1 - Without Planning Consultant","Michael Hyde and Associated Ltd",5.7749999999999998E-3,4000,94500]
["_C4A_EAST",2,"C4 Stage 1 - Without Planning Consultant","Michael Hyde and Associated Ltd",6.3E-3,4000,94500]
["_C4A_EAST",1,"C4 Stage 2 - With/Without Planning Consultant","MPSL Planning and Design",6.2500000000000003E-3,1000,67500]
["_C4A_EAST",2,"C4 Stage 2 - With/Without Planning Consultant","MPSL Planning and Design",5.2500000000000003E-3,1000,67500]
["_C4A_EAST",1,"C4 Stage 1 - With Planning Consultant","MPSL Planning and Design",5.4999999999999997E-3,1000,67500]
["_C4A_EAST",2,"C4 Stage 1 - With Planning Consultant","MPSL Planning and Design",4.4999999999999997E-3,1000,67500]
["_C4A_EAST",1,"C4 Stage 1 - Without Planning Consultant","MPSL Planning and Design",6.2500000000000003E-3,1350,99000]
["_C4A_EAST",2,"C4 Stage 1 - Without Planning Consultant","MPSL Planning and Design",5.2500000000000003E-3,1350,99000]
["_C4A_EAST",1,"C4 Stage 2 - With/Without Planning Consultant","Paddock Johnson Partnership",1.55E-2,1550,213000]
["_C4A_EAST",2,"C4 Stage 2 - With/Without Planning Consultant","Paddock Johnson Partnership",1.4200000000000001E-2,1550,213000]
["_C4A_EAST",1,"C4 Stage 1 - With Planning Consultant","Paddock Johnson Partnership",6.4000000000000003E-3,650,78000]
["_C4A_EAST",2,"C4 Stage 1 - With Planning Consultant","Paddock Johnson Partnership",5.1000000000000004E-3,650,78000]
["_C4A_EAST",1,"C4 Stage 1 - Without Planning Consultant","Paddock Johnson Partnership",6.4999999999999997E-3,650,78000]
["_C4A_EAST",2,"C4 Stage 1 - Without Planning Consultant","Paddock Johnson Partnership",5.1999999999999998E-3,650,78000]
["_C4A_EAST",1,"C4 Stage 2 - With/Without Planning Consultant","Pozzoni LLP",8.9999999999999993E-3,9500,93333.333333333299]
["_C4A_EAST",2,"C4 Stage 2 - With/Without Planning Consultant","Pozzoni LLP",8.5000000000000006E-3,9500,95000]
["_C4A_EAST",1,"C4 Stage 1 - With Planning Consultant","Pozzoni LLP",7.6E-3,9000,93333.333333333299]
["_C4A_EAST",2,"C4 Stage 1 - With Planning Consultant","Pozzoni LLP",6.4999999999999997E-3,9000,90000]
["_C4A_EAST",1,"C4 Stage 1 - Without Planning Consultant","Pozzoni LLP",8.2000000000000007E-3,9500,93333.333333333299]
["_C4A_EAST",2,"C4 Stage 1 - Without Planning Consultant","Pozzoni LLP",6.7000000000000002E-3,9500,95000]
["_C4A_EAST",1,"C4 Stage 2 - With/Without Planning Consultant","Ridge and Partners LLP",6.0000000000000001E-3,4750,81000]
["_C4A_EAST",2,"C4 Stage 2 - With/Without Planning Consultant","Ridge and Partners LLP",5.4000000000000003E-3,4750,81000]
["_C4A_EAST",1,"C4 Stage 1 - With Planning Consultant","Ridge and Partners LLP",6.7999999999999996E-3,5000,93000]
["_C4A_EAST",2,"C4 Stage 1 - With Planning Consultant","Ridge and Partners LLP",6.1999999999999998E-3,5000,93000]
["_C4A_EAST",1,"C4 Stage 1 - Without Planning Consultant","Ridge and Partners LLP",6.7999999999999996E-3,5000,93000]
["_C4A_EAST",2,"C4 Stage 1 - Without Planning Consultant","Ridge and Partners LLP",6.1999999999999998E-3,5000,93000]
["_C4A_EAST",1,"C4 Stage 2 - With/Without Planning Consultant","Triangle Architects",1.44E-2,8000,165750]
["_C4A_EAST",2,"C4 Stage 2 - With/Without Planning Consultant","Triangle Architects",1.23E-2,8000,165750]
["_C4A_EAST",1,"C4 Stage 1 - With Planning Consultant","Triangle Architects",7.3000000000000001E-3,4700,75750]
["_C4A_EAST",2,"C4 Stage 1 - With Planning Consultant","Triangle Architects",6.3E-3,4700,75750]
["_C4A_EAST",1,"C4 Stage 1 - Without Planning Consultant","Triangle Architects",8.6999999999999994E-3,5500,92250]
["_C4A_EAST",2,"C4 Stage 1 - Without Planning Consultant","Triangle Architects",7.4000000000000003E-3,5500,92250]
["_C4A_EAST",1,"C4 Stage 2 - With/Without Planning Consultant","Walker Simpson Architects",8.0000000000000002E-3,14000,93750]
["_C4A_EAST",2,"C4 Stage 2 - With/Without Planning Consultant","Walker Simpson Architects",6.2500000000000003E-3,14000,93750]
["_C4A_EAST",1,"C4 Stage 1 - With Planning Consultant","Walker Simpson Architects",6.4000000000000003E-3,12000,75000]
["_C4A_EAST",2,"C4 Stage 1 - With Planning Consultant","Walker Simpson Architects",5.0000000000000001E-3,12000,75000]
["_C4A_EAST",1,"C4 Stage 1 - Without Planning Consultant","Walker Simpson Architects",8.0000000000000002E-3,14000,93750]
["_C4A_EAST",2,"C4 Stage 1 - Without Planning Consultant","Walker Simpson Architects",6.2500000000000003E-3,14000,93750]
["_C4A_WEST",1,"C4 Stage 2 - With/Without Planning Consultant","AEW Architects",1.0699999999999999E-2,2470,135000]
["_C4A_WEST",2,"C4 Stage 2 - With/Without Planning Consultant","AEW Architects",9.9000000000000008E-3,2470,135000]
["_C4A_WEST",1,"C4 Stage 1 - With Planning Consultant","AEW Architects",8.9999999999999993E-3,3197,122550]
["_C4A_WEST",2,"C4 Stage 1 - With Planning Consultant","AEW Architects",8.6999999999999994E-3,3197,122550]
["_C4A_WEST",1,"C4 Stage 1 - Without Planning Consultant","AEW Architects",9.4999999999999998E-3,3197,129000]
["_C4A_WEST",2,"C4 Stage 1 - Without Planning Consultant","AEW Architects",8.9999999999999993E-3,3197,129000]
["_C4A_WEST",1,"C4 Stage 2 - With/Without Planning Consultant","Bernard Taylor Partnership",7.0000000000000001E-3,3000,90000]
["_C4A_WEST",2,"C4 Stage 2 - With/Without Planning Consultant","Bernard Taylor Partnership",6.4999999999999997E-3,3000,90000]
["_C4A_WEST",1,"C4 Stage 1 - With Planning Consultant","Bernard Taylor Partnership",7.0000000000000001E-3,3000,90000]
["_C4A_WEST",2,"C4 Stage 1 - With Planning Consultant","Bernard Taylor Partnership",6.0000000000000001E-3,3000,90000]
["_C4A_WEST",1,"C4 Stage 1 - Without Planning Consultant","Bernard Taylor Partnership",8.0000000000000002E-3,3000,90000]
["_C4A_WEST",2,"C4 Stage 1 - Without Planning Consultant","Bernard Taylor Partnership",7.0000000000000001E-3,3000,90000]
["_C4A_WEST",1,"C4 Stage 2 - With/Without Planning Consultant","Bowker Sadler",1.5100000000000001E-2,7550,153000]
["_C4A_WEST",2,"C4 Stage 2 - With/Without Planning Consultant","Bowker Sadler",1.0200000000000001E-2,7550,153000]
["_C4A_WEST",1,"C4 Stage 1 - With Planning Consultant","Bowker Sadler",9.9000000000000008E-3,4950,102000]
["_C4A_WEST",2,"C4 Stage 1 - With Planning Consultant","Bowker Sadler",6.7999999999999996E-3,4950,102000]
["_C4A_WEST",1,"C4 Stage 1 - Without Planning Consultant","Bowker Sadler",1.12E-2,5600,111000]
["_C4A_WEST",2,"C4 Stage 1 - Without Planning Consultant","Bowker Sadler",7.4000000000000003E-3,5600,111000]
["_C4A_WEST",1,"C4 Stage 2 - With/Without Planning Consultant","Brewster Bye Architects",1.14E-2,5700,95000]
["_C4A_WEST",2,"C4 Stage 2 - With/Without Planning Consultant","Brewster Bye Architects",9.4999999999999998E-3,5700,95000]
["_C4A_WEST",1,"C4 Stage 1 - With Planning Consultant","Brewster Bye Architects",5.4999999999999997E-3,2750,60000]
["_C4A_WEST",2,"C4 Stage 1 - With Planning Consultant","Brewster Bye Architects",4.5999999999999999E-3,2750,60000]
["_C4A_WEST",1,"C4 Stage 1 - Without Planning Consultant","Brewster Bye Architects",6.1000000000000004E-3,3050,65000]
["_C4A_WEST",2,"C4 Stage 1 - Without Planning Consultant","Brewster Bye Architects",5.1000000000000004E-3,3050,65000]
["_C4A_WEST",1,"C4 Stage 2 - With/Without Planning Consultant","Brock Carmichael Architects",9.4999999999999998E-3,20500,80000]
["_C4A_WEST",2,"C4 Stage 2 - With/Without Planning Consultant","Brock Carmichael Architects",8.5000000000000006E-3,20500,80000]
["_C4A_WEST",1,"C4 Stage 1 - With Planning Consultant","Brock Carmichael Architects",7.4999999999999997E-3,16500,65000]
["_C4A_WEST",2,"C4 Stage 1 - With Planning Consultant","Brock Carmichael Architects",6.7999999999999996E-3,16500,65000]
["_C4A_WEST",1,"C4 Stage 1 - Without Planning Consultant","Brock Carmichael Architects",9.4999999999999998E-3,20000,68000]
["_C4A_WEST",2,"C4 Stage 1 - Without Planning Consultant","Brock Carmichael Architects",7.4999999999999997E-3,20000,68000]
["_C4A_WEST",1,"C4 Stage 2 - With/Without Planning Consultant","Condy & Lofthouse Ltd",1.0500000000000001E-2,4300,230000]
["_C4A_WEST",2,"C4 Stage 2 - With/Without Planning Consultant","Condy & Lofthouse Ltd",9.4999999999999998E-3,4300,230000]
["_C4A_WEST",1,"C4 Stage 1 - With Planning Consultant","Condy & Lofthouse Ltd",6.4999999999999997E-3,2600,133500]
["_C4A_WEST",2,"C4 Stage 1 - With Planning Consultant","Condy & Lofthouse Ltd",5.4999999999999997E-3,2600,133500]
["_C4A_WEST",1,"C4 Stage 1 - Without Planning Consultant","Condy & Lofthouse Ltd",8.0000000000000002E-3,3200,170000]
["_C4A_WEST",2,"C4 Stage 1 - Without Planning Consultant","Condy & Lofthouse Ltd",7.0000000000000001E-3,3200,170000]
["_C4A_WEST",1,"C4 Stage 2 - With/Without Planning Consultant","DK Architects",1.4489999999999999E-2,2200,140000]
["_C4A_WEST",2,"C4 Stage 2 - With/Without Planning Consultant","DK Architects",1.311E-2,2200,140000]
["_C4A_WEST",1,"C4 Stage 1 - With Planning Consultant","DK Architects",6.1999999999999998E-3,930,55000]
["_C4A_WEST",2,"C4 Stage 1 - With Planning Consultant","DK Architects",5.5799999999999999E-3,930,55000]
["_C4A_WEST",1,"C4 Stage 1 - Without Planning Consultant","DK Architects",6.5100000000000002E-3,975,60000]
["_C4A_WEST",2,"C4 Stage 1 - Without Planning Consultant","DK Architects",5.8900000000000003E-3,975,60000]
["_C4A_WEST",1,"C4 Stage 2 - With/Without Planning Consultant","GWP Architecture Ltd",8.0999999999999996E-3,15000,150000]
["_C4A_WEST",2,"C4 Stage 2 - With/Without Planning Consultant","GWP Architecture Ltd",8.6250000000000007E-3,15000,150000]
["_C4A_WEST",1,"C4 Stage 1 - With Planning Consultant","GWP Architecture Ltd",4.7999999999999996E-3,10000,75000]
["_C4A_WEST",2,"C4 Stage 1 - With Planning Consultant","GWP Architecture Ltd",2.7000000000000001E-3,10000,75000]
["_C4A_WEST",1,"C4 Stage 1 - Without Planning Consultant","GWP Architecture Ltd",5.4000000000000003E-3,10000,97500]
["_C4A_WEST",2,"C4 Stage 1 - Without Planning Consultant","GWP Architecture Ltd",2.8999999999999998E-3,10000,97500]
["_C4A_WEST",1,"C4 Stage 2 - With/Without Planning Consultant","John McCall Architects",8.8999999999999999E-3,5625,89900]
["_C4A_WEST",2,"C4 Stage 2 - With/Without Planning Consultant","John McCall Architects",7.4000000000000003E-3,5625,89900]
["_C4A_WEST",1,"C4 Stage 1 - With Planning Consultant","John McCall Architects",8.5000000000000006E-3,5000,89900]
["_C4A_WEST",2,"C4 Stage 1 - With Planning Consultant","John McCall Architects",7.0000000000000001E-3,5000,89900]
["_C4A_WEST",1,"C4 Stage 1 - Without Planning Consultant","John McCall Architects",8.9999999999999993E-3,5625,89900]
["_C4A_WEST",2,"C4 Stage 1 - Without Planning Consultant","John McCall Architects",7.4999999999999997E-3,5625,89900]
["_C4A_WEST",1,"C4 Stage 2 - With/Without Planning Consultant","Langtry-Langton Architects",9.7999999999999997E-3,0,115000]
["_C4A_WEST",2,"C4 Stage 2 - With/Without Planning Consultant","Langtry-Langton Architects",8.9999999999999993E-3,0,115000]
["_C4A_WEST",1,"C4 Stage 1 - With Planning Consultant","Langtry-Langton Architects",6.0000000000000001E-3,0,50000]
["_C4A_WEST",2,"C4 Stage 1 - With Planning Consultant","Langtry-Langton Architects",4.7999999999999996E-3,0,50000]
["_C4A_WEST",1,"C4 Stage 1 - Without Planning Consultant","Langtry-Langton Architects",6.0000000000000001E-3,0,55000]
["_C4A_WEST",2,"C4 Stage 1 - Without Planning Consultant","Langtry-Langton Architects",5.0000000000000001E-3,0,55000]
["_C4A_WEST",1,"C4 Stage 2 - With/Without Planning Consultant","Michael Hyde and Associated Ltd",9.9749999999999995E-3,4000,157500]
["_C4A_WEST",2,"C4 Stage 2 - With/Without Planning Consultant","Michael Hyde and Associated Ltd",1.0500000000000001E-2,4000,157500]
["_C4A_WEST",1,"C4 Stage 1 - With Planning Consultant","Michael Hyde and Associated Ltd",5.2500000000000003E-3,4000,99225]
["_C4A_WEST",2,"C4 Stage 1 - With Planning Consultant","Michael Hyde and Associated Ltd",6.6150000000000002E-3,4000,99225]
["_C4A_WEST",1,"C4 Stage 1 - Without Planning Consultant","Michael Hyde and Associated Ltd",5.7749999999999998E-3,4000,102375]
["_C4A_WEST",2,"C4 Stage 1 - Without Planning Consultant","Michael Hyde and Associated Ltd",6.8250000000000003E-3,4000,102375]
["_C4A_WEST",1,"C4 Stage 2 - With/Without Planning Consultant","MPSL Planning and Design",6.2500000000000003E-3,1000,67500]
["_C4A_WEST",2,"C4 Stage 2 - With/Without Planning Consultant","MPSL Planning and Design",5.2500000000000003E-3,1000,67500]
["_C4A_WEST",1,"C4 Stage 1 - With Planning Consultant","MPSL Planning and Design",5.4999999999999997E-3,1000,67500]
["_C4A_WEST",2,"C4 Stage 1 - With Planning Consultant","MPSL Planning and Design",4.4999999999999997E-3,1000,67500]
["_C4A_WEST",1,"C4 Stage 1 - Without Planning Consultant","MPSL Planning and Design",6.2500000000000003E-3,1350,99000]
["_C4A_WEST",2,"C4 Stage 1 - Without Planning Consultant","MPSL Planning and Design",5.2500000000000003E-3,1350,99000]
["_C4A_WEST",1,"C4 Stage 2 - With/Without Planning Consultant","Paddock Johnson Partnership",1.4500000000000001E-2,1450,198000]
["_C4A_WEST",2,"C4 Stage 2 - With/Without Planning Consultant","Paddock Johnson Partnership",1.32E-2,1450,198000]
["_C4A_WEST",1,"C4 Stage 1 - With Planning Consultant","Paddock Johnson Partnership",5.7000000000000002E-3,580,73500]
["_C4A_WEST",2,"C4 Stage 1 - With Planning Consultant","Paddock Johnson Partnership",4.7999999999999996E-3,580,73500]
["_C4A_WEST",1,"C4 Stage 1 - Without Planning Consultant","Paddock Johnson Partnership",5.7999999999999996E-3,580,73500]
["_C4A_WEST",2,"C4 Stage 1 - Without Planning Consultant","Paddock Johnson Partnership",4.8999999999999998E-3,580,73500]
["_C4A_WEST",1,"C4 Stage 2 - With/Without Planning Consultant","Pozzoni LLP",8.9999999999999993E-3,9500,95000]
["_C4A_WEST",2,"C4 Stage 2 - With/Without Planning Consultant","Pozzoni LLP",8.5000000000000006E-3,9500,95000]
["_C4A_WEST",1,"C4 Stage 1 - With Planning Consultant","Pozzoni LLP",7.6E-3,9000,90000]
["_C4A_WEST",2,"C4 Stage 1 - With Planning Consultant","Pozzoni LLP",6.4999999999999997E-3,9000,90000]
["_C4A_WEST",1,"C4 Stage 1 - Without Planning Consultant","Pozzoni LLP",8.2000000000000007E-3,9500,95000]
["_C4A_WEST",2,"C4 Stage 1 - Without Planning Consultant","Pozzoni LLP",6.7000000000000002E-3,9500,95000]
["_C4A_WEST",1,"C4 Stage 2 - With/Without Planning Consultant","Ridge and Partners LLP",6.0000000000000001E-3,4750,81000]
["_C4A_WEST",2,"C4 Stage 2 - With/Without Planning Consultant","Ridge and Partners LLP",5.4000000000000003E-3,4750,81000]
["_C4A_WEST",1,"C4 Stage 1 - With Planning Consultant","Ridge and Partners LLP",6.7999999999999996E-3,5000,93000]
["_C4A_WEST",2,"C4 Stage 1 - With Planning Consultant","Ridge and Partners LLP",6.1999999999999998E-3,5000,93000]
["_C4A_WEST",1,"C4 Stage 1 - Without Planning Consultant","Ridge and Partners LLP",6.7999999999999996E-3,5000,93000]
["_C4A_WEST",2,"C4 Stage 1 - Without Planning Consultant","Ridge and Partners LLP",6.1999999999999998E-3,5000,93000]
["_C4A_WEST",1,"C4 Stage 2 - With/Without Planning Consultant","TADW Architects",8.0000000000000002E-3,10000,80000]
["_C4A_WEST",2,"C4 Stage 2 - With/Without Planning Consultant","TADW Architects",7.0000000000000001E-3,10000,80000]
["_C4A_WEST",1,"C4 Stage 1 - With Planning Consultant","TADW Architects",7.0000000000000001E-3,9000,70000]
["_C4A_WEST",2,"C4 Stage 1 - With Planning Consultant","TADW Architects",6.0000000000000001E-3,9000,70000]
["_C4A_WEST",1,"C4 Stage 1 - Without Planning Consultant","TADW Architects",7.4999999999999997E-3,9000,80000]
["_C4A_WEST",2,"C4 Stage 1 - Without Planning Consultant","TADW Architects",6.7499999999999999E-3,9000,80000]
["_C4A_WEST",1,"C4 Stage 2 - With/Without Planning Consultant","Triangle Architects",1.37E-2,8000,160500]
["_C4A_WEST",2,"C4 Stage 2 - With/Without Planning Consultant","Triangle Architects",1.17E-2,8000,160500]
["_C4A_WEST",1,"C4 Stage 1 - With Planning Consultant","Triangle Architects",8.0000000000000002E-3,4700,87000]
["_C4A_WEST",2,"C4 Stage 1 - With Planning Consultant","Triangle Architects",6.7999999999999996E-3,4700,87000]
["_C4A_WEST",1,"C4 Stage 1 - Without Planning Consultant","Triangle Architects",9.4000000000000004E-3,5500,103500]
["_C4A_WEST",2,"C4 Stage 1 - Without Planning Consultant","Triangle Architects",7.9000000000000008E-3,5500,103500]
["_C4A_WEST",1,"C4 Stage 2 - With/Without Planning Consultant","Walker Simpson Architects",8.0000000000000002E-3,14000,93750]
["_C4A_WEST",2,"C4 Stage 2 - With/Without Planning Consultant","Walker Simpson Architects",6.2500000000000003E-3,14000,93750]
["_C4A_WEST",1,"C4 Stage 1 - With Planning Consultant","Walker Simpson Architects",6.4000000000000003E-3,12000,75000]
["_C4A_WEST",2,"C4 Stage 1 - With Planning Consultant","Walker Simpson Architects",5.0000000000000001E-3,12000,75000]
["_C4A_WEST",1,"C4 Stage 1 - Without Planning Consultant","Walker Simpson Architects",8.0000000000000002E-3,14000,93750]
["_C4A_WEST",2,"C4 Stage 1 - Without Planning Consultant","Walker Simpson Architects",6.2500000000000003E-3,14000,93750]
["_C4B_EAST",1,"C4 Stage 2 - With/Without Planning Consultant","Ainsley Gommon Architects",1.3100000000000001E-2,4250,103000]
["_C4B_EAST",2,"C4 Stage 2 - With/Without Planning Consultant","Ainsley Gommon Architects",1.04E-2,4250,103000]
["_C4B_EAST",1,"C4 Stage 1 - With Planning Consultant","Ainsley Gommon Architects",7.9000000000000008E-3,3250,63000]
["_C4B_EAST",2,"C4 Stage 1 - With Planning Consultant","Ainsley Gommon Architects",6.3E-3,3250,63000]
["_C4B_EAST",1,"C4 Stage 1 - Without Planning Consultant","Ainsley Gommon Architects",8.6999999999999994E-3,3250,69000]
["_C4B_EAST",2,"C4 Stage 1 - Without Planning Consultant","Ainsley Gommon Architects",6.8999999999999999E-3,3250,69000]
["_C4B_EAST",1,"C4 Stage 2 - With/Without Planning Consultant","Bernard Taylor Partnership",{"$f":"0.09%+0.7%","v":7.899999999999999E-3},{"$f":"700+3000","v":3700},{"$f":"10000+90000","v":100000}]
["_C4B_EAST",2,"C4 Stage 2 - With/Without Planning Consultant","Bernard Taylor Partnership",{"$f":"0.08%+0.65%","v":7.3000000000000009E-3},3700,100000]
["_C4B_EAST",1,"C4 Stage 1 - With Planning Consultant","Bernard Taylor Partnership",{"$f":"0.09%+0.7%","v":7.899999999999999E-3},3700,100000]
["_C4B_EAST",2,"C4 Stage 1 - With Planning Consultant","Bernard Taylor Partnership",{"$f":"0.08%+0.6%","v":6.8000000000000005E-3},3700,100000]
["_C4B_EAST",1,"C4 Stage 1 - Without Planning Consultant","Bernard Taylor Partnership",8.8999999999999999E-3,3700,100000]
["_C4B_EAST",2,"C4 Stage 1 - Without Planning Consultant","Bernard Taylor Partnership",7.7999999999999996E-3,3700,100000]
["_C4B_EAST",1,"C4 Stage 2 - With/Without Planning Consultant","Bowker Sadler",1.738E-2,10230,171150]
["_C4B_EAST",2,"C4 Stage 2 - With/Without Planning Consultant","Bowker Sadler",1.141E-2,10230,171150]
["_C4B_EAST",1,"C4 Stage 1 - With Planning Consultant","Bowker Sadler",1.1390000000000001E-2,6270,111900]
["_C4B_EAST",2,"C4 Stage 1 - With Planning Consultant","Bowker Sadler",7.4599999999999996E-3,6270,111900]
["_C4B_EAST",1,"C4 Stage 1 - Without Planning Consultant","Bowker Sadler",1.282E-2,6985,121350]
["_C4B_EAST",2,"C4 Stage 1 - Without Planning Consultant","Bowker Sadler",8.09E-3,6985,121350]
["_C4B_EAST",1,"C4 Stage 2 - With/Without Planning Consultant","Buttress Architects Ltd",1.2999999999999999E-2,10000,165000]
["_C4B_EAST",2,"C4 Stage 2 - With/Without Planning Consultant","Buttress Architects Ltd",1.15E-2,10000,165000]
["_C4B_EAST",1,"C4 Stage 1 - With Planning Consultant","Buttress Architects Ltd",1.4E-2,10000,165000]
["_C4B_EAST",2,"C4 Stage 1 - With Planning Consultant","Buttress Architects Ltd",1.2500000000000001E-2,10000,165000]
["_C4B_EAST",1,"C4 Stage 1 - Without Planning Consultant","Buttress Architects Ltd",1.4500000000000001E-2,10000,180000]
["_C4B_EAST",2,"C4 Stage 1 - Without Planning Consultant","Buttress Architects Ltd",1.2999999999999999E-2,10000,180000]
["_C4B_EAST",1,"C4 Stage 2 - With/Without Planning Consultant","Darnton B3 Architecture",1.6500000000000001E-2,15500,100000]
["_C4B_EAST",2,"C4 Stage 2 - With/Without Planning Consultant","Darnton B3 Architecture",7.3699999999999998E-3,15500,100000]
["_C4B_EAST",1,"C4 Stage 1 - With Planning Consultant","Darnton B3 Architecture",1.0800000000000001E-2,10500,72000]
["_C4B_EAST",2,"C4 Stage 1 - With Planning Consultant","Darnton B3 Architecture",4.8399999999999997E-3,10500,72000]
["_C4B_EAST",1,"C4 Stage 1 - Without Planning Consultant","Darnton B3 Architecture",1.11E-2,11000,75000]
["_C4B_EAST",2,"C4 Stage 1 - Without Planning Consultant","Darnton B3 Architecture",4.9500000000000004E-3,11000,75000]
["_C4B_EAST",1,"C4 Stage 2 - With/Without Planning Consultant","Halsall Lloyd Partnership",1.0999999999999999E-2,8900,127000]
["_C4B_EAST",2,"C4 Stage 2 - With/Without Planning Consultant","Halsall Lloyd Partnership",0.01,8900,127000]
["_C4B_EAST",1,"C4 Stage 1 - With Planning Consultant","Halsall Lloyd Partnership",1.4200000000000001E-2,8900,147000]
["_C4B_EAST",2,"C4 Stage 1 - With Planning Consultant","Halsall Lloyd Partnership",1.21E-2,8900,147000]
["_C4B_EAST",1,"C4 Stage 1 - Without Planning Consultant","Halsall Lloyd Partnership",1.35E-2,8900,147000]
["_C4B_EAST",2,"C4 Stage 1 - Without Planning Consultant","Halsall Lloyd Partnership",1.2E-2,8900,147000]
["_C4B_EAST",1,"C4 Stage 2 - With/Without Planning Consultant","Langtry-Langton Architects",1.2999999999999999E-2,0,122000]
["_C4B_EAST",2,"C4 Stage 2 - With/Without Planning Consultant","Langtry-Langton Architects",1.15E-2,0,122000]
["_C4B_EAST",1,"C4 Stage 1 - With Planning Consultant","Langtry-Langton Architects",7.0000000000000001E-3,0,50000]
["_C4B_EAST",2,"C4 Stage 1 - With Planning Consultant","Langtry-Langton Architects",5.7999999999999996E-3,0,50000]
["_C4B_EAST",1,"C4 Stage 1 - Without Planning Consultant","Langtry-Langton Architects",7.1999999999999998E-3,0,55000]
["_C4B_EAST",2,"C4 Stage 1 - Without Planning Consultant","Langtry-Langton Architects",6.1999999999999998E-3,0,55000]
["_C4B_EAST",1,"C4 Stage 2 - With/Without Planning Consultant","Michael Dyson Associates Limited",1.24E-2,9000,92000]
["_C4B_EAST",2,"C4 Stage 2 - With/Without Planning Consultant","Michael Dyson Associates Limited",8.6999999999999994E-3,9000,92000]
["_C4B_EAST",1,"C4 Stage 1 - With Planning Consultant","Michael Dyson Associates Limited",8.3000000000000001E-3,7500,71000]
["_C4B_EAST",2,"C4 Stage 1 - With Planning Consultant","Michael Dyson Associates Limited",6.1999999999999998E-3,7500,71000]
["_C4B_EAST",1,"C4 Stage 1 - Without Planning Consultant","Michael Dyson Associates Limited",8.5000000000000006E-3,7500,71000]
["_C4B_EAST",2,"C4 Stage 1 - Without Planning Consultant","Michael Dyson Associates Limited",6.3E-3,7500,71000]
["_C4B_EAST",1,"C4 Stage 2 - With/Without Planning Consultant","Michael Hyde and Associated Ltd",9.9749999999999995E-3,4000,149625]
["_C4B_EAST",2,"C4 Stage 2 - With/Without Planning Consultant","Michael Hyde and Associated Ltd",9.9749999999999995E-3,4000,149625]
["_C4B_EAST",1,"C4 Stage 1 - With Planning Consultant","Michael Hyde and Associated Ltd",7.3499999999999998E-3,4000,115500]
["_C4B_EAST",2,"C4 Stage 1 - With Planning Consultant","Michael Hyde and Associated Ltd",7.7175000000000004E-3,4000,115500]
["_C4B_EAST",1,"C4 Stage 1 - Without Planning Consultant","Michael Hyde and Associated Ltd",7.8750000000000001E-3,4000,115500]
["_C4B_EAST",2,"C4 Stage 1 - Without Planning Consultant","Michael Hyde and Associated Ltd",7.8750000000000001E-3,4000,115500]
["_C4B_EAST",1,"C4 Stage 2 - With/Without Planning Consultant","Paddock Johnson Partnership",1.7100000000000001E-2,1710,231000]
["_C4B_EAST",2,"C4 Stage 2 - With/Without Planning Consultant","Paddock Johnson Partnership",1.54E-2,1710,231000]
["_C4B_EAST",1,"C4 Stage 1 - With Planning Consultant","Paddock Johnson Partnership",6.4000000000000003E-3,690,78000]
["_C4B_EAST",2,"C4 Stage 1 - With Planning Consultant","Paddock Johnson Partnership",5.1000000000000004E-3,690,78000]
["_C4B_EAST",1,"C4 Stage 1 - Without Planning Consultant","Paddock Johnson Partnership",6.4999999999999997E-3,690,78000]
["_C4B_EAST",2,"C4 Stage 1 - Without Planning Consultant","Paddock Johnson Partnership",5.1999999999999998E-3,690,78000]
["_C4B_EAST",1,"C4 Stage 2 - With/Without Planning Consultant","Ridge and Partners LLP",7.1000000000000004E-3,5750,106500]
["_C4B_EAST",2,"C4 Stage 2 - With/Without Planning Consultant","Ridge and Partners LLP",7.1000000000000004E-3,5750,106500]
["_C4B_EAST",1,"C4 Stage 1 - With Planning Consultant","Ridge and Partners LLP",6.7999999999999996E-3,5000,118500]
["_C4B_EAST",2,"C4 Stage 1 - With Planning Consultant","Ridge and Partners LLP",7.9000000000000008E-3,5000,118500]
["_C4B_EAST",1,"C4 Stage 1 - Without Planning Consultant","Ridge and Partners LLP",6.7999999999999996E-3,5750,118500]
["_C4B_EAST",2,"C4 Stage 1 - Without Planning Consultant","Ridge and Partners LLP",7.9000000000000008E-3,5750,118500]
["_C4B_WEST",1,"C4 Stage 2 - With/Without Planning Consultant","Bernard Taylor Partnership",1.1650000000000001E-2,6350,115500]
["_C4B_WEST",2,"C4 Stage 2 - With/Without Planning Consultant","Bernard Taylor Partnership",7.7000000000000002E-3,6350,115500]
["_C4B_WEST",1,"C4 Stage 1 - With Planning Consultant","Bernard Taylor Partnership",{"$f":"0.09%+0.7%","v":7.899999999999999E-3},{"$f":"700+3000","v":3700},{"$f":"10000+90000","v":100000}]
["_C4B_WEST",2,"C4 Stage 1 - With Planning Consultant","Bernard Taylor Partnership",{"$f":"0.08%+0.6%","v":6.8000000000000005E-3},{"$f":"700+3000","v":3700},{"$f":"10000+90000","v":100000}]
["_C4B_WEST",1,"C4 Stage 1 - Without Planning Consultant","Bernard Taylor Partnership",8.8999999999999999E-3,{"$f":"700+3000","v":3700},{"$f":"10000+90000","v":100000}]
["_C4B_WEST",2,"C4 Stage 1 - Without Planning Consultant","Bernard Taylor Partnership",7.7999999999999996E-3,{"$f":"700+3000","v":3700},{"$f":"10000+90000","v":100000}]
["_C4B_WEST",1,"C4 Stage 2 - With/Without Planning Consultant","Bowker Sadler",1.5800000000000002E-2,9300,163050]
["_C4B_WEST",2,"C4 Stage 2 - With/Without Planning Consultant","Bowker Sadler",1.0869999999999999E-2,9300,163050]
["_C4B_WEST",1,"C4 Stage 1 - With Planning Consultant","Bowker Sadler",1.035E-2,5700,106500]
["_C4B_WEST",2,"C4 Stage 1 - With Planning Consultant","Bowker Sadler",7.1000000000000004E-3,5700,106500]
["_C4B_WEST",1,"C4 Stage 1 - Without Planning Consultant","Bowker Sadler",1.1650000000000001E-2,6350,115500]
["_C4B_WEST",2,"C4 Stage 1 - Without Planning Consultant","Bowker Sadler",7.7000000000000002E-3,6350,115500]
["_C4B_WEST",1,"C4 Stage 2 - With/Without Planning Consultant","Buttress Architects Ltd",1.2999999999999999E-2,10000,165000]
["_C4B_WEST",2,"C4 Stage 2 - With/Without Planning Consultant","Buttress Architects Ltd",1.15E-2,10000,165000]
["_C4B_WEST",1,"C4 Stage 1 - With Planning Consultant","Buttress Architects Ltd",1.4E-2,10000,165000]
["_C4B_WEST",2,"C4 Stage 1 - With Planning Consultant","Buttress Architects Ltd",1.2500000000000001E-2,10000,165000]
["_C4B_WEST",1,"C4 Stage 1 - Without Planning Consultant","Buttress Architects Ltd",1.4500000000000001E-2,10000,180000]
["_C4B_WEST",2,"C4 Stage 1 - Without Planning Consultant","Buttress Architects Ltd",1.2999999999999999E-2,10000,180000]
["_C4B_WEST",1,"C4 Stage 2 - With/Without Planning Consultant","BYA Architects",9.4999999999999998E-3,3800,112500]
["_C4B_WEST",2,"C4 Stage 2 - With/Without Planning Consultant","BYA Architects",7.4999999999999997E-3,3800,112500]
["_C4B_WEST",1,"C4 Stage 1 - With Planning Consultant","BYA Architects",9.4999999999999998E-3,3800,112500]
["_C4B_WEST",2,"C4 Stage 1 - With Planning Consultant","BYA Architects",7.4999999999999997E-3,3800,112500]
["_C4B_WEST",1,"C4 Stage 1 - Without Planning Consultant","BYA Architects",9.4999999999999998E-3,3800,112500]
["_C4B_WEST",2,"C4 Stage 1 - Without Planning Consultant","BYA Architects",7.4999999999999997E-3,3800,112500]
["_C4B_WEST",1,"C4 Stage 2 - With/Without Planning Consultant","Langtry-Langton Architects",9.7999999999999997E-3,0,115000]
["_C4B_WEST",2,"C4 Stage 2 - With/Without Planning Consultant","Langtry-Langton Architects",8.9999999999999993E-3,0,115000]
["_C4B_WEST",1,"C4 Stage 1 - With Planning Consultant","Langtry-Langton Architects",7.0000000000000001E-3,0,50000]
["_C4B_WEST",2,"C4 Stage 1 - With Planning Consultant","Langtry-Langton Architects",5.7999999999999996E-3,0,50000]
["_C4B_WEST",1,"C4 Stage 1 - Without Planning Consultant","Langtry-Langton Architects",6.4999999999999997E-3,0,55000]
["_C4B_WEST",2,"C4 Stage 1 - Without Planning Consultant","Langtry-Langton Architects",6.1999999999999998E-3,0,55000]
["_C4B_WEST",1,"C4 Stage 2 - With/Without Planning Consultant","Michael Dyson Associates Limited",1.24E-2,9000,92000]
["_C4B_WEST",2,"C4 Stage 2 - With/Without Planning Consultant","Michael Dyson Associates Limited",8.6999999999999994E-3,9000,92000]
["_C4B_WEST",1,"C4 Stage 1 - With Planning Consultant","Michael Dyson Associates Limited",8.3000000000000001E-3,7500,71000]
["_C4B_WEST",2,"C4 Stage 1 - With Planning Consultant","Michael Dyson Associates Limited",6.1999999999999998E-3,7500,71000]
["_C4B_WEST",1,"C4 Stage 1 - Without Planning Consultant","Michael Dyson Associates Limited",8.5000000000000006E-3,7500,71000]
["_C4B_WEST",2,"C4 Stage 1 - Without Planning Consultant","Michael Dyson Associates Limited",6.3E-3,7500,71000]
["_C4B_WEST",1,"C4 Stage 2 - With/Without Planning Consultant","Michael Hyde and Associated Ltd",9.9749999999999995E-3,4000,157500]
["_C4B_WEST",2,"C4 Stage 2 - With/Without Planning Consultant","Michael Hyde and Associated Ltd",1.0500000000000001E-2,4000,157500]
["_C4B_WEST",1,"C4 Stage 1 - With Planning Consultant","Michael Hyde and Associated Ltd",0.73499999999999999,4000,115500]
["_C4B_WEST",2,"C4 Stage 1 - With Planning Consultant","Michael Hyde and Associated Ltd",8.1899999999999994E-3,4000,115500]
["_C4B_WEST",1,"C4 Stage 1 - Without Planning Consultant","Michael Hyde and Associated Ltd",7.8750000000000001E-3,4000,115500]
["_C4B_WEST",2,"C4 Stage 1 - Without Planning Consultant","Michael Hyde and Associated Ltd",8.3999999999999995E-3,4000,115500]
["_C4B_WEST",1,"C4 Stage 2 - With/Without Planning Consultant","Paddock Johnson Partnership",1.61E-2,1790,216000]
["_C4B_WEST",2,"C4 Stage 2 - With/Without Planning Consultant","Paddock Johnson Partnership",1.44E-2,1790,216000]
["_C4B_WEST",1,"C4 Stage 1 - With Planning Consultant","Paddock Johnson Partnership",5.7000000000000002E-3,610,73500]
["_C4B_WEST",2,"C4 Stage 1 - With Planning Consultant","Paddock Johnson Partnership",4.7999999999999996E-3,610,73500]
["_C4B_WEST",1,"C4 Stage 1 - Without Planning Consultant","Paddock Johnson Partnership",5.7999999999999996E-3,580,73500]
["_C4B_WEST",2,"C4 Stage 1 - Without Planning Consultant","Paddock Johnson Partnership",4.8999999999999998E-3,580,73500]
["_C4B_WEST",1,"C4 Stage 2 - With/Without Planning Consultant","Ridge and Partners LLP",7.1000000000000004E-3,5750,106500]
["_C4B_WEST",2,"C4 Stage 2 - With/Without Planning Consultant","Ridge and Partners LLP",7.1000000000000004E-3,5750,106500]
["_C4B_WEST",1,"C4 Stage 1 - With Planning Consultant","Ridge and Partners LLP",6.7999999999999996E-3,5000,118500]
["_C4B_WEST",2,"C4 Stage 1 - With Planning Consultant","Ridge and Partners LLP",7.9000000000000008E-3,5000,118500]
["_C4B_WEST",1,"C4 Stage 1 - Without Planning Consultant","Ridge and Partners LLP",6.7999999999999996E-3,5750,118500]
["_C4B_WEST",2,"C4 Stage 1 - Without Planning Consultant","Ridge and Partners LLP",7.9000000000000008E-3,5750,118500]
["_C5_EAST",1,"n/a","Amrin Resources Ltd",5.8999999999999999E-3,17000,62000]
["_C5_EAST",2,"n/a","Amrin Resources Ltd",4.4000000000000003E-3,17000,62000]
["_C5_EAST",1,"n/a","Currie & Brown UK Ltd",4.3E-3,12000,58000]
["_C5_EAST",2,"n/a","Currie & Brown UK Ltd",3.0000000000000001E-3,12000,58000]
["_C5_EAST",1,"n/a","Hickton Consultants",4.4999999999999997E-3,3000,45000]
["_C5_EAST",2,"n/a","Hickton Consultants",3.0000000000000001E-3,3000,45000]
["_C5_EAST",1,"n/a","MAC Construction Consultants Ltd",6.0000000000000001E-3,6000,45000]
["_C5_EAST",2,"n/a","MAC Construction Consultants Ltd",4.0000000000000001E-3,6000,45000]
["_C5_EAST",1,"n/a","Waldeck Associates Limited",4.0000000000000001E-3,5000,48750]
["_C5_EAST",2,"n/a","Waldeck Associates Limited",3.7499999999999999E-3,5000,48750]
["_C5_EAST",1,"n/a","Whiteley Eaves Ltd",6.4999999999999997E-3,3250,25000]
["_C5_EAST",2,"n/a","Whiteley Eaves Ltd",2.5000000000000001E-3,3250,25000]
["_C5_EAST",1,"n/a","Wilkinson Cowan Partnership",5.4000000000000003E-3,7500,48000]
["_C5_EAST",2,"n/a","Wilkinson Cowan Partnership",4.7999999999999996E-3,7500,48000]
["_C5_WEST",1,"n/a","Aegis Services Ltd",5.1999999999999998E-3,9999,35000]
["_C5_WEST",2,"n/a","Aegis Services Ltd",3.5000000000000001E-3,9999,35000]
["_C5_WEST",1,"n/a","Amrin Resources Ltd",5.8999999999999999E-3,17000,62000]
["_C5_WEST",2,"n/a","Amrin Resources Ltd",4.4000000000000003E-3,17000,62000]
["_C5_WEST",1,"n/a","Currie & Brown UK Ltd",4.3E-3,12000,58000]
["_C5_WEST",2,"n/a","Currie & Brown UK Ltd",3.0000000000000001E-3,12000,58000]
["_C5_WEST",1,"n/a","Hickton Consultants",4.4999999999999997E-3,3000,45000]
["_C5_WEST",2,"n/a","Hickton Consultants",3.0000000000000001E-3,3000,45000]
["_C5_WEST",1,"n/a","MAC Construction Consultants Ltd",6.0000000000000001E-3,6000,45000]
["_C5_WEST",2,"n/a","MAC Construction Consultants Ltd",4.0000000000000001E-3,6000,45000]
["_C5_WEST",1,"n/a","SDA Consulting LLP",8.3000000000000001E-3,8300,54000]
["_C5_WEST",2,"n/a","SDA Consulting LLP",4.1999999999999997E-3,8300,54000]
["_C5_WEST",1,"n/a","Waldeck Associates Limited",4.0000000000000001E-3,5000,48750]
["_C5_WEST",2,"n/a","Waldeck Associates Limited",3.7499999999999999E-3,5000,48750]
["_C5_WEST",1,"n/a","Whiteley Eaves Ltd",6.4999999999999997E-3,3250,25000]
["_C5_WEST",2,"n/a","Whiteley Eaves Ltd",2.5000000000000001E-3,3250,25000]
["_C5_WEST",1,"n/a","Wilkinson Cowan Partnership",5.4000000000000003E-3,7500,48000]
["_C5_WEST",2,"n/a","Wilkinson Cowan Partnership",4.7999999999999996E-3,7500,48000]
["_C6_EAST",1,"n/a","AA Projects Ltd",7.4999999999999997E-3,14950,75000]
["_C6_EAST",2,"n/a","AA Projects Ltd",5.7000000000000002E-3,14950,75000]
["_C6_EAST",1,"n/a","Arcus Consulting LLP",7.0000000000000001E-3,7500,78000]
["_C6_EAST",2,"n/a","Arcus Consulting LLP",5.0000000000000001E-3,7500,78000]
["_C6_EAST",1,"n/a","CPC Project Services LLP",6.3E-3,5000,40000]
["_C6_EAST",2,"n/a","CPC Project Services LLP",5.0000000000000001E-3,5000,40000]
["_C6_EAST",1,"n/a","Identity Consult",5.0000000000000001E-3,9000,52500]
["_C6_EAST",2,"n/a","Identity Consult",3.5000000000000001E-3,9000,52500]
["_C6_EAST",1,"n/a","Markhams Ltd",6.0000000000000001E-3,8000,50000]
["_C6_EAST",2,"n/a","Markhams Ltd",4.4999999999999997E-3,8000,50000]
["_C6_EAST",1,"n/a","Poole Dick Associates",6.0000000000000001E-3,7500,37500]
["_C6_EAST",2,"n/a","Poole Dick Associates",5.0000000000000001E-3,7500,37500]
["_C6_EAST",1,"n/a","RPS Consulting Services Ltd",5.5999999999999999E-3,7000,72000]
["_C6_EAST",2,"n/a","RPS Consulting Services Ltd",4.7999999999999996E-3,7000,72000]
["_C6_EAST",1,"n/a","Thornton Firkin & Partners",6.4999999999999997E-3,5000,42500]
["_C6_EAST",2,"n/a","Thornton Firkin & Partners",4.4999999999999997E-3,5000,42500]
["_C6_EAST",1,"n/a","Waldeck Associates Limited",5.4999999999999997E-3,4500,67500]
["_C6_EAST",2,"n/a","Waldeck Associates Limited",4.4999999999999997E-3,4500,67500]
["_C6_EAST",1,"n/a","Whiteley Eaves Ltd",3.5000000000000001E-3,1750,25000]
["_C6_EAST",2,"n/a","Whiteley Eaves Ltd",2.5000000000000001E-3,1750,25000]
["_C6_EAST",1,"n/a","Wilkinson Cowan Partnership",4.7000000000000002E-3,8000,45000]
["_C6_EAST",2,"n/a","Wilkinson Cowan Partnership",3.5000000000000001E-3,8000,45000]
["_C6_WEST",1,"n/a","AA Projects Ltd",7.4999999999999997E-3,14950,75000]
["_C6_WEST",2,"n/a","AA Projects Ltd",5.7000000000000002E-3,14950,75000]
["_C6_WEST",1,"n/a","Arcus Consulting LLP",7.0000000000000001E-3,7500,78000]
["_C6_WEST",2,"n/a","Arcus Consulting LLP",5.0000000000000001E-3,7500,78000]
["_C6_WEST",1,"n/a","CPC Project Services LLP",6.3E-3,5000,40000]
["_C6_WEST",2,"n/a","CPC Project Services LLP",5.0000000000000001E-3,5000,40000]
["_C6_WEST",1,"n/a","Identity Consult",5.0000000000000001E-3,9000,52500]
["_C6_WEST",2,"n/a","Identity Consult",3.5000000000000001E-3,9000,52500]
["_C6_WEST",1,"n/a","Markhams Ltd",6.0000000000000001E-3,8000,50000]
["_C6_WEST",2,"n/a","Markhams Ltd",4.4999999999999997E-3,8000,50000]
["_C6_WEST",1,"n/a","Poole Dick Associates",6.0000000000000001E-3,7500,37500]
["_C6_WEST",2,"n/a","Poole Dick Associates",5.0000000000000001E-3,7500,37500]
["_C6_WEST",1,"n/a","RPS Consulting Services Ltd",5.1999999999999998E-3,6500,66000]
["_C6_WEST",2,"n/a","RPS Consulting Services Ltd",4.4000000000000003E-3,6500,66000]
["_C6_WEST",1,"n/a","Simon Fenton Partnership",6.6E-3,6750,68400]
["_C6_WEST",2,"n/a","Simon Fenton Partnership",5.7000000000000002E-3,6750,68400]
["_C6_WEST",1,"n/a","Thornton Firkin & Partners",6.4999999999999997E-3,5000,42500]
["_C6_WEST",2,"n/a","Thornton Firkin & Partners",4.4999999999999997E-3,5000,42500]
["_C6_WEST",1,"n/a","Waldeck Associates Limited",5.4999999999999997E-3,4500,67500]
["_C6_WEST",2,"n/a","Waldeck Associates Limited",4.4999999999999997E-3,4500,67500]
["_C6_WEST",1,"n/a","Whiteley Eaves Ltd",3.5000000000000001E-3,1750,25000]
["_C6_WEST",2,"n/a","Whiteley Eaves Ltd",2.5000000000000001E-3,1750,25000]
["_C6_WEST",1,"n/a","Wilkinson Cowan Partnership",4.7000000000000002E-3,8000,45000]
["_C6_WEST",2,"n/a","Wilkinson Cowan Partnership",3.5000000000000001E-3,8000,45000]
["_C7_EAST",1,"C7 H&SA Only","AA Projects Ltd",2.5000000000000001E-3,3500,13500]
["_C7_EAST",2,"C7 H&SA Only","AA Projects Ltd",8.9999999999999998E-4,3500,13500]
["_C7_EAST",1,"C7 PD & H&SA","AA Projects Ltd",3.5000000000000001E-3,6000,22000]
["_C7_EAST",2,"C7 PD & H&SA","AA Projects Ltd",1.6999999999999999E-3,6000,22000]
["_C7_EAST",1,"C7 H&SA Only","Arcus Consulting LLP",1.1999999999999999E-3,3200,12000]
["_C7_EAST",2,"C7 H&SA Only","Arcus Consulting LLP",8.9999999999999998E-4,3200,12000]
["_C7_EAST",1,"C7 PD & H&SA","Arcus Consulting LLP",1.6999999999999999E-3,4950,18000]
["_C7_EAST",2,"C7 PD & H&SA","Arcus Consulting LLP",1.1999999999999999E-3,4950,18000]
["_C7_EAST",1,"C7 H&SA Only","Curtins Consulting Ltd",1.1000000000000001E-3,3000,8700]
["_C7_EAST",2,"C7 H&SA Only","Curtins Consulting Ltd",5.8E-4,3000,8700]
["_C7_EAST",1,"C7 PD & H&SA","Curtins Consulting Ltd",2.5000000000000001E-3,6500,19500]
["_C7_EAST",2,"C7 PD & H&SA","Curtins Consulting Ltd",1.2999999999999999E-3,6500,19500]
["_C7_EAST",1,"C7 H&SA Only","Faithful & Gould",1.9E-3,1650,9000]
["_C7_EAST",2,"C7 H&SA Only","Faithful & Gould",1.1000000000000001E-3,1650,9000]
["_C7_EAST",1,"C7 PD & H&SA","Faithful & Gould",3.0999999999999999E-3,2750,18000]
["_C7_EAST",2,"C7 PD & H&SA","Faithful & Gould",1.9E-3,2750,18000]
["_C7_EAST",1,"C7 H&SA Only","Rider Levett Bucknall UK Ltd",7.5000000000000002E-4,300,4000]
["_C7_EAST",2,"C7 H&SA Only","Rider Levett Bucknall UK Ltd",2.5000000000000001E-4,300,4000]
["_C7_EAST",1,"C7 PD & H&SA","Rider Levett Bucknall UK Ltd",2.5000000000000001E-3,975,13500]
["_C7_EAST",2,"C7 PD & H&SA","Rider Levett Bucknall UK Ltd",8.9999999999999998E-4,975,13500]
["_C7_EAST",1,"C7 H&SA Only","RJD Associates (North West) Limited",6.9999999999999999E-4,1500,4750]
["_C7_EAST",2,"C7 H&SA Only","RJD Associates (North West) Limited",4.0000000000000002E-4,1500,4750]
["_C7_EAST",1,"C7 PD & H&SA","RJD Associates (North West) Limited",1.1999999999999999E-3,2500,9000]
["_C7_EAST",2,"C7 PD & H&SA","RJD Associates (North West) Limited",8.0000000000000004E-4,2500,9000]
["_C7_EAST",1,"C7 H&SA Only","Thornton Firkin & Partners",1.4499999999999999E-3,2000,6000]
["_C7_EAST",2,"C7 H&SA Only","Thornton Firkin & Partners",1E-3,2000,6000]
["_C7_EAST",1,"C7 PD & H&SA","Thornton Firkin & Partners",1.8E-3,3000,15000]
["_C7_EAST",2,"C7 PD & H&SA","Thornton Firkin & Partners",1.2999999999999999E-3,3000,15000]
["_C7_EAST",1,"C7 H&SA Only","Urbn Design & Consult Ltd",1E-3,550,5000]
["_C7_EAST",2,"C7 H&SA Only","Urbn Design & Consult Ltd",5.0000000000000001E-4,550,5000]
["_C7_EAST",1,"C7 PD & H&SA","Urbn Design & Consult Ltd",2E-3,1150,20000]
["_C7_EAST",2,"C7 PD & H&SA","Urbn Design & Consult Ltd",1E-3,1150,20000]
["_C7_EAST",1,"C7 H&SA Only","Vextrix",1.5E-3,7738,13724]
["_C7_EAST",2,"C7 H&SA Only","Vextrix",1.2999999999999999E-3,7738,13724]
["_C7_EAST",1,"C7 PD & H&SA","Vextrix",2.5000000000000001E-3,11169,20659]
["_C7_EAST",2,"C7 PD & H&SA","Vextrix",2E-3,11169,20659]
["_C7_EAST",1,"C7 H&SA Only","Whiteley Eaves Ltd",1.2999999999999999E-3,650,7000]
["_C7_EAST",2,"C7 H&SA Only","Whiteley Eaves Ltd",6.9999999999999999E-4,650,7000]
["_C7_EAST",1,"C7 PD & H&SA","Whiteley Eaves Ltd",1.2999999999999999E-3,650,7000]
["_C7_EAST",2,"C7 PD & H&SA","Whiteley Eaves Ltd",6.9999999999999999E-4,650,7000]
["_C7_EAST",1,"C7 H&SA Only","Wilkinson Cowan Partnership",1.1999999999999999E-3,3500,7500]
["_C7_EAST",2,"C7 H&SA Only","Wilkinson Cowan Partnership",5.5000000000000003E-4,3500,7500]
["_C7_EAST",1,"C7 PD & H&SA","Wilkinson Cowan Partnership",1.8E-3,3500,7500]
["_C7_EAST",2,"C7 PD & H&SA","Wilkinson Cowan Partnership",8.0000000000000004E-4,3500,7500]
["_C7_EAST",1,"C7 H&SA Only","WYG Engineering Limited",1E-3,1000,10500]
["_C7_EAST",2,"C7 H&SA Only","WYG Engineering Limited",6.9999999999999999E-4,1000,10500]
["_C7_EAST",1,"C7 PD & H&SA","WYG Engineering Limited",2E-3,2000,22500]
["_C7_EAST",2,"C7 PD & H&SA","WYG Engineering Limited",1.5E-3,2000,22500]
["_C7_WEST",1,"C7 H&SA Only","AA Projects Ltd",2.5000000000000001E-3,2500,7500]
["_C7_WEST",2,"C7 H&SA Only","AA Projects Ltd",5.0000000000000001E-4,2500,7500]
["_C7_WEST",1,"C7 PD & H&SA","AA Projects Ltd",7.4999999999999997E-3,7500,25500]
["_C7_WEST",2,"C7 PD & H&SA","AA Projects Ltd",1.6999999999999999E-3,7500,25500]
["_C7_WEST",1,"C7 H&SA Only","Aegis Services Ltd",1.5E-3,1200,6000]
["_C7_WEST",2,"C7 H&SA Only","Aegis Services Ltd",1E-3,1200,6000]
["_C7_WEST",1,"C7 PD & H&SA","Aegis Services Ltd",2E-3,2000,11000]
["_C7_WEST",2,"C7 PD & H&SA","Aegis Services Ltd",1.4E-3,2000,11000]
["_C7_WEST",1,"C7 H&SA Only","Arcus Consulting LLP",1.1999999999999999E-3,3200,12000]
["_C7_WEST",2,"C7 H&SA Only","Arcus Consulting LLP",8.9999999999999998E-4,3200,12000]
["_C7_WEST",1,"C7 PD & H&SA","Arcus Consulting LLP",1.6999999999999999E-3,4950,18000]
["_C7_WEST",2,"C7 PD & H&SA","Arcus Consulting LLP",1.1999999999999999E-3,4950,18000]
["_C7_WEST",1,"C7 H&SA Only","Curtins Consulting Ltd",1.1000000000000001E-3,3000,8700]
["_C7_WEST",2,"C7 H&SA Only","Curtins Consulting Ltd",5.8E-4,3000,8700]
["_C7_WEST",1,"C7 PD & H&SA","Curtins Consulting Ltd",2.5000000000000001E-3,6500,19500]
["_C7_WEST",2,"C7 PD & H&SA","Curtins Consulting Ltd",1.2999999999999999E-3,6500,19500]
["_C7_WEST",1,"C7 H&SA Only","Faithful & Gould",1.9E-3,1650,9000]
["_C7_WEST",2,"C7 H&SA Only","Faithful & Gould",1.1000000000000001E-3,1650,9000]
["_C7_WEST",1,"C7 PD & H&SA","Faithful & Gould",3.0999999999999999E-3,2750,18000]
["_C7_WEST",2,"C7 PD & H&SA","Faithful & Gould",1.9E-3,2750,18000]
["_C7_WEST",1,"C7 H&SA Only","Paddock Johnson Partnership",1E-3,450,12000]
["_C7_WEST",2,"C7 H&SA Only","Paddock Johnson Partnership",8.0000000000000004E-4,450,12000]
["_C7_WEST",1,"C7 PD & H&SA","Paddock Johnson Partnership",2E-3,3500,30000]
["_C7_WEST",2,"C7 PD & H&SA","Paddock Johnson Partnership",1.5E-3,3500,30000]
["_C7_WEST",1,"C7 H&SA Only","Rider Levett Bucknall UK Ltd",7.5000000000000002E-4,300,4000]
["_C7_WEST",2,"C7 H&SA Only","Rider Levett Bucknall UK Ltd",2.5000000000000001E-4,300,4000]
["_C7_WEST",1,"C7 PD & H&SA","Rider Levett Bucknall UK Ltd",2.5000000000000001E-3,975,13500]
["_C7_WEST",2,"C7 PD & H&SA","Rider Levett Bucknall UK Ltd",8.9999999999999998E-4,975,13500]
["_C7_WEST",1,"C7 H&SA Only","RJD Associates (North West) Limited",6.9999999999999999E-4,1500,4750]
["_C7_WEST",2,"C7 H&SA Only","RJD Associates (North West) Limited",4.0000000000000002E-4,1500,4750]
["_C7_WEST",1,"C7 PD & H&SA","RJD Associates (North West) Limited",1.1999999999999999E-3,2500,9000]
["_C7_WEST",2,"C7 PD & H&SA","RJD Associates (North West) Limited",8.0000000000000004E-4,2500,9000]
["_C7_WEST",1,"C7 H&SA Only","Thornton Firkin & Partners",1.4499999999999999E-3,2000,6000]
["_C7_WEST",2,"C7 H&SA Only","Thornton Firkin & Partners",1E-3,2000,6000]
["_C7_WEST",1,"C7 PD & H&SA","Thornton Firkin & Partners",1.8E-3,3000,15000]
["_C7_WEST",2,"C7 PD & H&SA","Thornton Firkin & Partners",1.2999999999999999E-3,3000,15000]
["_C7_WEST",1,"C7 H&SA Only","Urbn Design & Consult Ltd",1E-3,550,5000]
["_C7_WEST",2,"C7 H&SA Only","Urbn Design & Consult Ltd",5.0000000000000001E-4,550,5000]
["_C7_WEST",1,"C7 PD & H&SA","Urbn Design & Consult Ltd",2E-3,1150,20000]
["_C7_WEST",2,"C7 PD & H&SA","Urbn Design & Consult Ltd",1E-3,1150,20000]
["_C7_WEST",1,"C7 H&SA Only","Vextrix",1.5E-3,6935,11680]
["_C7_WEST",2,"C7 H&SA Only","Vextrix",1.2999999999999999E-3,6935,11680]
["_C7_WEST",1,"C7 PD & H&SA","Vextrix",2.5000000000000001E-3,10000,17447]
["_C7_WEST",2,"C7 PD & H&SA","Vextrix",2E-3,10000,17447]
["_C7_WEST",1,"C7 H&SA Only","Whiteley Eaves Ltd",1.2999999999999999E-3,650,7000]
["_C7_WEST",2,"C7 H&SA Only","Whiteley Eaves Ltd",6.9999999999999999E-4,650,7000]
["_C7_WEST",1,"C7 PD & H&SA","Whiteley Eaves Ltd",1.2999999999999999E-3,650,7000]
["_C7_WEST",2,"C7 PD & H&SA","Whiteley Eaves Ltd",6.9999999999999999E-4,650,7000]
["_C7_WEST",1,"C7 H&SA Only","Wilkinson Cowan Partnership",1.1999999999999999E-3,3500,7500]
["_C7_WEST",2,"C7 H&SA Only","Wilkinson Cowan Partnership",5.5000000000000003E-4,3500,7500]
["_C7_WEST",1,"C7 PD & H&SA","Wilkinson Cowan Partnership",1.8E-3,3500,7500]
["_C7_WEST",2,"C7 PD & H&SA","Wilkinson Cowan Partnership",8.0000000000000004E-4,3500,7500]
["_C7_WEST",1,"C7 H&SA Only","WYG Engineering Limited",1E-3,1000,10500]
["_C7_WEST",2,"C7 H&SA Only","WYG Engineering Limited",6.9999999999999999E-4,1000,10500]
["_C7_WEST",1,"C7 PD & H&SA","WYG Engineering Limited",2E-3,2000,22500]
["_C7_WEST",2,"C7 PD & H&SA","WYG Engineering Limited",1.5E-3,2000,22500]

{"sheet":"Fees","index":6,"n_rows":813,"n_cols":21,"rows_kept":813,"cut":false,"hidden":true,"merged":[]}
["Lot","Supplier","Band","Stage","%Fee","Min Fee","Max fee",null,null,"C11","Supplier","Band","Stage","Per Unit Fee",null,null,"Lot","Supplier","Band","Stage","%Fee"]
["C1a West","AECOM",1,"Standard service",9.5999999999999992E-3,20000,150000,null,null,"C11 West","Arcus",1,"C11 - Pathway A",378,null,null,"C5 West","Amrin",1,"C5 - Day Rate",300]
["C1a West","Anderton Gables",1,"Standard service",0.01,30000,200000,null,null,"C11 West","BTP",1,"C11 - Pathway A",225,null,null,"C5 West","CoW Yorkshire",1,"C5 - Day Rate",295]
["C1a West","CPC",1,"Standard service",8.0000000000000002E-3,15000,100000,null,null,"C11 West","Jennings Design",1,"C11 - Pathway A",225,null,null,"C5 West","Gateley Vinden ",1,"C5 - Day Rate",450]
["C1a West","Gateley Vinden ",1,"Standard service",7.3000000000000001E-3,45000,120000,null,null,"C11 West","MHA",1,"C11 - Pathway A",180,null,null,"C5 West","Hickton",1,"C5 - Day Rate",455]
["C1a West","Identity Consult",1,"Standard service",0.01,20000,100000,null,null,"C11 West","PARCOR",1,"C11 - Pathway A",145,null,null,"C5 West","Markhams",1,"C5 - Day Rate",280]
["C1a West","Markhams",1,"Standard service",7.0000000000000001E-3,15000,97500,null,null,"C11 West","Poole Dick",1,"C11 - Pathway A",380,null,null,"C5 West","SDA",1,"C5 - Day Rate",392]
["C1a West","Michael Dyson",1,"Standard service",9.7000000000000003E-3,19808.88,135230.54999999999,null,null,"C11 West","Arcus",1,"C11 - Pathway B",389,null,null,"C5 West","Waldeck",1,"C5 - Day Rate",550]
["C1a West","NEO Projects",1,"Standard service",9.4999999999999998E-3,10000,125000,null,null,"C11 West","BTP",1,"C11 - Pathway B",225,null,null,"C5 West","WCP",1,"C5 - Day Rate",350]
["C1a West","Poole Dick",1,"Standard service",6.8999999999999999E-3,17500,105000,null,null,"C11 West","Jennings Design",1,"C11 - Pathway B",225,null,null,"C5 West","Amrin",2,"C5 - Day Rate",300]
["C1a West","Rex Proctor",1,"Standard service",8.0000000000000002E-3,12000,162500,null,null,"C11 West","MHA",1,"C11 - Pathway B",180,null,null,"C5 West","CoW Yorkshire",2,"C5 - Day Rate",295]
["C1a West","SFP",1,"Standard service",8.3000000000000001E-3,11750,144000,null,null,"C11 West","PARCOR",1,"C11 - Pathway B",185,null,null,"C5 West","Gateley Vinden ",2,"C5 - Day Rate",450]
["C1a West","Summers Inman",1,"Standard service",6.7000000000000002E-3,12400,118000,null,null,"C11 West","Poole Dick",1,"C11 - Pathway B",395,null,null,"C5 West","Hickton",2,"C5 - Day Rate",455]
["C1a West","Whiteley Eaves",1,"Standard service",6.7499999999999999E-3,3375,55000,null,null,"C11 West","Arcus",1,"C11 - Pathway C",473,null,null,"C5 West","Markhams",2,"C5 - Day Rate",280]
["C1a West","WCP",1,"Standard service",8.5000000000000006E-3,15000,120000,null,null,"C11 West","BTP",1,"C11 - Pathway C",225,null,null,"C5 West","SDA",2,"C5 - Day Rate",392]
["C1a West","AA Projects",1,"Standard service",9.9000000000000008E-3,29950,168750,null,null,"C11 West","Jennings Design",1,"C11 - Pathway C",350,null,null,"C5 West","Waldeck",2,"C5 - Day Rate",550]
["C1a West","AECOM",2,"Standard service",5.3E-3,20000,150000,null,null,"C11 West","MHA",1,"C11 - Pathway C",180,null,null,"C5 West","WCP",2,"C5 - Day Rate",350]
["C1a West","Anderton Gables",2,"Standard service",8.0000000000000002E-3,30000,200000,null,null,"C11 West","PARCOR",1,"C11 - Pathway C",195,null,null,"C5 West","Amrin",3,"C5 - Day Rate",300]
["C1a West","CPC",2,"Standard service",6.0000000000000001E-3,15000,100000,null,null,"C11 West","Poole Dick",1,"C11 - Pathway C",410,null,null,"C5 West","CoW Yorkshire",3,"C5 - Day Rate",295]
["C1a West","Gateley Vinden ",2,"Standard service",6.7499999999999999E-3,45000,120000,null,null,"C11 West","Arcus",2,"C11 - Pathway A",378,null,null,"C5 West","Gateley Vinden ",3,"C5 - Day Rate",450]
["C1a West","Identity Consult",2,"Standard service",7.0000000000000001E-3,20000,100000,null,null,"C11 West","BTP",2,"C11 - Pathway A",225,null,null,"C5 West","Hickton",3,"C5 - Day Rate",455]
["C1a West","Markhams",2,"Standard service",5.4999999999999997E-3,15000,97500,null,null,"C11 West","Jennings Design",2,"C11 - Pathway A",225,null,null,"C5 West","Markhams",3,"C5 - Day Rate",280]
["C1a West","Michael Dyson",2,"Standard service",6.7999999999999996E-3,19808.88,135230.54999999999,null,null,"C11 West","MHA",2,"C11 - Pathway A",180,null,null,"C5 West","SDA",3,"C5 - Day Rate",392]
["C1a West","NEO Projects",2,"Standard service",6.8999999999999999E-3,10000,125000,null,null,"C11 West","PARCOR",2,"C11 - Pathway A",145,null,null,"C5 West","Waldeck",3,"C5 - Day Rate",550]
["C1a West","Poole Dick",2,"Standard service",6.3E-3,17500,105000,null,null,"C11 West","Poole Dick",2,"C11 - Pathway A",380,null,null,"C5 West","WCP",3,"C5 - Day Rate",350]
["C1a West","Rex Proctor",2,"Standard service",6.4999999999999997E-3,12000,162500,null,null,"C11 West","Arcus",2,"C11 - Pathway B",389,null,null,"C5 East","Amrin",1,"C5 - Day Rate",300]
["C1a West","SFP",2,"Standard service",7.6E-3,11750,144000,null,null,"C11 West","BTP",2,"C11 - Pathway B",225,null,null,"C5 East","CoW Yorkshire",1,"C5 - Day Rate",295]
["C1a West","Summers Inman",2,"Standard service",4.7999999999999996E-3,12400,118000,null,null,"C11 West","Jennings Design",2,"C11 - Pathway B",225,null,null,"C5 East","Gateley Vinden ",1,"C5 - Day Rate",450]
["C1a West","Whiteley Eaves",2,"Standard service",5.4999999999999997E-3,3375,55000,null,null,"C11 West","MHA",2,"C11 - Pathway B",180,null,null,"C5 East","Hickton",1,"C5 - Day Rate",455]
["C1a West","WCP",2,"Standard service",6.4999999999999997E-3,15000,120000,null,null,"C11 West","PARCOR",2,"C11 - Pathway B",185,null,null,"C5 East","Markhams",1,"C5 - Day Rate",280]
["C1a West","AA Projects",2,"Standard service",7.4999999999999997E-3,29950,168750,null,null,"C11 West","Poole Dick",2,"C11 - Pathway B",395,null,null,"C5 East","Poole Dick",1,"C5 - Day Rate",615]
["C1a East","AECOM",1,"Standard service",9.7999999999999997E-3,21000,150000,null,null,"C11 West","Arcus",2,"C11 - Pathway C",473,null,null,"C5 East","Waldeck",1,"C5 - Day Rate",550]
["C1a East","Anderton Gables",1,"Standard service",0.01,30000,200000,null,null,"C11 West","BTP",2,"C11 - Pathway C",225,null,null,"C5 East","WCP",1,"C5 - Day Rate",350]
["C1a East","CPC",1,"Standard service",8.0000000000000002E-3,15000,100000,null,null,"C11 West","Jennings Design",2,"C11 - Pathway C",350,null,null,"C5 East","Amrin",2,"C5 - Day Rate",300]
["C1a East","Gateley Vinden ",1,"Standard service",7.2500000000000004E-3,45000,120000,null,null,"C11 West","MHA",2,"C11 - Pathway C",180,null,null,"C5 East","CoW Yorkshire",2,"C5 - Day Rate",295]
["C1a East","Identity Consult",1,"Standard service",0.01,20000,100000,null,null,"C11 West","PARCOR",2,"C11 - Pathway C",195,null,null,"C5 East","Gateley Vinden ",2,"C5 - Day Rate",450]
["C1a East","Markhams",1,"Standard service",7.0000000000000001E-3,15000,97500,null,null,"C11 West","Poole Dick",2,"C11 - Pathway C",410,null,null,"C5 East","Hickton",2,"C5 - Day Rate",455]
["C1a East","Michael Dyson",1,"Standard service",9.7000000000000003E-3,19808.88,135230.54999999999,null,null,"C11 East","Arcus",1,"C11 - Pathway A",473,null,null,"C5 East","Markhams",2,"C5 - Day Rate",280]
["C1a East","NEO Projects",1,"Standard service",9.4999999999999998E-3,10000,125000,null,null,"C11 East","BTP",1,"C11 - Pathway A",500,null,null,"C5 East","Poole Dick",2,"C5 - Day Rate",615]
["C1a East","Poole Dick",1,"Standard service",6.8999999999999999E-3,17500,105000,null,null,"C11 East","Jennings Design",1,"C11 - Pathway A",900,null,null,"C5 East","Waldeck",2,"C5 - Day Rate",550]
["C1a East","Rex Proctor",1,"Standard service",8.0000000000000002E-3,12000,162500,null,null,"C11 East","MHA",1,"C11 - Pathway A",250,null,null,"C5 East","WCP",2,"C5 - Day Rate",350]
["C1a East","SFP",1,"Standard service",9.1000000000000004E-3,13725,161000,null,null,"C11 East","PARCOR",1,"C11 - Pathway A",295,null,null,"C5 East","Amrin",3,"C5 - Day Rate",300]
["C1a East","Summers Inman",1,"Standard service",6.7000000000000002E-3,12400,118000,null,null,"C11 East","Poole Dick",1,"C11 - Pathway A",390,null,null,"C5 East","CoW Yorkshire",3,"C5 - Day Rate",295]
["C1a East","Whiteley Eaves",1,"Standard service",6.7499999999999999E-3,3375,55000,null,null,"C11 East","Arcus",1,"C11 - Pathway B",494,null,null,"C5 East","Gateley Vinden ",3,"C5 - Day Rate",450]
["C1a East","WCP",1,"Standard service",8.5000000000000006E-3,15000,120000,null,null,"C11 East","BTP",1,"C11 - Pathway B",500,null,null,"C5 East","Hickton",3,"C5 - Day Rate",455]
["C1a East","AA Projects",1,"Standard service",9.9000000000000008E-3,29950,168750,null,null,"C11 East","Jennings Design",1,"C11 - Pathway B",900,null,null,"C5 East","Markhams",3,"C5 - Day Rate",280]
["C1a East","AECOM",2,"Standard service",5.4999999999999997E-3,21000,150000,null,null,"C11 East","MHA",1,"C11 - Pathway B",500,null,null,"C5 East","Poole Dick",3,"C5 - Day Rate",615]
["C1a East","Anderton Gables",2,"Standard service",8.0000000000000002E-3,30000,200000,null,null,"C11 East","PARCOR",1,"C11 - Pathway B",395,null,null,"C5 East","Waldeck",3,"C5 - Day Rate",550]
["C1a East","CPC",2,"Standard service",6.0000000000000001E-3,15000,100000,null,null,"C11 East","Poole Dick",1,"C11 - Pathway B",413,null,null,"C5 East","WCP",3,"C5 - Day Rate",350]
["C1a East","Gateley Vinden ",2,"Standard service",6.7499999999999999E-3,45000,120000,null,null,"C11 East","Arcus",1,"C11 - Pathway C",515,null,null,"C10 West","BWB",1,"C10 - Executive Director",950]
["C1a East","Identity Consult",2,"Standard service",7.0000000000000001E-3,20000,100000,null,null,"C11 East","BTP",1,"C11 - Pathway C",500,null,null,"C10 West","Clancy",1,"C10 - Executive Director",1050]
["C1a East","Markhams",2,"Standard service",5.4999999999999997E-3,15000,97500,null,null,"C11 East","Jennings Design",1,"C11 - Pathway C",1050,null,null,"C10 West","Davies M&E",1,"C10 - Executive Director",575]
["C1a East","Michael Dyson",2,"Standard service",6.7999999999999996E-3,19808.88,135230.54999999999,null,null,"C11 East","MHA",1,"C11 - Pathway C",550,null,null,"C10 West","Pettit Singleton",1,"C10 - Executive Director",720]
["C1a East","NEO Projects",2,"Standard service",6.8999999999999999E-3,10000,125000,null,null,"C11 East","PARCOR",1,"C11 - Pathway C",495,null,null,"C10 West","Steven A Hunt",1,"C10 - Executive Director",600]
["C1a East","Poole Dick",2,"Standard service",6.3E-3,17500,105000,null,null,"C11 East","Poole Dick",1,"C11 - Pathway C",425,null,null,"C10 West","Watts Group",1,"C10 - Executive Director",1000]
["C1a East","Rex Proctor",2,"Standard service",6.4999999999999997E-3,12000,162500,null,null,"C11 East","Arcus",2,"C11 - Pathway A",473,null,null,"C10 West","BWB",1,"C10 - Daily Point of Contact",862.5]
["C1a East","SFP",2,"Standard service",8.2000000000000007E-3,13725,161000,null,null,"C11 East","BTP",2,"C11 - Pathway A",500,null,null,"C10 West","Clancy",1,"C10 - Daily Point of Contact",637.5]
["C1a East","Summers Inman",2,"Standard service",4.7999999999999996E-3,12400,118000,null,null,"C11 East","Jennings Design",2,"C11 - Pathway A",900,null,null,"C10 West","Davies M&E",1,"C10 - Daily Point of Contact",500]
["C1a East","Whiteley Eaves",2,"Standard service",5.4999999999999997E-3,3375,55000,null,null,"C11 East","MHA",2,"C11 - Pathway A",250,null,null,"C10 West","Pettit Singleton",1,"C10 - Daily Point of Contact",616]
["C1a East","WCP",2,"Standard service",6.4999999999999997E-3,15000,120000,null,null,"C11 East","PARCOR",2,"C11 - Pathway A",295,null,null,"C10 West","Steven A Hunt",1,"C10 - Daily Point of Contact",440]
["C1a East","AA Projects",2,"Standard service",7.4999999999999997E-3,29950,168750,null,null,"C11 East","Poole Dick",2,"C11 - Pathway A",390,null,null,"C10 West","Watts Group",1,"C10 - Daily Point of Contact",675]
["C1b West","Anderton Gables",1,"C1b - PD & H&S",1.2500000000000001E-2,35000,200000,null,null,"C11 East","Arcus",2,"C11 - Pathway B",494,null,null,"C10 West","BWB",1,"C10 - Total",1812.5]
["C1b West","Arcus",1,"C1b - PD & H&S",1.0540000000000001E-2,13870,143450,null,null,"C11 East","BTP",2,"C11 - Pathway B",500,null,null,"C10 West","Clancy",1,"C10 - Total",1687.5]
["C1b West","CPC",1,"C1b - PD & H&S",9.4999999999999998E-3,20000,120000,null,null,"C11 East","Jennings Design",2,"C11 - Pathway B",900,null,null,"C10 West","Davies M&E",1,"C10 - Total",1075]
["C1b West","Gateley Vinden ",1,"C1b - PD & H&S",9.0399999999999994E-3,50500,143100,null,null,"C11 East","MHA",2,"C11 - Pathway B",500,null,null,"C10 West","Pettit Singleton",1,"C10 - Total",1336]
["C1b West","Identity Consult",1,"C1b - PD & H&S",1.2E-2,26000,118000,null,null,"C11 East","PARCOR",2,"C11 - Pathway B",395,null,null,"C10 West","Steven A Hunt",1,"C10 - Total",1040]
["C1b West","Markhams",1,"C1b - PD & H&S",8.0000000000000002E-3,17500,107500,null,null,"C11 East","Poole Dick",2,"C11 - Pathway B",413,null,null,"C10 West","Watts Group",1,"C10 - Total",1675]
["C1b West","NEO Projects",1,"C1b - PD & H&S",1.0999999999999999E-2,14000,137000,null,null,"C11 East","Arcus",2,"C11 - Pathway C",515,null,null,"C10 West","BWB",2,"C10 - Executive Director",950]
["C1b West","Poole Dick",1,"C1b - PD & H&S",8.3999999999999995E-3,23000,113000,null,null,"C11 East","BTP",2,"C11 - Pathway C",500,null,null,"C10 West","Clancy",2,"C10 - Executive Director",1050]
["C1b West","Rex Proctor",1,"C1b - PD & H&S",1.098E-2,14950,186300,null,null,"C11 East","Jennings Design",2,"C11 - Pathway C",1050,null,null,"C10 West","Davies M&E",2,"C10 - Executive Director",575]
["C1b West","Savills",1,"C1b - PD & H&S",9.4500000000000001E-3,12000,206000,null,null,"C11 East","MHA",2,"C11 - Pathway C",550,null,null,"C10 West","Pettit Singleton",2,"C10 - Executive Director",720]
["C1b West","SFP",1,"C1b - PD & H&S",9.7999999999999997E-3,15725,156250,null,null,"C11 East","PARCOR",2,"C11 - Pathway C",495,null,null,"C10 West","Steven A Hunt",2,"C10 - Executive Director",600]
["C1b West","Summers Inman",1,"C1b - PD & H&S",8.0000000000000002E-3,15900,127000,null,null,"C11 East","Poole Dick",2,"C11 - Pathway C",425,null,null,"C10 West","Watts Group",2,"C10 - Executive Director",1000]
["C1b West","Whiteley Eaves",1,"C1b - PD & H&S",8.3999999999999995E-3,23000,113000,null,null,null,null,null,null,null,null,null,"C10 West","BWB",2,"C10 - Daily Point of Contact",862.5]
["C1b West","WCP",1,"C1b - PD & H&S",1.03E-2,18500,127500,null,null,null,null,null,null,null,null,null,"C10 West","Clancy",2,"C10 - Daily Point of Contact",637.5]
["C1b West","AA Projects",1,"C1b - PD & H&S",1.34E-2,37450,196250,null,null,null,null,null,null,null,null,null,"C10 West","Davies M&E",2,"C10 - Daily Point of Contact",500]
["C1b West","Anderton Gables",2,"C1b - PD & H&S",8.9999999999999993E-3,35000,200000,null,null,null,null,null,null,null,null,null,"C10 West","Pettit Singleton",2,"C10 - Daily Point of Contact",616]
["C1b West","Arcus",2,"C1b - PD & H&S",7.9900000000000006E-3,13870,143450,null,null,null,null,null,null,null,null,null,"C10 West","Steven A Hunt",2,"C10 - Daily Point of Contact",440]
["C1b West","CPC",2,"C1b - PD & H&S",7.4999999999999997E-3,20000,120000,null,null,null,null,null,null,null,null,null,"C10 West","Watts Group",2,"C10 - Daily Point of Contact",675]
["C1b West","Gateley Vinden ",2,"C1b - PD & H&S",8.5400000000000007E-3,50500,143100,null,null,null,null,null,null,null,null,null,"C10 West","BWB",2,"C10 - Total",1812.5]
["C1b West","Identity Consult",2,"C1b - PD & H&S",8.8000000000000005E-3,26000,118000,null,null,null,null,null,null,null,null,null,"C10 West","Clancy",2,"C10 - Total",1687.5]
["C1b West","Markhams",2,"C1b - PD & H&S",6.0000000000000001E-3,17500,107500,null,null,null,null,null,null,null,null,null,"C10 West","Davies M&E",2,"C10 - Total",1075]
["C1b West","NEO Projects",2,"C1b - PD & H&S",8.0999999999999996E-3,14000,137000,null,null,null,null,null,null,null,null,null,"C10 West","Pettit Singleton",2,"C10 - Total",1336]
["C1b West","Poole Dick",2,"C1b - PD & H&S",7.3000000000000001E-3,23000,113000,null,null,null,null,null,null,null,null,null,"C10 West","Steven A Hunt",2,"C10 - Total",1040]
["C1b West","Rex Proctor",2,"C1b - PD & H&S",7.45E-3,14950,186300,null,null,null,null,null,null,null,null,null,"C10 West","Watts Group",2,"C10 - Total",1675]
["C1b West","Savills",2,"C1b - PD & H&S",9.1500000000000001E-3,12000,206000,null,null,null,null,null,null,null,null,null,"C10 East","BWB",1,"C10 - Executive Director",950]
["C1b West","SFP",2,"C1b - PD & H&S",8.5000000000000006E-3,15725,156250,null,null,null,null,null,null,null,null,null,"C10 East","Davies M&E",1,"C10 - Executive Director",575]
["C1b West","Summers Inman",2,"C1b - PD & H&S",5.7999999999999996E-3,15900,127000,null,null,null,null,null,null,null,null,null,"C10 East","Kinetic",1,"C10 - Executive Director",562]
["C1b West","Whiteley Eaves",2,"C1b - PD & H&S",7.3000000000000001E-3,23000,113000,null,null,null,null,null,null,null,null,null,"C10 East","Pettit Singleton",1,"C10 - Executive Director",720]
["C1b West","WCP",2,"C1b - PD & H&S",7.4999999999999997E-3,18500,127500,null,null,null,null,null,null,null,null,null,"C10 East","S I Sealy",1,"C10 - Executive Director",900]
["C1b West","AA Projects",2,"C1b - PD & H&S",8.9899999999999997E-3,37450,196250,null,null,null,null,null,null,null,null,null,"C10 East","Watts Group",1,"C10 - Executive Director",1000]
["C1b West","Anderton Gables",1,"C1b - H&S Only",1.2500000000000001E-2,35000,200000,null,null,null,null,null,null,null,null,null,"C10 East","BWB",1,"C10 - Daily Point of Contact",862.5]
["C1b West","Arcus",1,"C1b - H&S Only",9.7400000000000004E-3,13602,136800,null,null,null,null,null,null,null,null,null,"C10 East","Davies M&E",1,"C10 - Daily Point of Contact",500]
["C1b West","CPC",1,"C1b - H&S Only",9.4999999999999998E-3,20000,120000,null,null,null,null,null,null,null,null,null,"C10 East","Kinetic",1,"C10 - Daily Point of Contact",487]
["C1b West","Gateley Vinden ",1,"C1b - H&S Only",8.3800000000000003E-3,50500,133200,null,null,null,null,null,null,null,null,null,"C10 East","Pettit Singleton",1,"C10 - Daily Point of Contact",616]
["C1b West","Identity Consult",1,"C1b - H&S Only",1.12E-2,24500,110000,null,null,null,null,null,null,null,null,null,"C10 East","S I Sealy",1,"C10 - Daily Point of Contact",600]
["C1b West","Markhams",1,"C1b - H&S Only",7.6E-3,17000,105000,null,null,null,null,null,null,null,null,null,"C10 East","Watts Group",1,"C10 - Daily Point of Contact",675]
["C1b West","NEO Projects ",1,"C1b - H&S Only",1.0200000000000001E-2,12340,130000,null,null,null,null,null,null,null,null,null,"C10 East","BWB",1,"C10 - Total",1812.5]
["C1b West","Poole Dick",1,"C1b - H&S Only",8.3999999999999995E-3,21000,109500,null,null,null,null,null,null,null,null,null,"C10 East","Davies M&E",1,"C10 - Total",1075]
["C1b West","Rex Proctor",1,"C1b - H&S Only",9.2499999999999995E-3,14150,172150,null,null,null,null,null,null,null,null,null,"C10 East","Kinetic",1,"C10 - Total",1049]
["C1b West","Savills",1,"C1b - H&S Only",8.6899999999999998E-3,7700,191200,null,null,null,null,null,null,null,null,null,"C10 East","Pettit Singleton",1,"C10 - Total",1336]
["C1b West","SFP",1,"C1b - H&S Only",9.1000000000000004E-3,13325,151450,null,null,null,null,null,null,null,null,null,"C10 East","S I Sealy",1,"C10 - Total",1500]
["C1b West","Summers Inman",1,"C1b - H&S Only",7.7999999999999996E-3,15400,125000,null,null,null,null,null,null,null,null,null,"C10 East","Watts Group",1,"C10 - Total",1675]
["C1b West","Whiteley Eaves",1,"C1b - H&S Only",8.3999999999999995E-3,21000,109500,null,null,null,null,null,null,null,null,null,"C10 East","BWB",2,"C10 - Executive Director",950]
["C1b West","WCP",1,"C1b - H&S Only",9.7000000000000003E-3,17000,124500,null,null,null,null,null,null,null,null,null,"C10 East","Davies M&E",2,"C10 - Executive Director",575]
["C1b West","AA Projects",1,"C1b - H&S Only",1.24E-2,34450,183250,null,null,null,null,null,null,null,null,null,"C10 East","Kinetic",2,"C10 - Executive Director",562]
["C1b West","Anderton Gables",2,"C1b - H&S Only",8.9999999999999993E-3,35000,200000,null,null,null,null,null,null,null,null,null,"C10 East","Pettit Singleton",2,"C10 - Executive Director",720]
["C1b West","Arcus",2,"C1b - H&S Only",7.4099999999999999E-3,13602,136800,null,null,null,null,null,null,null,null,null,"C10 East","S I Sealy",2,"C10 - Executive Director",900]
["C1b West","CPC",2,"C1b - H&S Only",7.4999999999999997E-3,20000,120000,null,null,null,null,null,null,null,null,null,"C10 East","Watts Group",2,"C10 - Executive Director",1000]
["C1b West","Gateley Vinden ",2,"C1b - H&S Only",7.8799999999999999E-3,50500,133200,null,null,null,null,null,null,null,null,null,"C10 East","BWB",2,"C10 - Daily Point of Contact",862.5]
["C1b West","Identity Consult",2,"C1b - H&S Only",8.0000000000000002E-3,24500,110000,null,null,null,null,null,null,null,null,null,"C10 East","Davies M&E",2,"C10 - Daily Point of Contact",500]
["C1b West","Markhams",2,"C1b - H&S Only",5.7000000000000002E-3,17000,105000,null,null,null,null,null,null,null,null,null,"C10 East","Kinetic",2,"C10 - Daily Point of Contact",487]
["C1b West","NEO Projects ",2,"C1b - H&S Only",7.4000000000000003E-3,12340,130000,null,null,null,null,null,null,null,null,null,"C10 East","Pettit Singleton",2,"C10 - Daily Point of Contact",616]
["C1b West","Poole Dick",2,"C1b - H&S Only",7.0000000000000001E-3,21000,109500,null,null,null,null,null,null,null,null,null,"C10 East","S I Sealy",2,"C10 - Daily Point of Contact",600]
["C1b West","Rex Proctor",2,"C1b - H&S Only",6.8900000000000003E-3,14150,172150,null,null,null,null,null,null,null,null,null,"C10 East","Watts Group",2,"C10 - Daily Point of Contact",675]
["C1b West","Savills",2,"C1b - H&S Only",8.6300000000000005E-3,7700,191200,null,null,null,null,null,null,null,null,null,"C10 East","BWB",2,"C10 - Total",1812.5]
["C1b West","SFP",2,"C1b - H&S Only",8.0999999999999996E-3,13325,151450,null,null,null,null,null,null,null,null,null,"C10 East","Davies M&E",2,"C10 - Total",1075]
["C1b West","Summers Inman",2,"C1b - H&S Only",5.5999999999999999E-3,15400,125000,null,null,null,null,null,null,null,null,null,"C10 East","Kinetic",2,"C10 - Total",1049]
["C1b West","Whiteley Eaves",2,"C1b - H&S Only",7.0000000000000001E-3,21000,109500,null,null,null,null,null,null,null,null,null,"C10 East","Pettit Singleton",2,"C10 - Total",1336]
["C1b West","WCP",2,"C1b - H&S Only",7.1999999999999998E-3,17000,124500,null,null,null,null,null,null,null,null,null,"C10 East","S I Sealy",2,"C10 - Total",1500]
["C1b West","AA Projects",2,"C1b - H&S Only",8.3000000000000001E-3,34450,183250,null,null,null,null,null,null,null,null,null,"C10 East","Watts Group",2,"C10 - Total",1675]
["C1b East","Anderton Gables",1,"C1b - PD & H&S",1.2500000000000001E-2,35000,200000]
["C1b East","Arcus",1,"C1b - PD & H&S",1.0540000000000001E-2,13870,143450]
["C1b East","CPC",1,"C1b - PD & H&S",9.4999999999999998E-3,20000,120000]
["C1b East","Gateley Vinden ",1,"C1b - PD & H&S",9.0399999999999994E-3,50500,143100]
["C1b East","Identity Consult",1,"C1b - PD & H&S",1.2E-2,26000,118000]
["C1b East","Markhams",1,"C1b - PD & H&S",8.0000000000000002E-3,17500,107500]
["C1b East","NEO Projects ",1,"C1b - PD & H&S",1.0999999999999999E-2,14000,137000]
["C1b East","Poole Dick",1,"C1b - PD & H&S",8.3999999999999995E-3,23000,113000]
["C1b East","Rex Proctor",1,"C1b - PD & H&S",1.098E-2,14950,186300]
["C1b East","Savills",1,"C1b - PD & H&S",9.4500000000000001E-3,12000,206000]
["C1b East","SFP",1,"C1b - PD & H&S",1.06E-2,16725,161000]
["C1b East","Summers Inman",1,"C1b - PD & H&S",8.0000000000000002E-3,15900,127000]
["C1b East","Whiteley Eaves",1,"C1b - PD & H&S",8.3999999999999995E-3,23000,113000]
["C1b East","WCP",1,"C1b - PD & H&S",1.03E-2,18500,127500]
["C1b East","AA Projects",1,"C1b - PD & H&S",1.34E-2,37450,196250]
["C1b East","Anderton Gables",2,"C1b - PD & H&S",8.9999999999999993E-3,35000,200000]
["C1b East","Arcus",2,"C1b - PD & H&S",7.9900000000000006E-3,13870,143450]
["C1b East","CPC",2,"C1b - PD & H&S",7.4999999999999997E-3,20000,120000]
["C1b East","Gateley Vinden ",2,"C1b - PD & H&S",8.5400000000000007E-3,50500,143100]
["C1b East","Identity Consult",2,"C1b - PD & H&S",8.8000000000000005E-3,26000,118000]
["C1b East","Markhams",2,"C1b - PD & H&S",6.0000000000000001E-3,17500,107500]
["C1b East","NEO Projects ",2,"C1b - PD & H&S",8.0999999999999996E-3,14000,137000]
["C1b East","Poole Dick",2,"C1b - PD & H&S",7.3000000000000001E-3,23000,113000]
["C1b East","Rex Proctor",2,"C1b - PD & H&S",7.45E-3,14950,186300]
["C1b East","Savills",2,"C1b - PD & H&S",9.1500000000000001E-3,12000,206000]
["C1b East","SFP",2,"C1b - PD & H&S",9.1000000000000004E-3,16725,161000]
["C1b East","Summers Inman",2,"C1b - PD & H&S",5.7999999999999996E-3,15900,127000]
["C1b East","Whiteley Eaves",2,"C1b - PD & H&S",7.3000000000000001E-3,23000,113000]
["C1b East","WCP",2,"C1b - PD & H&S",7.4999999999999997E-3,18500,127500]
["C1b East","AA Projects",2,"C1b - PD & H&S",8.9899999999999997E-3,37450,196250]
["C1b East","Anderton Gables",1,"C1b - H&S Only",1.2500000000000001E-2,35000,200000]
["C1b East","Arcus",1,"C1b - H&S Only",9.7400000000000004E-3,13602,136800]
["C1b East","CPC",1,"C1b - H&S Only",9.4999999999999998E-3,20000,120000]
["C1b East","Gateley Vinden ",1,"C1b - H&S Only",8.3800000000000003E-3,50500,133200]
["C1b East","Identity Consult",1,"C1b - H&S Only",1.12E-2,24500,110000]
["C1b East","Markhams",1,"C1b - H&S Only",7.6E-3,17000,105000]
["C1b East","NEO Projects ",1,"C1b - H&S Only",1.0200000000000001E-2,12340,130000]
["C1b East","Poole Dick",1,"C1b - H&S Only",8.3999999999999995E-3,21000,109500]
["C1b East","Rex Proctor",1,"C1b - H&S Only",9.2499999999999995E-3,14150,172150]
["C1b East","Savills",1,"C1b - H&S Only",8.6899999999999998E-3,7700,191200]
["C1b East","SFP",1,"C1b - H&S Only",9.9000000000000008E-3,14475,157000]
["C1b East","Summers Inman",1,"C1b - H&S Only",7.7999999999999996E-3,15400,125000]
["C1b East","Whiteley Eaves",1,"C1b - H&S Only",8.3999999999999995E-3,21000,109500]
["C1b East","WCP",1,"C1b - H&S Only",9.7000000000000003E-3,17000,124500]
["C1b East","AA Projects",1,"C1b - H&S Only",1.24E-2,34450,183250]
["C1b East","Anderton Gables",2,"C1b - H&S Only",8.9999999999999993E-3,35000,200000]
["C1b East","Arcus",2,"C1b - H&S Only",7.4099999999999999E-3,13602,136800]
["C1b East","CPC",2,"C1b - H&S Only",7.4999999999999997E-3,20000,120000]
["C1b East","Gateley Vinden ",2,"C1b - H&S Only",7.8799999999999999E-3,50500,133200]
["C1b East","Identity Consult",2,"C1b - H&S Only",8.0000000000000002E-3,24500,110000]
["C1b East","Markhams",2,"C1b - H&S Only",5.7000000000000002E-3,17000,105000]
["C1b East","NEO Projects ",2,"C1b - H&S Only",7.4000000000000003E-3,12340,130000]
["C1b East","Poole Dick",2,"C1b - H&S Only",7.0000000000000001E-3,21000,109500]
["C1b East","Rex Proctor",2,"C1b - H&S Only",6.8900000000000003E-3,14150,172150]
["C1b East","Savills",2,"C1b - H&S Only",8.6300000000000005E-3,7700,191200]
["C1b East","SFP",2,"C1b - H&S Only",8.6999999999999994E-3,14475,157000]
["C1b East","Summers Inman",2,"C1b - H&S Only",5.5999999999999999E-3,15400,125000]
["C1b East","Whiteley Eaves",2,"C1b - H&S Only",7.0000000000000001E-3,21000,109500]
["C1b East","WCP",2,"C1b - H&S Only",7.1999999999999998E-3,17000,124500]
["C1b East","AA Projects",2,"C1b - H&S Only",8.3000000000000001E-3,34450,183250]
["C2 West","Adept",1,"Standard service",1.0500000000000001E-2,10000,187500]
["C2 West","AJP",1,"Standard service",7.2500000000000004E-3,8000,120000]
["C2 West","HBL",1,"Standard service",7.4999999999999997E-3,350,150000]
["C2 West","Ridge",1,"Standard service",9.7000000000000003E-3,7500,212500]
["C2 West","Rodgers Leask",1,"Standard service",5.2500000000000003E-3,6000,98000]
["C2 West","SCP",1,"Standard service",8.0000000000000002E-3,10000,94500]
["C2 West","Shape",1,"Standard service",8.9999999999999993E-3,5000,200000]
["C2 West","Sutcliffe",1,"Standard service",5.1999999999999998E-3,10000,125000]
["C2 West","Adept",2,"Standard service",7.4999999999999997E-3,10000,187500]
["C2 West","AJP",2,"Standard service",6.4999999999999997E-3,8000,120000]
["C2 West","HBL",2,"Standard service",5.0000000000000001E-3,350,150000]
["C2 West","Ridge",2,"Standard service",8.5000000000000006E-3,7500,212500]
["C2 West","Rodgers Leask",2,"Standard service",4.2500000000000003E-3,6000,98000]
["C2 West","SCP",2,"Standard service",5.1999999999999998E-3,10000,94500]
["C2 West","Shape",2,"Standard service",7.0000000000000001E-3,5000,200000]
["C2 West","Sutcliffe",2,"Standard service",4.8999999999999998E-3,10000,125000]
["C2 East","Adept",1,"Standard service",1.0500000000000001E-2,10000,187500]
["C2 East","AJP",1,"Standard service",8.8000000000000005E-3,10000,125000]
["C2 East","HBL",1,"Standard service",7.4999999999999997E-3,350,150000]
["C2 East","Ridge",1,"Standard service",9.7000000000000003E-3,7500,212500]
["C2 East","Rodgers Leask",1,"Standard service",5.2500000000000003E-3,6000,98000]
["C2 East","SCP",1,"Standard service",8.0000000000000002E-3,10000,94500]
["C2 East","Shape",1,"Standard service",8.9999999999999993E-3,5000,200000]
["C2 East","Sutcliffe",1,"Standard service",5.4000000000000003E-3,10000,125000]
["C2 East","Adept",2,"Standard service",7.4999999999999997E-3,10000,187500]
["C2 East","AJP",2,"Standard service",8.0000000000000002E-3,10000,125000]
["C2 East","HBL",2,"Standard service",5.0000000000000001E-3,350,150000]
["C2 East","Ridge",2,"Standard service",8.5000000000000006E-3,7500,212500]
["C2 East","Rodgers Leask",2,"Standard service",4.2500000000000003E-3,6000,98000]
["C2 East","SCP",2,"Standard service",5.1999999999999998E-3,10000,94500]
["C2 East","Shape",2,"Standard service",7.0000000000000001E-3,5000,200000]
["C2 East","Sutcliffe",2,"Standard service",5.0000000000000001E-3,10000,125000]
["C3 West","Anderton Gables",1,"Standard service",0.04,25000,150000]
["C3 West","Bailey Wilson",1,"Standard service",0.08,1500,60000]
["C3 West","MAC",1,"Standard service",0.02,6250,195000]
["C3 West","PARCOR",1,"Standard service",0.05,25000,175000]
["C3 West","SDA",1,"Standard service",2.5000000000000001E-2,125000,200000]
["C3 West","Summers Inman",1,"Standard service",7.0000000000000007E-2,12500,250000]
["C3 West","Whiteley Eaves",1,"Standard service",1.2E-2,6000,85000]
["C3 West","WCP",1,"Standard service",4.2999999999999997E-2,10000,80000]
["C3 West","Anderton Gables",2,"Standard service",0.03,25000,150000]
["C3 West","Bailey Wilson",2,"Standard service",0.06,1500,60000]
["C3 West","MAC",2,"Standard service",1.4500000000000001E-2,6250,195000]
["C3 West","PARCOR",2,"Standard service",0.04,25000,175000]
["C3 West","SDA",2,"Standard service",0.02,125000,200000]
["C3 West","Summers Inman",2,"Standard service",4.9000000000000002E-2,12500,250000]
["C3 West","Whiteley Eaves",2,"Standard service",8.5000000000000006E-3,6000,85000]
["C3 West","WCP",2,"Standard service",3.5000000000000003E-2,10000,80000]
["C3 East","Anderton Gables",1,"Standard service",0.04,25000,150000]
["C3 East","Bailey Wilson",1,"Standard service",0.08,1500,60000]
["C3 East","MAC",1,"Standard service",0.02,6250,195000]
["C3 East","PARCOR",1,"Standard service",0.05,25000,175000]
["C3 East","Rex Proctor",1,"Standard service",4.4999999999999998E-2,4375,370500]
["C3 East","Summers Inman",1,"Standard service",7.0000000000000007E-2,12500,250000]
["C3 East","Whiteley Eaves",1,"Standard service",1.2E-2,6000,85000]
["C3 East","WCP",1,"Standard service",4.2999999999999997E-2,10000,80000]
["C3 East","Anderton Gables",2,"Standard service",0.03,25000,150000]
["C3 East","Bailey Wilson",2,"Standard service",0.06,1500,60000]
["C3 East","MAC",2,"Standard service",1.4500000000000001E-2,6250,195000]
["C3 East","PARCOR",2,"Standard service",0.04,25000,175000]
["C3 East","Rex Proctor",2,"Standard service",3.7100000000000001E-2,4375,370500]
["C3 East","Summers Inman",2,"Standard service",4.9000000000000002E-2,12500,250000]
["C3 East","Whiteley Eaves",2,"Standard service",8.5000000000000006E-3,6000,85000]
["C3 East","WCP",2,"Standard service",3.5000000000000003E-2,10000,80000]
["C4a West","AEW",1,"C4 - Stage 1 W/o Planning Consultant",8.5000000000000006E-3,1500,149000]
["C4a West","BTP",1,"C4 - Stage 1 W/o Planning Consultant",8.9999999999999993E-3,1500,273000]
["C4a West","Bowker Sadler",1,"C4 - Stage 1 W/o Planning Consultant",6.1999999999999998E-3,3720,78000]
["C4a West","DK Architects",1,"C4 - Stage 1 W/o Planning Consultant",5.6600000000000001E-3,3500,105000]
["C4a West","JMA",1,"C4 - Stage 1 W/o Planning Consultant",8.9999999999999993E-3,5525,150000]
["C4a West","MPSL",1,"C4 - Stage 1 W/o Planning Consultant",7.1999999999999998E-3,1550,99000]
["C4a West","P+HS",1,"C4 - Stage 1 W/o Planning Consultant",5.8999999999999999E-3,9440,112500]
["C4a West","PJP",1,"C4 - Stage 1 W/o Planning Consultant",5.7999999999999996E-3,580,70000]
["C4a West","Triangle",1,"C4 - Stage 1 W/o Planning Consultant",8.2000000000000007E-3,6900,98550]
["C4a West","Drome",1,"C4 - Stage 1 W/o Planning Consultant",5.9199999999999999E-3,985,82500]
["C4a West","AEW",1,"C4 - Stage 1 with Planning Consultant",8.0000000000000002E-3,1500,139000]
["C4a West","BTP",1,"C4 - Stage 1 with Planning Consultant",8.0000000000000002E-3,1500,252000]
["C4a West","Bowker Sadler",1,"C4 - Stage 1 with Planning Consultant",5.4999999999999997E-3,3300,73500]
["C4a West","DK Architects",1,"C4 - Stage 1 with Planning Consultant",5.3800000000000002E-3,3500,100000]
["C4a West","JMA",1,"C4 - Stage 1 with Planning Consultant",8.5000000000000006E-3,5000,140000]
["C4a West","MPSL",1,"C4 - Stage 1 with Planning Consultant",6.3E-3,1150,77625]
["C4a West","P+HS",1,"C4 - Stage 1 with Planning Consultant",5.4000000000000003E-3,8640,100000]
["C4a West","PJP",1,"C4 - Stage 1 with Planning Consultant",5.7000000000000002E-3,580,65500]
["C4a West","Triangle",1,"C4 - Stage 1 with Planning Consultant",7.4000000000000003E-3,6250,89100]
["C4a West","Drome",1,"C4 - Stage 1 with Planning Consultant",5.1599999999999997E-3,985,82500]
["C4a West","AEW",1,"C4 - Stage 2",9.4999999999999998E-3,1600,175000]
["C4a West","BTP",1,"C4 - Stage 2",7.4999999999999997E-3,1500,273000]
["C4a West","Bowker Sadler",1,"C4 - Stage 2",1.15E-2,6900,145500]
["C4a West","DK Architects",1,"C4 - Stage 2",1.051E-2,6000,210000]
["C4a West","JMA",1,"C4 - Stage 2",8.8999999999999999E-3,5625,148000]
["C4a West","MPSL",1,"C4 - Stage 2",7.1999999999999998E-3,1950,99500]
["C4a West","P+HS",1,"C4 - Stage 2",1.1299999999999999E-2,18080,212500]
["C4a West","PJP",1,"C4 - Stage 2",1.4500000000000001E-2,1450,198000]
["C4a West","Triangle",1,"C4 - Stage 2",1.4E-2,11780,168750]
["C4a West","Drome",1,"C4 - Stage 2",8.1799999999999998E-3,985,94500]
["C4a West","AEW",2,"C4 - Stage 1 W/o Planning Consultant",8.0000000000000002E-3,1500,149000]
["C4a West","BTP",2,"C4 - Stage 1 W/o Planning Consultant",8.0000000000000002E-3,1500,273000]
["C4a West","Bowker Sadler",2,"C4 - Stage 1 W/o Planning Consultant",5.1999999999999998E-3,3720,78000]
["C4a West","DK Architects",2,"C4 - Stage 1 W/o Planning Consultant",5.1200000000000004E-3,3500,105000]
["C4a West","JMA",2,"C4 - Stage 1 W/o Planning Consultant",7.4999999999999997E-3,5525,150000]
["C4a West","MPSL",2,"C4 - Stage 1 W/o Planning Consultant",6.0000000000000001E-3,1550,99000]
["C4a West","P+HS",2,"C4 - Stage 1 W/o Planning Consultant",4.4999999999999997E-3,9440,112500]
["C4a West","PJP",2,"C4 - Stage 1 W/o Planning Consultant",4.8999999999999998E-3,580,70000]
["C4a West","Triangle",2,"C4 - Stage 1 W/o Planning Consultant",7.3000000000000001E-3,6900,98550]
["C4a West","Drome",2,"C4 - Stage 1 W/o Planning Consultant",5.1500000000000001E-3,985,82500]
["C4a West","AEW",2,"C4 - Stage 1 with Planning Consultant",7.7000000000000002E-3,1500,139000]
["C4a West","BTP",2,"C4 - Stage 1 with Planning Consultant",7.0000000000000001E-3,1500,252000]
["C4a West","Bowker Sadler",2,"C4 - Stage 1 with Planning Consultant",4.8999999999999998E-3,3300,73500]
["C4a West","DK Architects",2,"C4 - Stage 1 with Planning Consultant",4.8599999999999997E-3,3500,100000]
["C4a West","JMA",2,"C4 - Stage 1 with Planning Consultant",7.0000000000000001E-3,5000,140000]
["C4a West","MPSL",2,"C4 - Stage 1 with Planning Consultant",5.1999999999999998E-3,1150,77625]
["C4a West","P+HS",2,"C4 - Stage 1 with Planning Consultant",4.0000000000000001E-3,8640,100000]
["C4a West","PJP",2,"C4 - Stage 1 with Planning Consultant",4.7999999999999996E-3,580,65500]
["C4a West","Triangle",2,"C4 - Stage 1 with Planning Consultant",6.6E-3,6250,89100]
["C4a West","Drome",2,"C4 - Stage 1 with Planning Consultant",4.5900000000000003E-3,985,82500]
["C4a West","AEW",2,"C4 - Stage 2",8.8000000000000005E-3,1600,175000]
["C4a West","BTP",2,"C4 - Stage 2",7.0000000000000001E-3,1500,273000]
["C4a West","Bowker Sadler",2,"C4 - Stage 2",9.7000000000000003E-3,6900,145500]
["C4a West","DK Architects",2,"C4 - Stage 2",9.5099999999999994E-3,6000,210000]
["C4a West","JMA",2,"C4 - Stage 2",7.4000000000000003E-3,5625,148000]
["C4a West","MPSL",2,"C4 - Stage 2",6.0000000000000001E-3,1950,99500]
["C4a West","P+HS",2,"C4 - Stage 2",8.5000000000000006E-3,18080,212500]
["C4a West","PJP",2,"C4 - Stage 2",1.32E-2,1450,198000]
["C4a West","Triangle",2,"C4 - Stage 2",1.2500000000000001E-2,11780,168750]
["C4a West","Drome",2,"C4 - Stage 2",7.11E-3,985,94500]
["C4a East","BTP",1,"C4 - Stage 1 W/o Planning Consultant",8.9999999999999993E-3,1500,273000]
["C4a East","Bowker Sadler",1,"C4 - Stage 1 W/o Planning Consultant",7.7000000000000002E-3,4620,87000]
["C4a East","AEW",1,"C4 - Stage 1 W/o Planning Consultant",8.5000000000000006E-3,1500,149000]
["C4a East","DK Architects",1,"C4 - Stage 1 W/o Planning Consultant",5.8999999999999999E-3,3500,105000]
["C4a East","JMA",1,"C4 - Stage 1 W/o Planning Consultant",9.1000000000000004E-3,5625,152000]
["C4a East","MPSL",1,"C4 - Stage 1 W/o Planning Consultant",7.1999999999999998E-3,1550,99000]
["C4a East","P+HS",1,"C4 - Stage 1 W/o Planning Consultant",5.8999999999999999E-3,9440,110000]
["C4a East","PJP",1,"C4 - Stage 1 W/o Planning Consultant",6.4999999999999997E-3,650,75000]
["C4a East","Triangle",1,"C4 - Stage 1 W/o Planning Consultant",8.0000000000000002E-3,6900,95850]
["C4a East","Drome",1,"C4 - Stage 1 W/o Planning Consultant",5.9199999999999999E-3,985,82500]
["C4a East","BTP",1,"C4 - Stage 1 with Planning Consultant",8.0000000000000002E-3,1500,252000]
["C4a East","Bowker Sadler",1,"C4 - Stage 1 with Planning Consultant",7.0000000000000001E-3,4200,82500]
["C4a East","AEW",1,"C4 - Stage 1 with Planning Consultant",8.0000000000000002E-3,1500,139000]
["C4a East","DK Architects",1,"C4 - Stage 1 with Planning Consultant",5.4999999999999997E-3,3500,100000]
["C4a East","JMA",1,"C4 - Stage 1 with Planning Consultant",8.6E-3,5000,142000]
["C4a East","MPSL",1,"C4 - Stage 1 with Planning Consultant",6.3E-3,1150,77625]
["C4a East","P+HS",1,"C4 - Stage 1 with Planning Consultant",5.4000000000000003E-3,8640,97500]
["C4a East","PJP",1,"C4 - Stage 1 with Planning Consultant",6.4000000000000003E-3,650,70000]
["C4a East","Triangle",1,"C4 - Stage 1 with Planning Consultant",7.3000000000000001E-3,6300,87750]
["C4a East","Drome",1,"C4 - Stage 1 with Planning Consultant",5.1599999999999997E-3,985,82500]
["C4a East","BTP",1,"C4 - Stage 2",7.4999999999999997E-3,1500,273000]
["C4a East","Bowker Sadler",1,"C4 - Stage 2",1.4200000000000001E-2,8520,162000]
["C4a East","AEW",1,"C4 - Stage 2",9.4999999999999998E-3,1600,175000]
["C4a East","DK Architects",1,"C4 - Stage 2",1.06E-2,6000,210000]
["C4a East","JMA",1,"C4 - Stage 2",9.1000000000000004E-3,5625,150000]
["C4a East","MPSL",1,"C4 - Stage 2",7.1999999999999998E-3,1950,99500]
["C4a East","P+HS",1,"C4 - Stage 2",1.1299999999999999E-2,18080,210000]
["C4a East","PJP",1,"C4 - Stage 2",1.55E-2,1550,213000]
["C4a East","Triangle",1,"C4 - Stage 2",1.4200000000000001E-2,12250,171450]
["C4a East","Drome",1,"C4 - Stage 2",8.1799999999999998E-3,985,94500]
["C4a East","BTP",2,"C4 - Stage 1 W/o Planning Consultant",8.0000000000000002E-3,1500,273000]
["C4a East","Bowker Sadler",2,"C4 - Stage 1 W/o Planning Consultant",5.7999999999999996E-3,8520,87000]
["C4a East","AEW",2,"C4 - Stage 1 W/o Planning Consultant",8.0000000000000002E-3,1500,149000]
["C4a East","DK Architects",2,"C4 - Stage 1 W/o Planning Consultant",5.1999999999999998E-3,6000,105000]
["C4a East","JMA",2,"C4 - Stage 1 W/o Planning Consultant",7.6E-3,5625,152000]
["C4a East","MPSL",2,"C4 - Stage 1 W/o Planning Consultant",6.0000000000000001E-3,1950,99000]
["C4a East","P+HS",2,"C4 - Stage 1 W/o Planning Consultant",4.4000000000000003E-3,18080,110000]
["C4a East","PJP",2,"C4 - Stage 1 W/o Planning Consultant",5.1999999999999998E-3,1550,75000]
["C4a East","Triangle",2,"C4 - Stage 1 W/o Planning Consultant",7.1000000000000004E-3,12250,95850]
["C4a East","Drome",2,"C4 - Stage 1 W/o Planning Consultant",5.1500000000000001E-3,985,82500]
["C4a East","BTP",2,"C4 - Stage 1 with Planning Consultant",7.0000000000000001E-3,1500,252000]
["C4a East","Bowker Sadler",2,"C4 - Stage 1 with Planning Consultant",5.4999999999999997E-3,8520,82500]
["C4a East","AEW",2,"C4 - Stage 1 with Planning Consultant",7.7000000000000002E-3,1500,139000]
["C4a East","DK Architects",2,"C4 - Stage 1 with Planning Consultant",4.9500000000000004E-3,6000,100000]
["C4a East","JMA",2,"C4 - Stage 1 with Planning Consultant",7.1000000000000004E-3,5625,142000]
["C4a East","MPSL",2,"C4 - Stage 1 with Planning Consultant",5.1999999999999998E-3,1950,77625]
["C4a East","P+HS",2,"C4 - Stage 1 with Planning Consultant",3.8999999999999998E-3,18080,97500]
["C4a East","PJP",2,"C4 - Stage 1 with Planning Consultant",5.1000000000000004E-3,1550,70000]
["C4a East","Triangle",2,"C4 - Stage 1 with Planning Consultant",6.4999999999999997E-3,12250,87750]
["C4a East","Drome",2,"C4 - Stage 1 with Planning Consultant",4.5900000000000003E-3,985,82500]
["C4a East","BTP",2,"C4 - Stage 2",7.0000000000000001E-3,1500,273000]
["C4a East","Bowker Sadler",2,"C4 - Stage 2",1.0800000000000001E-2,8520,162000]
["C4a East","AEW",2,"C4 - Stage 2",8.8000000000000005E-3,1600,175000]
["C4a East","DK Architects",2,"C4 - Stage 2",9.6100000000000005E-3,6000,210000]
["C4a East","JMA",2,"C4 - Stage 2",7.4999999999999997E-3,5625,150000]
["C4a East","MPSL",2,"C4 - Stage 2",6.0000000000000001E-3,1950,99500]
["C4a East","P+HS",2,"C4 - Stage 2",8.3999999999999995E-3,18080,210000]
["C4a East","PJP",2,"C4 - Stage 2",1.4200000000000001E-2,1550,213000]
["C4a East","Triangle",2,"C4 - Stage 2",1.2699999999999999E-2,12250,171450]
["C4a East","Drome",2,"C4 - Stage 2",7.11E-3,985,94500]
["C4a West","AEW",1,"C4 - Stage 1 & 2 w/o planning consultant",1.8000000000000002E-2,3100,324000]
["C4a West","BTP",1,"C4 - Stage 1 & 2 w/o planning consultant",1.6500000000000001E-2,3000,546000]
["C4a West","Bowker Sadler",1,"C4 - Stage 1 & 2 w/o planning consultant",1.77E-2,10620,223500]
["C4a West","DK Architects",1,"C4 - Stage 1 & 2 w/o planning consultant",1.617E-2,9500,315000]
["C4a West","JMA",1,"C4 - Stage 1 & 2 w/o planning consultant",1.7899999999999999E-2,11150,298000]
["C4a West","MPSL",1,"C4 - Stage 1 & 2 w/o planning consultant",1.44E-2,3500,198500]
["C4a West","P+HS",1,"C4 - Stage 1 & 2 w/o planning consultant",1.72E-2,27520,325000]
["C4a West","PJP",1,"C4 - Stage 1 & 2 w/o planning consultant",2.0299999999999999E-2,2030,268000]
["C4a West","Triangle",1,"C4 - Stage 1 & 2 w/o planning consultant",2.2200000000000001E-2,18680,267300]
["C4a West","Drome",1,"C4 - Stage 1 & 2 w/o planning consultant",1.41E-2,1970,177000]
["C4a West","AEW",1,"C4 - Stage 1 & 2 with planning consultant",1.7500000000000002E-2,3100,314000]
["C4a West","BTP",1,"C4 - Stage 1 & 2 with planning consultant",1.55E-2,3000,525000]
["C4a West","Bowker Sadler",1,"C4 - Stage 1 & 2 with planning consultant",1.7000000000000001E-2,10200,219000]
["C4a West","DK Architects",1,"C4 - Stage 1 & 2 with planning consultant",1.5890000000000001E-2,9500,310000]
["C4a West","JMA",1,"C4 - Stage 1 & 2 with planning consultant",1.7399999999999999E-2,10625,288000]
["C4a West","MPSL",1,"C4 - Stage 1 & 2 with planning consultant",1.35E-2,3100,177125]
["C4a West","P+HS",1,"C4 - Stage 1 & 2 with planning consultant",1.67E-2,26720,312500]
["C4a West","PJP",1,"C4 - Stage 1 & 2 with planning consultant",2.0200000000000003E-2,2030,263500]
["C4a West","Triangle",1,"C4 - Stage 1 & 2 with planning consultant",2.1400000000000002E-2,18030,257850]
["C4a West","Drome",1,"C4 - Stage 1 & 2 with planning consultant",1.3339999999999999E-2,1970,177000]
["C4a West","AEW",2,"C4 - Stage 1 & 2 w/o planning consultant",1.6800000000000002E-2,3100,324000]
["C4a West","BTP",2,"C4 - Stage 1 & 2 w/o planning consultant",1.4999999999999999E-2,3000,546000]
["C4a West","Bowker Sadler",2,"C4 - Stage 1 & 2 w/o planning consultant",1.49E-2,10620,223500]
["C4a West","DK Architects",2,"C4 - Stage 1 & 2 w/o planning consultant",1.4630000000000001E-2,9500,315000]
["C4a West","JMA",2,"C4 - Stage 1 & 2 w/o planning consultant",1.49E-2,11150,298000]
["C4a West","MPSL",2,"C4 - Stage 1 & 2 w/o planning consultant",1.2E-2,3500,198500]
["C4a West","P+HS",2,"C4 - Stage 1 & 2 w/o planning consultant",1.3000000000000001E-2,27520,325000]
["C4a West","PJP",2,"C4 - Stage 1 & 2 w/o planning consultant",1.8099999999999998E-2,2030,268000]
["C4a West","Triangle",2,"C4 - Stage 1 & 2 w/o planning consultant",1.9800000000000002E-2,18680,267300]
["C4a West","Drome",2,"C4 - Stage 1 & 2 w/o planning consultant",1.226E-2,1970,177000]
["C4a West","AEW",2,"C4 - Stage 1 & 2 with planning consultant",1.6500000000000001E-2,3100,314000]
["C4a West","BTP",2,"C4 - Stage 1 & 2 with planning consultant",1.4E-2,3000,525000]
["C4a West","Bowker Sadler",2,"C4 - Stage 1 & 2 with planning consultant",1.46E-2,10200,219000]
["C4a West","DK Architects",2,"C4 - Stage 1 & 2 with planning consultant",1.4369999999999999E-2,9500,310000]
["C4a West","JMA",2,"C4 - Stage 1 & 2 with planning consultant",1.44E-2,10625,288000]
["C4a West","MPSL",2,"C4 - Stage 1 & 2 with planning consultant",1.12E-2,3100,177125]
["C4a West","P+HS",2,"C4 - Stage 1 & 2 with planning consultant",1.2500000000000001E-2,26720,312500]
["C4a West","PJP",2,"C4 - Stage 1 & 2 with planning consultant",1.7999999999999999E-2,2030,263500]
["C4a West","Triangle",2,"C4 - Stage 1 & 2 with planning consultant",1.9099999999999999E-2,18030,257850]
["C4a West","Drome",2,"C4 - Stage 1 & 2 with planning consultant",1.17E-2,1970,177000]
["C4a East","BTP",1,"C4 - Stage 1 & 2 w/o planning consultant",1.6500000000000001E-2,3000,546000]
["C4a East","Bowker Sadler",1,"C4 - Stage 1 & 2 w/o planning consultant",2.1900000000000003E-2,13140,249000]
["C4a East","AEW",1,"C4 - Stage 1 & 2 w/o planning consultant",1.8000000000000002E-2,3100,324000]
["C4a East","DK Architects",1,"C4 - Stage 1 & 2 w/o planning consultant",1.6500000000000001E-2,9500,315000]
["C4a East","JMA",1,"C4 - Stage 1 & 2 w/o planning consultant",1.8200000000000001E-2,11250,302000]
["C4a East","MPSL",1,"C4 - Stage 1 & 2 w/o planning consultant",1.44E-2,3500,198500]
["C4a East","P+HS",1,"C4 - Stage 1 & 2 w/o planning consultant",1.72E-2,27520,320000]
["C4a East","PJP",1,"C4 - Stage 1 & 2 w/o planning consultant",2.1999999999999999E-2,2200,288000]
["C4a East","Triangle",1,"C4 - Stage 1 & 2 w/o planning consultant",2.2200000000000001E-2,19150,267300]
["C4a East","Drome",1,"C4 - Stage 1 & 2 w/o planning consultant",1.41E-2,1970,177000]
["C4a East","BTP",1,"C4 - Stage 1 & 2 with planning consultant",1.55E-2,3000,525000]
["C4a East","Bowker Sadler",1,"C4 - Stage 1 & 2 with planning consultant",2.12E-2,12720,244500]
["C4a East","AEW",1,"C4 - Stage 1 & 2 with planning consultant",1.7500000000000002E-2,3100,314000]
["C4a East","DK Architects",1,"C4 - Stage 1 & 2 with planning consultant",1.61E-2,9500,310000]
["C4a East","JMA",1,"C4 - Stage 1 & 2 with planning consultant",1.77E-2,10625,292000]
["C4a East","MPSL",1,"C4 - Stage 1 & 2 with planning consultant",1.35E-2,3100,177125]
["C4a East","P+HS",1,"C4 - Stage 1 & 2 with planning consultant",1.67E-2,26720,307500]
["C4a East","PJP",1,"C4 - Stage 1 & 2 with planning consultant",2.1899999999999999E-2,2200,283000]
["C4a East","Triangle",1,"C4 - Stage 1 & 2 with planning consultant",2.1500000000000002E-2,18550,259200]
["C4a East","Drome",1,"C4 - Stage 1 & 2 with planning consultant",1.3339999999999999E-2,1970,177000]
["C4a East","BTP",2,"C4 - Stage 1 & 2 w/o planning consultant",1.4999999999999999E-2,3000,546000]
["C4a East","Bowker Sadler",2,"C4 - Stage 1 & 2 w/o planning consultant",1.66E-2,17040,249000]
["C4a East","AEW",2,"C4 - Stage 1 & 2 w/o planning consultant",1.6800000000000002E-2,3100,324000]
["C4a East","DK Architects",2,"C4 - Stage 1 & 2 w/o planning consultant",1.481E-2,12000,315000]
["C4a East","JMA",2,"C4 - Stage 1 & 2 w/o planning consultant",1.5099999999999999E-2,11250,302000]
["C4a East","MPSL",2,"C4 - Stage 1 & 2 w/o planning consultant",1.2E-2,3900,198500]
["C4a East","P+HS",2,"C4 - Stage 1 & 2 w/o planning consultant",1.2799999999999999E-2,36160,320000]
["C4a East","PJP",2,"C4 - Stage 1 & 2 w/o planning consultant",1.9400000000000001E-2,3100,288000]
["C4a East","Triangle",2,"C4 - Stage 1 & 2 w/o planning consultant",1.9799999999999998E-2,24500,267300]
["C4a East","Drome",2,"C4 - Stage 1 & 2 w/o planning consultant",1.226E-2,1970,177000]
["C4a East","BTP",2,"C4 - Stage 1 & 2 with planning consultant",1.4E-2,3000,525000]
["C4a East","Bowker Sadler",2,"C4 - Stage 1 & 2 with planning consultant",1.6300000000000002E-2,17040,244500]
["C4a East","AEW",2,"C4 - Stage 1 & 2 with planning consultant",1.6500000000000001E-2,3100,314000]
["C4a East","DK Architects",2,"C4 - Stage 1 & 2 with planning consultant",1.456E-2,12000,310000]
["C4a East","JMA",2,"C4 - Stage 1 & 2 with planning consultant",1.46E-2,11250,292000]
["C4a East","MPSL",2,"C4 - Stage 1 & 2 with planning consultant",1.12E-2,3900,177125]
["C4a East","P+HS",2,"C4 - Stage 1 & 2 with planning consultant",1.2299999999999998E-2,36160,307500]
["C4a East","PJP",2,"C4 - Stage 1 & 2 with planning consultant",1.9300000000000001E-2,3100,283000]
["C4a East","Triangle",2,"C4 - Stage 1 & 2 with planning consultant",1.9199999999999998E-2,24500,259200]
["C4a East","Drome",2,"C4 - Stage 1 & 2 with planning consultant",1.17E-2,1970,177000]
["C4b West","AEW",1,"C4 - Stage 1 W/o Planning Consultant",9.5999999999999992E-3,2900,169000]
["C4b West","BTP",1,"C4 - Stage 1 W/o Planning Consultant",1.2E-2,4500,357000]
["C4b West","Bowker Sadler",1,"C4 - Stage 1 W/o Planning Consultant",6.6E-3,5220,81000]
["C4b West","Buttress",1,"C4 - Stage 1 W/o Planning Consultant",1.0999999999999999E-2,10000,150000]
["C4b West","Frank Shaw",1,"C4 - Stage 1 W/o Planning Consultant",1.21E-2,12735.45,60265.71]
["C4b West","Halsall Lloyd",1,"C4 - Stage 1 W/o Planning Consultant",1.2E-2,10500,219000]
["C4b West","P+HS",1,"C4 - Stage 1 W/o Planning Consultant",6.4000000000000003E-3,10240,122500]
["C4b West","PJP",1,"C4 - Stage 1 W/o Planning Consultant",5.7999999999999996E-3,580,70000]
["C4b West","TADW",1,"C4 - Stage 1 W/o Planning Consultant",8.6999999999999994E-3,14100,87500]
["C4b West","Watson Batty",1,"C4 - Stage 1 W/o Planning Consultant",1.38E-2,25650,125575]
["C4b West","AEW",1,"C4 - Stage 1 with Planning Consultant",9.1000000000000004E-3,2900,159000]
["C4b West","BTP",1,"C4 - Stage 1 with Planning Consultant",1.15E-2,1500,336000]
["C4b West","Bowker Sadler",1,"C4 - Stage 1 with Planning Consultant",5.8999999999999999E-3,4800,76500]
["C4b West","Buttress",1,"C4 - Stage 1 with Planning Consultant",0.01,10000,150000]
["C4b West","Frank Shaw",1,"C4 - Stage 1 with Planning Consultant",1.1299999999999999E-2,11935.45,56485.71]
["C4b West","Halsall Lloyd",1,"C4 - Stage 1 with Planning Consultant",1.2E-2,10500,217000]
["C4b West","P+HS",1,"C4 - Stage 1 with Planning Consultant",5.8999999999999999E-3,9440,110000]
["C4b West","PFP",1,"C4 - Stage 1 with Planning Consultant",5.7000000000000002E-3,610,65500]
["C4b West","TADW",1,"C4 - Stage 1 with Planning Consultant",7.6E-3,14100,87500]
["C4b West","Watson Batty",1,"C4 - Stage 1 with Planning Consultant",1.2800000000000001E-2,24130,119200]
["C4b West","AEW",1,"C4 - Stage 2",9.7999999999999997E-3,2900,178000]
["C4b West","BTP",1,"C4 - Stage 2",1.0999999999999999E-2,4500,336000]
["C4b West","Bowker Sadler",1,"C4 - Stage 2",1.23E-2,9400,148500]
["C4b West","Buttress",1,"C4 - Stage 2",0.01,10000,150000]
["C4b West","Frank Shaw",1,"C4 - Stage 2",1.09E-2,11290.3,49207.14]
["C4b West","Halsall Lloyd",1,"C4 - Stage 2",5.1000000000000004E-3,9500,94000]
["C4b West","P+HS",1,"C4 - Stage 2",1.18E-2,18880,222500]
["C4b West","PFP",1,"C4 - Stage 2",1.55E-2,1790,210000]
["C4b West","TADW",1,"C4 - Stage 2",9.1999999999999998E-3,14400,95000]
["C4b West","Watson Batty",1,"C4 - Stage 2",7.4999999999999997E-3,19500,68425]
["C4b West","AEW",2,"C4 - Stage 1 W/o Planning Consultant",8.9999999999999993E-3,2900,169000]
["C4b West","BTP",2,"C4 - Stage 1 W/o Planning Consultant",0.01,4500,357000]
["C4b West","Bowker Sadler",2,"C4 - Stage 1 W/o Planning Consultant",5.4000000000000003E-3,5220,81000]
["C4b West","Buttress",2,"C4 - Stage 1 W/o Planning Consultant",0.01,10000,150000]
["C4b West","Frank Shaw",2,"C4 - Stage 1 W/o Planning Consultant",8.8000000000000005E-3,12735.45,60265.71]
["C4b West","Halsall Lloyd",2,"C4 - Stage 1 W/o Planning Consultant",1.0999999999999999E-2,10500,219000]
["C4b West","P+HS",2,"C4 - Stage 1 W/o Planning Consultant",4.8999999999999998E-3,10240,122500]
["C4b West","PJP",2,"C4 - Stage 1 W/o Planning Consultant",4.8999999999999998E-3,580,70000]
["C4b West","TADW",2,"C4 - Stage 1 W/o Planning Consultant",7.4999999999999997E-3,14100,87500]
["C4b West","Watson Batty",2,"C4 - Stage 1 W/o Planning Consultant",1.23E-2,25650,125575]
["C4b West","AEW",2,"C4 - Stage 1 with Planning Consultant",8.6999999999999994E-3,2900,159000]
["C4b West","BTP",2,"C4 - Stage 1 with Planning Consultant",9.4999999999999998E-3,1500,336000]
["C4b West","Bowker Sadler",2,"C4 - Stage 1 with Planning Consultant",5.1000000000000004E-3,4800,76500]
["C4b West","Buttress",2,"C4 - Stage 1 with Planning Consultant",8.9999999999999993E-3,10000,150000]
["C4b West","Frank Shaw",2,"C4 - Stage 1 with Planning Consultant",8.2000000000000007E-3,11935.45,56485.71]
["C4b West","Halsall Lloyd",2,"C4 - Stage 1 with Planning Consultant",1.0999999999999999E-2,10500,217000]
["C4b West","P+HS",2,"C4 - Stage 1 with Planning Consultant",4.4000000000000003E-3,9440,110000]
["C4b West","PJP",2,"C4 - Stage 1 with Planning Consultant",4.7999999999999996E-3,610,65500]
["C4b West","TADW",2,"C4 - Stage 1 with Planning Consultant",6.6E-3,14100,87500]
["C4b West","Watson Batty",2,"C4 - Stage 1 with Planning Consultant",1.0500000000000001E-2,24130,119200]
["C4b West","AEW",2,"C4 - Stage 2",8.8999999999999999E-3,2900,178000]
["C4b West","BTP",2,"C4 - Stage 2",8.9999999999999993E-3,4500,336000]
["C4b West","Bowker Sadler",2,"C4 - Stage 2",9.9000000000000008E-3,9400,148500]
["C4b West","Buttress",2,"C4 - Stage 2",8.9999999999999993E-3,10000,150000]
["C4b West","Frank Shaw",2,"C4 - Stage 2",7.3000000000000001E-3,11290.3,49207.14]
["C4b West","Halsall Lloyd",2,"C4 - Stage 2",4.7000000000000002E-3,9500,94000]
["C4b West","P+HS",2,"C4 - Stage 2",8.8999999999999999E-3,18880,222500]
["C4b West","PJP",2,"C4 - Stage 2",1.4E-2,1790,210000]
["C4b West","TADW",2,"C4 - Stage 2",7.9000000000000008E-3,14400,95000]
["C4b West","Watson Batty",2,"C4 - Stage 2",6.7000000000000002E-3,19500,68425]
["C4b East","AEW",1,"C4 - Stage 1 W/o Planning Consultant",9.5999999999999992E-3,2900,169000]
["C4b East","BTP",1,"C4 - Stage 1 W/o Planning Consultant",1.2E-2,4500,357000]
["C4b East","Bowker Sadler",1,"C4 - Stage 1 W/o Planning Consultant",8.0000000000000002E-3,6300,91500]
["C4b East","Buttress",1,"C4 - Stage 1 W/o Planning Consultant",1.0999999999999999E-2,10000,150000]
["C4b East","Frank Shaw",1,"C4 - Stage 1 W/o Planning Consultant",1.21E-2,12735.45,66857.13]
["C4b East","Halsall Lloyd",1,"C4 - Stage 1 W/o Planning Consultant",1.34E-2,11500,246000]
["C4b East","P+HS",1,"C4 - Stage 1 W/o Planning Consultant",6.4000000000000003E-3,10240,120000]
["C4b East","PJP",1,"C4 - Stage 1 W/o Planning Consultant",6.4999999999999997E-3,690,75000]
["C4b East","TADW",1,"C4 - Stage 1 W/o Planning Consultant",8.6999999999999994E-3,14100,87500]
["C4b East","Watson Batty",1,"C4 - Stage 1 W/o Planning Consultant",1.38E-2,25650,125575]
["C4b East","AEW",1,"C4 - Stage 1 with Planning Consultant",9.1000000000000004E-3,2900,159000]
["C4b East","BTP",1,"C4 - Stage 1 with Planning Consultant",1.15E-2,1500,336000]
["C4b East","Bowker Sadler",1,"C4 - Stage 1 with Planning Consultant",7.3000000000000001E-3,5880,87000]
["C4b East","Buttress",1,"C4 - Stage 1 with Planning Consultant",0.01,10000,150000]
["C4b East","Frank Shaw",1,"C4 - Stage 1 with Planning Consultant",1.1299999999999999E-2,11935.45,62134.28]
["C4b East","Halsall Lloyd",1,"C4 - Stage 1 with Planning Consultant",1.34E-2,11500,244000]
["C4b East","P+HS",1,"C4 - Stage 1 with Planning Consultant",5.8999999999999999E-3,9440,107500]
["C4b East","PJP",1,"C4 - Stage 1 with Planning Consultant",6.4000000000000003E-3,690,70000]
["C4b East","TADW",1,"C4 - Stage 1 with Planning Consultant",6.4999999999999997E-3,14100,87500]
["C4b East","Watson Batty",1,"C4 - Stage 1 with Planning Consultant",1.2800000000000001E-2,24130,119200]
["C4b East","AEW",1,"C4 - Stage 2",9.5999999999999992E-3,2900,178000]
["C4b East","BTP",1,"C4 - Stage 2",1.0999999999999999E-2,4500,336000]
["C4b East","Bowker Sadler",1,"C4 - Stage 2",1.5100000000000001E-2,11560,171000]
["C4b East","Buttress",1,"C4 - Stage 2",0.01,10000,171150]
["C4b East","Frank Shaw",1,"C4 - Stage 2",1.09E-2,11290.3,387500]
["C4b East","Halsall Lloyd",1,"C4 - Stage 2",5.7000000000000002E-3,11500,54127.85]
["C4b East","P+HS",1,"C4 - Stage 2",1.18E-2,18880,220000]
["C4b East","PJP",1,"C4 - Stage 2",1.61E-2,1710,220000]
["C4b East","TADW",1,"C4 - Stage 2",9.1999999999999998E-3,14400,95000]
["C4b East","Watson Batty",1,"C4 - Stage 2",7.4999999999999997E-3,19500,68425]
["C4b East","AEW",2,"C4 - Stage 1 W/o Planning Consultant",8.9999999999999993E-3,2900,169000]
["C4b East","BTP",2,"C4 - Stage 1 W/o Planning Consultant",0.01,4500,357000]
["C4b East","Bowker Sadler",2,"C4 - Stage 1 W/o Planning Consultant",6.1000000000000004E-3,6300,91500]
["C4b East","Buttress",2,"C4 - Stage 1 W/o Planning Consultant",0.01,10000,150000]
["C4b East","Frank Shaw",2,"C4 - Stage 1 W/o Planning Consultant",8.8000000000000005E-3,12735.45,66857.13]
["C4b East","Halsall Lloyd",2,"C4 - Stage 1 W/o Planning Consultant",1.23E-2,11500,246000]
["C4b East","P+HS",2,"C4 - Stage 1 W/o Planning Consultant",4.7999999999999996E-3,10240,120000]
["C4b East","PJP",2,"C4 - Stage 1 W/o Planning Consultant",5.1999999999999998E-3,690,75000]
["C4b East","TADW",2,"C4 - Stage 1 W/o Planning Consultant",7.4999999999999997E-3,14100,87500]
["C4b East","Watson Batty",2,"C4 - Stage 1 W/o Planning Consultant",1.23E-2,25650,125575]
["C4b East","AEW",2,"C4 - Stage 1 with Planning Consultant",8.6999999999999994E-3,2900,159000]
["C4b East","BTP",2,"C4 - Stage 1 with Planning Consultant",9.4999999999999998E-3,1500,336000]
["C4b East","Bowker Sadler",2,"C4 - Stage 1 with Planning Consultant",5.7999999999999996E-3,5880,87000]
["C4b East","Buttress",2,"C4 - Stage 1 with Planning Consultant",8.9999999999999993E-3,10000,150000]
["C4b East","Frank Shaw",2,"C4 - Stage 1 with Planning Consultant",8.2000000000000007E-3,11935.45,62134.28]
["C4b East","Halsall Lloyd",2,"C4 - Stage 1 with Planning Consultant",1.23E-2,11500,244000]
["C4b East","P+HS",2,"C4 - Stage 1 with Planning Consultant",4.3E-3,9440,107500]
["C4b East","PJP",2,"C4 - Stage 1 with Planning Consultant",5.1000000000000004E-3,690,70000]
["C4b East","TADW",2,"C4 - Stage 1 with Planning Consultant",6.0000000000000001E-3,14100,87500]
["C4b East","Watson Batty",2,"C4 - Stage 1 with Planning Consultant",1.0500000000000001E-2,24130,119200]
["C4b East","AEW",2,"C4 - Stage 2",8.8999999999999999E-3,2900,178000]
["C4b East","BTP",2,"C4 - Stage 2",8.9999999999999993E-3,4500,336000]
["C4b East","Bowker Sadler",2,"C4 - Stage 2",1.14E-2,11560,171000]
["C4b East","Buttress",2,"C4 - Stage 2",8.9999999999999993E-3,10000,171150]
["C4b East","Frank Shaw",2,"C4 - Stage 2",7.3000000000000001E-3,11290.3,387500]
["C4b East","Halsall Lloyd",2,"C4 - Stage 2",5.3E-3,11500,54127.85]
["C4b East","P+HS",2,"C4 - Stage 2",8.8000000000000005E-3,18880,220000]
["C4b East","PJP",2,"C4 - Stage 2",1.4500000000000001E-2,1710,220000]
["C4b East","TADW",2,"C4 - Stage 2",7.9000000000000008E-3,14400,95000]
["C4b East","Watson Batty",2,"C4 - Stage 2",6.7000000000000002E-3,19500,68425]
["C4b West","AEW",1,"C4 - Stage 1 & 2 w/o planning consultant",1.9400000000000001E-2,5800,347000]
["C4b West","BTP",1,"C4 - Stage 1 & 2 w/o planning consultant",2.3E-2,9000,693000]
["C4b West","Bowker Sadler",1,"C4 - Stage 1 & 2 w/o planning consultant",1.89E-2,14620,229500]
["C4b West","Buttress",1,"C4 - Stage 1 & 2 w/o planning consultant",2.0999999999999998E-2,20000,300000]
["C4b West","Frank Shaw",1,"C4 - Stage 1 & 2 w/o planning consultant",2.3E-2,24025.75,109472.85]
["C4b West","Halsall Lloyd",1,"C4 - Stage 1 & 2 w/o planning consultant",1.7100000000000001E-2,20000,313000]
["C4b West","P+HS",1,"C4 - Stage 1 & 2 w/o planning consultant",1.8200000000000001E-2,29120,345000]
["C4b West","PJP",1,"C4 - Stage 1 & 2 w/o planning consultant",2.1299999999999999E-2,2370,280000]
["C4b West","TADW",1,"C4 - Stage 1 & 2 w/o planning consultant",1.7899999999999999E-2,28500,182500]
["C4b West","Watson Batty",1,"C4 - Stage 1 & 2 w/o planning consultant",2.1299999999999999E-2,45150,194000]
["C4b West","AEW",1,"C4 - Stage 1 & 2 with planning consultant",1.89E-2,5800,337000]
["C4b West","BTP",1,"C4 - Stage 1 & 2 with planning consultant",2.2499999999999999E-2,6000,672000]
["C4b West","Bowker Sadler",1,"C4 - Stage 1 & 2 with planning consultant",1.8200000000000001E-2,14200,225000]
["C4b West","Buttress",1,"C4 - Stage 1 & 2 with planning consultant",0.02,20000,300000]
["C4b West","Frank Shaw",1,"C4 - Stage 1 & 2 with planning consultant",2.2199999999999998E-2,23225.75,105692.85]
["C4b West","Halsall Lloyd",1,"C4 - Stage 1 & 2 with planning consultant",1.7100000000000001E-2,20000,311000]
["C4b West","P+HS",1,"C4 - Stage 1 & 2 with planning consultant",1.77E-2,28320,332500]
["C4b West","PFP",1,"C4 - Stage 1 & 2 with planning consultant",2.12E-2,2400,275500]
["C4b West","TADW",1,"C4 - Stage 1 & 2 with planning consultant",1.6799999999999999E-2,28500,182500]
["C4b West","Watson Batty",1,"C4 - Stage 1 & 2 with planning consultant",2.0299999999999999E-2,43630,187625]
["C4b West","AEW",2,"C4 - Stage 1 & 2 w/o planning consultant",1.7899999999999999E-2,5800,347000]
["C4b West","BTP",2,"C4 - Stage 1 & 2 w/o planning consultant",1.9E-2,9000,693000]
["C4b West","Bowker Sadler",2,"C4 - Stage 1 & 2 w/o planning consultant",1.5300000000000001E-2,14620,229500]
["C4b West","Buttress",2,"C4 - Stage 1 & 2 w/o planning consultant",1.9E-2,20000,300000]
["C4b West","Frank Shaw",2,"C4 - Stage 1 & 2 w/o planning consultant",1.61E-2,24025.75,109472.85]
["C4b West","Halsall Lloyd",2,"C4 - Stage 1 & 2 w/o planning consultant",1.5699999999999999E-2,20000,313000]
["C4b West","P+HS",2,"C4 - Stage 1 & 2 w/o planning consultant",1.38E-2,29120,345000]
["C4b West","PJP",2,"C4 - Stage 1 & 2 w/o planning consultant",1.89E-2,2370,280000]
["C4b West","TADW",2,"C4 - Stage 1 & 2 w/o planning consultant",1.54E-2,28500,182500]
["C4b West","Watson Batty",2,"C4 - Stage 1 & 2 w/o planning consultant",1.9E-2,45150,194000]
["C4b West","AEW",2,"C4 - Stage 1 & 2 with planning consultant",1.7599999999999998E-2,5800,337000]
["C4b West","BTP",2,"C4 - Stage 1 & 2 with planning consultant",1.8499999999999999E-2,6000,672000]
["C4b West","Bowker Sadler",2,"C4 - Stage 1 & 2 with planning consultant",1.5000000000000001E-2,14200,225000]
["C4b West","Buttress",2,"C4 - Stage 1 & 2 with planning consultant",1.7999999999999999E-2,20000,300000]
["C4b West","Frank Shaw",2,"C4 - Stage 1 & 2 with planning consultant",1.55E-2,23225.75,105692.85]
["C4b West","Halsall Lloyd",2,"C4 - Stage 1 & 2 with planning consultant",1.5699999999999999E-2,20000,311000]
["C4b West","P+HS",2,"C4 - Stage 1 & 2 with planning consultant",1.3299999999999999E-2,28320,332500]
["C4b West","PJP",2,"C4 - Stage 1 & 2 with planning consultant",1.8800000000000001E-2,2400,275500]
["C4b West","TADW",2,"C4 - Stage 1 & 2 with planning consultant",1.4500000000000001E-2,28500,182500]
["C4b West","Watson Batty",2,"C4 - Stage 1 & 2 with planning consultant",1.72E-2,43630,187625]
["C4b East","AEW",1,"C4 - Stage 1 & 2 w/o planning consultant",1.9199999999999998E-2,5800,347000]
["C4b East","BTP",1,"C4 - Stage 1 & 2 w/o planning consultant",2.3E-2,9000,693000]
["C4b East","Bowker Sadler",1,"C4 - Stage 1 & 2 w/o planning consultant",2.3100000000000002E-2,17860,262500]
["C4b East","Buttress",1,"C4 - Stage 1 & 2 w/o planning consultant",2.0999999999999998E-2,20000,321150]
["C4b East","Frank Shaw",1,"C4 - Stage 1 & 2 w/o planning consultant",2.3E-2,24025.75,454357.13]
["C4b East","Halsall Lloyd",1,"C4 - Stage 1 & 2 w/o planning consultant",1.9099999999999999E-2,23000,300127.84999999998]
["C4b East","P+HS",1,"C4 - Stage 1 & 2 w/o planning consultant",1.8200000000000001E-2,29120,340000]
["C4b East","PJP",1,"C4 - Stage 1 & 2 w/o planning consultant",2.2599999999999999E-2,2400,295000]
["C4b East","TADW",1,"C4 - Stage 1 & 2 w/o planning consultant",1.7899999999999999E-2,28500,182500]
["C4b East","Watson Batty",1,"C4 - Stage 1 & 2 w/o planning consultant",2.1299999999999999E-2,45150,194000]
["C4b East","AEW",1,"C4 - Stage 1 & 2 with planning consultant",1.8700000000000001E-2,5800,337000]
["C4b East","BTP",1,"C4 - Stage 1 & 2 with planning consultant",2.2499999999999999E-2,6000,672000]
["C4b East","Bowker Sadler",1,"C4 - Stage 1 & 2 with planning consultant",2.24E-2,17440,258000]
["C4b East","Buttress",1,"C4 - Stage 1 & 2 with planning consultant",0.02,20000,321150]
["C4b East","Frank Shaw",1,"C4 - Stage 1 & 2 with planning consultant",2.2199999999999998E-2,23225.75,449634.28]
["C4b East","Halsall Lloyd",1,"C4 - Stage 1 & 2 with planning consultant",1.9099999999999999E-2,23000,298127.84999999998]
["C4b East","P+HS",1,"C4 - Stage 1 & 2 with planning consultant",1.77E-2,28320,327500]
["C4b East","PJP",1,"C4 - Stage 1 & 2 with planning consultant",2.2499999999999999E-2,2400,290000]
["C4b East","TADW",1,"C4 - Stage 1 & 2 with planning consultant",1.5699999999999999E-2,28500,182500]
["C4b East","Watson Batty",1,"C4 - Stage 1 & 2 with planning consultant",2.0299999999999999E-2,43630,187625]
["C4b East","AEW",2,"C4 - Stage 1 & 2 w/o planning consultant",1.7899999999999999E-2,5800,347000]
["C4b East","BTP",2,"C4 - Stage 1 & 2 w/o planning consultant",1.9E-2,9000,693000]
["C4b East","Bowker Sadler",2,"C4 - Stage 1 & 2 w/o planning consultant",1.7500000000000002E-2,17860,262500]
["C4b East","Buttress",2,"C4 - Stage 1 & 2 w/o planning consultant",1.9E-2,20000,321150]
["C4b East","Frank Shaw",2,"C4 - Stage 1 & 2 w/o planning consultant",1.61E-2,24025.75,454357.13]
["C4b East","Halsall Lloyd",2,"C4 - Stage 1 & 2 w/o planning consultant",1.7600000000000001E-2,23000,300127.84999999998]
["C4b East","P+HS",2,"C4 - Stage 1 & 2 w/o planning consultant",1.3600000000000001E-2,29120,340000]
["C4b East","PJP",2,"C4 - Stage 1 & 2 w/o planning consultant",1.9700000000000002E-2,2400,295000]
["C4b East","TADW",2,"C4 - Stage 1 & 2 w/o planning consultant",1.54E-2,28500,182500]
["C4b East","Watson Batty",2,"C4 - Stage 1 & 2 w/o planning consultant",1.9E-2,45150,194000]
["C4b East","AEW",2,"C4 - Stage 1 & 2 with planning consultant",1.7599999999999998E-2,5800,337000]
["C4b East","BTP",2,"C4 - Stage 1 & 2 with planning consultant",1.8499999999999999E-2,6000,672000]
["C4b East","Bowker Sadler",2,"C4 - Stage 1 & 2 with planning consultant",1.72E-2,17440,258000]
["C4b East","Buttress",2,"C4 - Stage 1 & 2 with planning consultant",1.7999999999999999E-2,20000,321150]
["C4b East","Frank Shaw",2,"C4 - Stage 1 & 2 with planning consultant",1.55E-2,23225.75,449634.28]
["C4b East","Halsall Lloyd",2,"C4 - Stage 1 & 2 with planning consultant",1.7600000000000001E-2,23000,298127.84999999998]
["C4b East","P+HS",2,"C4 - Stage 1 & 2 with planning consultant",1.3100000000000001E-2,28320,327500]
["C4b East","PJP",2,"C4 - Stage 1 & 2 with planning consultant",1.9599999999999999E-2,2400,290000]
["C4b East","TADW",2,"C4 - Stage 1 & 2 with planning consultant",1.3900000000000001E-2,28500,182500]
["C4b East","Watson Batty",2,"C4 - Stage 1 & 2 with planning consultant",1.72E-2,43630,187625]
["C5 West","Amrin",1,"C5 - Houses",5.8999999999999999E-3,16800,65000]
["C5 West","CoW Yorkshire",1,"C5 - Houses",4.4999999999999997E-3,8500,87500]
["C5 West","Gateley Vinden ",1,"C5 - Houses",1.2E-2,20000,160000]
["C5 West","Hickton",1,"C5 - Houses",1.66E-3,25025,97825]
["C5 West","Markhams",1,"C5 - Houses",4.4999999999999997E-3,17500,80000]
["C5 West","SDA",1,"C5 - Houses",1.2E-2,15000,118750]
["C5 West","Waldeck",1,"C5 - Houses",3.5000000000000001E-3,6000,95000]
["C5 West","WCP",1,"C5 - Houses",5.4000000000000003E-3,7500,80000]
["C5 West","Amrin",2,"C5 - Houses",3.2000000000000002E-3,16800,65000]
["C5 West","CoW Yorkshire",2,"C5 - Houses",3.5000000000000001E-3,8500,87500]
["C5 West","Gateley Vinden ",2,"C5 - Houses",9.4999999999999998E-3,20000,160000]
["C5 West","Hickton",2,"C5 - Houses",3.9100000000000003E-3,25025,97825]
["C5 West","Markhams",2,"C5 - Houses",3.5999999999999999E-3,17500,80000]
["C5 West","SDA",2,"C5 - Houses",5.4000000000000003E-3,15000,118750]
["C5 West","Waldeck",2,"C5 - Houses",2.5500000000000002E-3,6000,95000]
["C5 West","WCP",2,"C5 - Houses",4.0000000000000001E-3,7500,80000]
["C5 West","Amrin",3,"C5 - Apartments",3.2000000000000002E-3,16800,65000]
["C5 West","CoW Yorkshire",3,"C5 - Apartments",3.0000000000000001E-3,8500,105000]
["C5 West","Gateley Vinden ",3,"C5 - Apartments",8.9999999999999993E-3,20000,170000]
["C5 West","Hickton",3,"C5 - Apartments",6.0000000000000001E-3,25025,210000]
["C5 West","Markhams",3,"C5 - Apartments",4.0000000000000001E-3,17500,90000]
["C5 West","SDA",3,"C5 - Apartments",5.8999999999999999E-3,15000,166250]
["C5 West","Waldeck",3,"C5 - Apartments",3.5000000000000001E-3,6000,95000]
["C5 West","WCP",3,"C5 - Apartments",4.0000000000000001E-3,7500,110000]
["C5 East","Amrin",1,"C5 - Houses",5.8999999999999999E-3,16800,65000]
["C5 East","CoW Yorkshire",1,"C5 - Houses",4.4999999999999997E-3,8500,87500]
["C5 East","Gateley Vinden ",1,"C5 - Houses",1.2E-2,20000,160000]
["C5 East","Hickton",1,"C5 - Houses",1.66E-3,25025,97825]
["C5 East","Markhams",1,"C5 - Houses",4.4999999999999997E-3,17500,80000]
["C5 East","Poole Dick",1,"C5 - Houses",1.38E-2,25000,95000]
["C5 East","Waldeck",1,"C5 - Houses",3.5000000000000001E-3,6000,95000]
["C5 East","WCP",1,"C5 - Houses",5.4000000000000003E-3,7500,80000]
["C5 East","Amrin",2,"C5 - Houses",3.2000000000000002E-3,16800,65000]
["C5 East","CoW Yorkshire",2,"C5 - Houses",3.5000000000000001E-3,8500,87500]
["C5 East","Gateley Vinden ",2,"C5 - Houses",9.4999999999999998E-3,20000,160000]
["C5 East","Hickton",2,"C5 - Houses",3.9100000000000003E-3,25025,97825]
["C5 East","Markhams",2,"C5 - Houses",3.5999999999999999E-3,17500,80000]
["C5 East","Poole Dick",2,"C5 - Houses",1.0699999999999999E-2,25000,95000]
["C5 East","Waldeck",2,"C5 - Houses",2.5500000000000002E-3,6000,95000]
["C5 East","WCP",2,"C5 - Houses",4.0000000000000001E-3,7500,80000]
["C5 East","Amrin",3,"C5 - Apartments",3.2000000000000002E-3,16800,65000]
["C5 East","CoW Yorkshire",3,"C5 - Apartments",3.0000000000000001E-3,8500,105000]
["C5 East","Gateley Vinden ",3,"C5 - Apartments",8.9999999999999993E-3,20000,170000]
["C5 East","Hickton",3,"C5 - Apartments",6.0000000000000001E-3,25025,210000]
["C5 East","Markhams",3,"C5 - Apartments",4.0000000000000001E-3,17500,90000]
["C5 East","Poole Dick",3,"C5 - Apartments",1.35E-2,25000,166250]
["C5 East","Waldeck",3,"C5 - Apartments",3.5000000000000001E-3,6000,95000]
["C5 East","WCP",3,"C5 - Apartments",4.0000000000000001E-3,7500,110000]
["C6 West","Anderton Gables",1,"Standard service",6.0000000000000001E-3,20000,75000]
["C6 West","CPC",1,"Standard service",5.4999999999999997E-3,7500,45000]
["C6 West","Identity Consult",1,"Standard service",5.0000000000000001E-3,9000,52500]
["C6 West","Markhams",1,"Standard service",5.0000000000000001E-3,15000,65000]
["C6 West","Poole Dick",1,"Standard service",4.8999999999999998E-3,8500,32500]
["C6 West","SFP",1,"Standard service",6.1000000000000004E-3,6250,76750]
["C6 West","Turner and Townsend",1,"Standard service",8.0000000000000002E-3,20000,400000]
["C6 West","Whiteley Eaves",1,"Standard service",3.8E-3,1875,27500]
["C6 West","Anderton Gables",2,"Standard service",4.0000000000000001E-3,20000,75000]
["C6 West","CPC",2,"Standard service",4.4999999999999997E-3,7500,45000]
["C6 West","Identity Consult",2,"Standard service",3.5000000000000001E-3,9000,52500]
["C6 West","Markhams",2,"Standard service",3.8E-3,15000,65000]
["C6 West","Poole Dick",2,"Standard service",3.49E-3,8500,32500]
["C6 West","SFP",2,"Standard service",4.8999999999999998E-3,6250,76750]
["C6 West","Turner and Townsend",2,"Standard service",6.0000000000000001E-3,20000,400000]
["C6 West","Whiteley Eaves",2,"Standard service",2.8E-3,1875,27500]
["C6 East","Anderton Gables",1,"Standard service",6.0000000000000001E-3,20000,75000]
["C6 East","CPC",1,"Standard service",5.4999999999999997E-3,7500,45000]
["C6 East","Identity Consult",1,"Standard service",5.0000000000000001E-3,9000,52500]
["C6 East","Markhams",1,"Standard service",5.0000000000000001E-3,15000,65000]
["C6 East","Poole Dick",1,"Standard service",4.8999999999999998E-3,8500,32500]
["C6 East","SFP",1,"Standard service",6.6E-3,7250,79000]
["C6 East","Turner and Townsend",1,"Standard service",8.0000000000000002E-3,20000,0]
["C6 East","Whiteley Eaves",1,"Standard service",3.8E-3,1875,27500]
["C6 East","Anderton Gables",2,"Standard service",4.0000000000000001E-3,20000,75000]
["C6 East","CPC",2,"Standard service",4.4999999999999997E-3,7500,45000]
["C6 East","Identity Consult",2,"Standard service",3.5000000000000001E-3,9000,52500]
["C6 East","Markhams",2,"Standard service",3.8E-3,15000,65000]
["C6 East","Poole Dick",2,"Standard service",3.49E-3,8500,32500]
["C6 East","SFP",2,"Standard service",5.1999999999999998E-3,7250,79000]
["C6 East","Turner and Townsend",2,"Standard service",6.0000000000000001E-3,20000,0]
["C6 East","Whiteley Eaves",2,"Standard service",2.8E-3,1875,27500]
["C7 West","BTP",1,"C7 - PD & H&S",3.0000000000000001E-3,3000,84000]
["C7 West","CPC",1,"C7 - PD & H&S",1.8799999999999999E-3,3500,28500]
["C7 West","PJP",1,"C7 - PD & H&S",1.8E-3,3500,18495]
["C7 West","Poole Dick",1,"C7 - PD & H&S",1.5E-3,5500,8000]
["C7 West","RJD",1,"C7 - PD & H&S",1.5E-3,4000,12000]
["C7 West","Rex Proctor",1,"C7 - PD & H&S",2.98E-3,2950,23800]
["C7 West","Sutcliffe",1,"C7 - PD & H&S",2E-3,5000,25000]
["C7 West","WCP",1,"C7 - PD & H&S",1.8E-3,3500,12500]
["C7 West","BTP",1,"C7 - H&S Only",1E-3,3000,42000]
["C7 West","CPC",1,"C7 - H&S Only",1E-3,1650,12000]
["C7 West","PJP",1,"C7 - H&S Only",5.0000000000000001E-4,450,3495]
["C7 West","Poole Dick",1,"C7 - H&S Only",1.5E-3,3500,4500]
["C7 West","RJD",1,"C7 - H&S Only",6.9999999999999999E-4,2340,5000]
["C7 West","Rex Proctor",1,"C7 - H&S Only",1.25E-3,2150,9650]
["C7 West","Sutcliffe",1,"C7 - H&S Only",1.2999999999999999E-3,5000,17500]
["C7 West","WCP",1,"C7 - H&S Only",1.1999999999999999E-3,2000,7500]
["C7 West","BTP",2,"C7 - PD & H&S",2E-3,3000,84000]
["C7 West","CPC",2,"C7 - PD & H&S",1.3799999999999999E-3,3500,28500]
["C7 West","PJP",2,"C7 - PD & H&S",1E-3,3500,18495]
["C7 West","Poole Dick",2,"C7 - PD & H&S",1.2999999999999999E-3,5500,8000]
["C7 West","RJD",2,"C7 - PD & H&S",1.1999999999999999E-3,4000,12000]
["C7 West","Rex Proctor",2,"C7 - PD & H&S",9.5E-4,2950,23800]
["C7 West","Sutcliffe",2,"C7 - PD & H&S",1E-3,5000,25000]
["C7 West","WCP",2,"C7 - PD & H&S",1E-3,3500,12500]
["C7 West","BTP",2,"C7 - H&S Only",1E-3,3000,42000]
["C7 West","CPC",2,"C7 - H&S Only",8.0000000000000004E-4,1650,12000]
["C7 West","PJP",2,"C7 - H&S Only",2.9999999999999997E-4,450,3495]
["C7 West","Poole Dick",2,"C7 - H&S Only",6.9999999999999999E-4,3500,4500]
["C7 West","RJD",2,"C7 - H&S Only",5.0000000000000001E-4,2340,5000]
["C7 West","Rex Proctor",2,"C7 - H&S Only",3.8999999999999999E-4,2150,9650]
["C7 West","Sutcliffe",2,"C7 - H&S Only",6.9999999999999999E-4,5000,17500]
["C7 West","WCP",2,"C7 - H&S Only",6.9999999999999999E-4,2000,7500]
["C7 East","Arcus",1,"C7 - PD & H&S",1.99E-3,4950,25000]
["C7 East","BTP",1,"C7 - PD & H&S",3.0000000000000001E-3,3000,84000]
["C7 East","CPC",1,"C7 - PD & H&S",1.8799999999999999E-3,3500,28500]
["C7 East","Poole Dick",1,"C7 - PD & H&S",1.5E-3,5500,8000]
["C7 East","RJD",1,"C7 - PD & H&S",1.5E-3,4000,12000]
["C7 East","Rex Proctor",1,"C7 - PD & H&S",2.98E-3,2950,23800]
["C7 East","Sutcliffe",1,"C7 - PD & H&S",2.2000000000000001E-3,5000,25000]
["C7 East","WCP",1,"C7 - PD & H&S",1.8E-3,3500,12500]
["C7 East","Arcus",1,"C7 - H&S Only",1.15E-3,3500,18000]
["C7 East","BTP",1,"C7 - H&S Only",1E-3,3000,42000]
["C7 East","CPC",1,"C7 - H&S Only",1E-3,1650,12000]
["C7 East","Poole Dick",1,"C7 - H&S Only",1.5E-3,3500,4500]
["C7 East","RJD",1,"C7 - H&S Only",6.9999999999999999E-4,2340,5000]
["C7 East","Rex Proctor",1,"C7 - H&S Only",1.25E-3,2150,9650]
["C7 East","Sutcliffe",1,"C7 - H&S Only",1.2999999999999999E-3,5000,17500]
["C7 East","WCP",1,"C7 - H&S Only",1.1999999999999999E-3,2000,7500]
["C7 East","Arcus",2,"C7 - PD & H&S",1.47E-3,4950,25000]
["C7 East","BTP",2,"C7 - PD & H&S",2E-3,3000,84000]
["C7 East","CPC",2,"C7 - PD & H&S",1.3799999999999999E-3,3500,28500]
["C7 East","Poole Dick",2,"C7 - PD & H&S",1.2999999999999999E-3,5500,8000]
["C7 East","RJD",2,"C7 - PD & H&S",1.1999999999999999E-3,4000,12000]
["C7 East","Rex Proctor",2,"C7 - PD & H&S",9.5E-4,2950,23800]
["C7 East","Sutcliffe",2,"C7 - PD & H&S",1.1999999999999999E-3,5000,25000]
["C7 East","WCP",2,"C7 - PD & H&S",1E-3,3500,12500]
["C7 East","Arcus",2,"C7 - H&S Only",8.4000000000000003E-4,3500,18000]
["C7 East","BTP",2,"C7 - H&S Only",1E-3,3000,42000]
["C7 East","CPC",2,"C7 - H&S Only",8.0000000000000004E-4,1650,12000]
["C7 East","Poole Dick",2,"C7 - H&S Only",6.9999999999999999E-4,3500,4500]
["C7 East","RJD",2,"C7 - H&S Only",5.0000000000000001E-4,2340,5000]
["C7 East","Rex Proctor",2,"C7 - H&S Only",3.8999999999999999E-4,2150,9650]
["C7 East","Sutcliffe",2,"C7 - H&S Only",6.9999999999999999E-4,5000,17500]
["C7 East","WCP",2,"C7 - H&S Only",6.9999999999999999E-4,2000,7500]
["C10 West","BWB",1,"Standard service",7.9000000000000008E-3,15200,140000]
["C10 West","Clancy",1,"Standard service",1.9E-2,19000,275000]
["C10 West","Davies M&E",1,"Standard service",6.3099999999999996E-3,12620,81800]
["C10 West","Pettit Singleton",1,"Standard service",8.2000000000000007E-3,24950,60000]
["C10 West","Steven A Hunt",1,"Standard service",3.7399999999999998E-3,19838,74222]
["C10 West","Watts Group",1,"Standard service",1.15E-2,6500,185000]
["C10 West","BWB",2,"Standard service",7.7999999999999996E-3,15200,140000]
["C10 West","Clancy",2,"Standard service",1.2E-2,19000,275000]
["C10 West","Davies M&E",2,"Standard service",4.0899999999999999E-3,12620,81800]
["C10 West","Pettit Singleton",2,"Standard service",8.0000000000000002E-3,24950,60000]
["C10 West","Steven A Hunt",2,"Standard service",2.97E-3,19838,74222]
["C10 West","Watts Group",2,"Standard service",9.4999999999999998E-3,6500,185000]
["C10 East","BWB",1,"Standard service",7.9000000000000008E-3,15200,150000]
["C10 East","Davies M&E",1,"Standard service",6.3099999999999996E-3,12620,81800]
["C10 East","Kinetic",1,"Standard service",8.0000000000000002E-3,5000,150000]
["C10 East","Pettit Singleton",1,"Standard service",8.5000000000000006E-3,25950,65000]
["C10 East","S I Sealy",1,"Standard service",8.8999999999999999E-3,7500,125000]
["C10 East","Watts Group",1,"Standard service",1.15E-2,6500,185000]
["C10 East","BWB",2,"Standard service",7.7999999999999996E-3,15200,150000]
["C10 East","Davies M&E",2,"Standard service",4.0899999999999999E-3,12620,81800]
["C10 East","Kinetic",2,"Standard service",7.0000000000000001E-3,5000,150000]
["C10 East","Pettit Singleton",2,"Standard service",8.0000000000000002E-3,25950,65000]
["C10 East","S I Sealy",2,"Standard service",6.6E-3,7500,125000]
["C10 East","Watts Group",2,"Standard service",9.4999999999999998E-3,6500,185000]

{"sheet":"Lots","index":7,"n_rows":24,"n_cols":72,"rows_kept":24,"cut":false,"hidden":true,"merged":[]}
["C1a West","C1a East","C1b West","C1b East","C2 West","C2 East","C3 West","C3 East","C4a West","C4a East","C4b West","C4b East","C5 West","C5 East","C6 West","C6 East","C7 West","C7 East","C10 West","C10 East","C11 West","C11 East","C8 West","C8 East","C9 West","C9 East","H1","H2","L1","L2","L3","L4","L5","A1","A2","P1","P2",null,null,null,null,"C5 West","C5 East","C10 West","C10 East",null,null,"Stages","C8 & C9 Stages","C11 Stages","C5 Stage","Day Rate",null,null,null,"C5 West","C5 East","C10 West","C10 East"]
["AA Projects","AA Projects","AA Projects","AA Projects","Adept","Adept","Anderton Gables","Anderton Gables","AEW","AEW","AEW","AEW","Amrin","Amrin","Anderton Gables","Anderton Gables","BTP","Arcus","BWB","BWB","Arcus","Arcus","Cassidy & Ashton","DPP One","Brownfield Solutions","Brownfield Solutions","Bridgestone","Caddick","A Connolly","A Connolly","Esh","Casey","Esh","Bridgestone","Caddick","Casey","Casey",null,null,null,null,"Amrin","Amrin","BWB","BWB",null,null,"N/a","C8 - Full Planning App","C11 - Pathway A","C5 - Apartments","C5 - Houses",null,null,null,"C5 - Day Rate","C5 - Day Rate","C10 - Executive Director","C10 - Executive Director"]
["AECOM","AECOM","Anderton Gables","Anderton Gables","AJP","AJP","Bailey Wilson","Bailey Wilson","Bowker Sadler","Bowker Sadler","Bowker Sadler","Bowker Sadler","CoW Yorkshire","CoW Yorkshire","CPC","CPC","CPC","BTP","Clancy","Davies M&E","BTP","BTP","Hive","Hive","Campbell Reith Hill","Campbell Reith Hill","Caddick","Casey","Bridgestone","Bridgestone","McCaul","Esh","McCaul","Caddick","Termrim","John Southworth","PLP",null,null,null,null,"CoW Yorkshire","CoW Yorkshire","Clancy","Davies M&E",null,null,"C1b - PD & H&S","C8 - Outline Planning App","C11 - Pathway B",null,"C5 - Apartments",null,null,null,null,null,"C10 - Daily Point of Contact","C10 - Daily Point of Contact"]
["Anderton Gables","Anderton Gables","Arcus","Arcus","HBL","HBL","MAC","MAC","BTP","BTP","BTP","BTP","Gateley Vinden ","Gateley Vinden ","Identity Consult","Identity Consult","PJP","CPC","Davies M&E","Kinetic","Jennings Design","Jennings Design","Savills","Savills","Clancy","Clancy","Casey","Countryside","Carroll","Carroll","Morris & Spottiswood","McCaul","Morris & Spottiswood","Eric Wright","United Living","M&Y Maintenance","Seddon",null,null,null,null,"Gateley Vinden ","Gateley Vinden ","Davies M&E","Kinetic",null,null,"C1b - H&S Only","C8 - Reserves Matters","C11 - Pathway C",null,"C10 - Executive Director",null,null,null,null,null,"C10 - Total","C10 - Total"]
["CPC","CPC","CPC","CPC","Ridge","Ridge","PARCOR","PARCOR","DK Architects","DK Architects","Buttress","Buttress","Hickton","Hickton","Markhams","Markhams","Poole Dick","Poole Dick","Pettit Singleton","Pettit Singleton","MHA","MHA","Stantec UK","Stantec UK","Concept","Concept","Countryside","Esh","Casey","Casey",null,"Morris & Spottiswood","Seddon","GK Construction",null,"Mansell",null,null,null,null,null,"Hickton","Hickton","Pettit Singleton","Pettit Singleton",null,null,"C4 - Stage 1 W/o Planning Consultant","C9 - Phase 1",null,null,"C10 - Daily Point of Contact"]
["Gateley Vinden ","Gateley Vinden ","Gateley Vinden ","Gateley Vinden ","Rodgers Leask","Rodgers Leask","SDA","Rex Proctor","Drome","Drome","Frank Shaw","Frank Shaw","Markhams","Markhams","Poole Dick","Poole Dick ","Rex Proctor","Rex Proctor","Steven A Hunt","S I Sealy","PARCOR","PARCOR",null,null,"Curtins","Curtins","GK Construction","Keepmoat","Hargreaves","GK Construction",null,"PLP","Termrim","Hargreaves",null,"PLP",null,null,null,null,null,"Markhams","Markhams","Steven A Hunt","S I Sealy",null,null,"C4 - Stage 1 with Planning Consultant","C9 - Phase 2",null,null,"C10 - Total"]
["Identity Consult","Identity Consult","Identity Consult","Identity Consult","SCP","SCP","Summers Inman","Summers Inman","JMA","JMA","Halsall Lloyd","Halsall Lloyd","SDA","Poole Dick","SFP","SFP","RJD","RJD","Watts Group","Watts Group","Poole Dick","Poole Dick",null,null,"Ridge","Ridge","Hargreaves","Lovell","Highall","Hargreaves",null,"Rowlinson",null,"Legacie",null,"Rowlinson",null,null,null,null,null,"SDA","Poole Dick","Watts Group","Watts Group",null,null,"C4 - Stage 2","C9 - FRA"]
["Markhams","Markhams","Markhams","Markhams","Shape","Shape","WCP","WCP","MPSL","MPSL","P+HS","P+HS","Waldeck","Waldeck","Turner and Townsend","Turner and Townsend","Sutcliffe","Sutcliffe",null,null,null,null,null,null,"Sutcliffe","Sutcliffe","J Greenwood","PLP","J Greenwood","Highall",null,"Seddon",null,"Rowlinson",null,"Seddon",null,null,null,null,null,"Waldeck","Waldeck",null,null,null,null,"C4 - Stage 1 & 2 w/o planning consultant"]
["Michael Dyson","Michael Dyson","NEO Projects","NEO Projects","Sutcliffe","Sutcliffe","Whiteley Eaves","Whiteley Eaves","P+HS","P+HS","PJP","PJP","WCP","WCP","Whiteley Eaves","Whiteley Eaves","WCP","WCP",null,null,null,null,null,null,"The LK Group","The LK Group","Keepmoat","Seddon","John Southworth","John Southworth",null,"Termrim",null,"Termrim",null,null,null,null,null,null,null,"WCP","WCP",null,null,null,null,"C4 - Stage 1 & 2 with planning consultant"]
["NEO Projects","NEO Projects","Poole Dick","Poole Dick",null,null,null,null,"PJP","PJP","TADW","TADW",null,null,null,null,null,null,null,null,null,null,null,null,null,null,"Legacie","Termrim","Legacie","M&Y Maintenance",null,null,null,"United Living",null,null,null,null,null,null,null,null,null,null,null,null,null,"C5 - Houses"]
["Poole Dick","Poole Dick","Rex Proctor","Rex Proctor",null,null,null,null,"Triangle","Triangle","Watson Batty","Watson Batty",null,null,null,null,null,null,null,null,null,null,null,null,null,null,"Lovell",null,"M&Y Maintenance","McCaul",null,null,null,null,null,null,null,null,null,null,null,null,null,null,null,null,null,"C7 - PD & H&S"]
["Rex Proctor","Rex Proctor","Savills","Savills",null,null,null,null,null,null,null,null,null,null,null,null,null,null,null,null,null,null,null,null,null,null,"M&Y Maintenance",null,"Manchester and Cheshire","Morris & Spottiswood",null,null,null,null,null,null,null,null,null,null,null,null,null,null,null,null,null,"C7 - H&S Only"]
["SFP","SFP","SFP","SFP",null,null,null,null,null,null,null,null,null,null,null,null,null,null,null,null,null,null,null,null,null,null,"PLP",null,"Mansell","PJM"]
["Summers Inman","Summers Inman","Summers Inman","Summers Inman",null,null,null,null,null,null,null,null,null,null,null,null,null,null,null,null,null,null,null,null,null,null,"PP O'Connor",null,"PLP","PLP"]
["WCP","WCP","WCP","WCP",null,null,null,null,null,null,null,null,null,null,null,null,null,null,null,null,null,null,null,null,null,null,"Rowlinson",null,"Rowlinson","Rowlinson"]
["Whiteley Eaves","Whiteley Eaves","Whiteley Eaves","Whiteley Eaves",null,null,null,null,null,null,null,null,null,null,null,null,null,null,null,null,null,null,null,null,null,null,"RP Tyson",null,"RP Tyson","RP Tyson",null,null,null,null,null,null,null,null,null,null,null,null,null,null,null,null,"C1a West","C1a East","C1b West","C1b East","C2 West","C2 East","C3 West","C3 East","C4a West","C4a East","C4b West","C4b East","C5 West","C5 East","C6 West","C6 East","C7 West","C7 East","C10 West","C10 East","C11 West","C11 East","C8 West","C8 East","C9 West","C9 East"]
[null,null,null,null,null,null,null,null,null,null,null,null,null,null,null,null,null,null,null,null,null,null,null,null,null,null,"Seddon",null,"Seddon","Seddon",null,null,null,null,null,null,null,null,null,null,null,null,null,null,null,null,"Standard service","Standard service","C1b - PD & H&S","C1b - PD & H&S","Standard service","Standard service","Standard service","Standard service","C4 - Stage 1 W/o Planning Consultant","C4 - Stage 1 W/o Planning Consultant","C4 - Stage 1 W/o Planning Consultant","C4 - Stage 1 W/o Planning Consultant","C5 - Houses","C5 - Houses","Standard service","Standard service","C7 - PD & H&S","C7 - PD & H&S","Standard service","Standard service","C11 - Pathway A","C11 - Pathway A","C8 - Full Planning App","C8 - Full Planning App","C9 - Phase 1","C9 - Phase 1"]
[null,null,null,null,null,null,null,null,null,null,null,null,null,null,null,null,null,null,null,null,null,null,null,null,null,null,"Termrim",null,"Termrim","Termrim",null,null,null,null,null,null,null,null,null,null,null,null,null,null,null,null,null,null,"C1b - H&S Only","C1b - H&S Only",null,null,null,null,"C4 - Stage 1 with Planning Consultant","C4 - Stage 1 with Planning Consultant","C4 - Stage 1 with Planning Consultant","C4 - Stage 1 with Planning Consultant",null,null,null,null,"C7 - H&S Only","C7 - H&S Only",null,null,"C11 - Pathway B","C11 - Pathway B","C8 - Outline Planning App","C8 - Outline Planning App","C9 - Phase 2","C9 - Phase 2"]
[null,null,null,null,null,null,null,null,null,null,null,null,null,null,null,null,null,null,null,null,null,null,null,null,null,null,"Watson",null,"Watson","Watson",null,null,null,null,null,null,null,null,null,null,null,null,null,null,null,null,null,null,null,null,null,null,null,null,"C4 - Stage 2","C4 - Stage 2","C4 - Stage 2","C4 - Stage 2",null,null,null,null,null,null,null,null,"C11 - Pathway C","C11 - Pathway C","C8 - Reserves Matters","C8 - Reserves Matters","C9 - FRA","C9 - FRA"]
[null,null,null,null,null,null,null,null,null,null,null,null,null,null,null,null,null,null,null,null,null,null,null,null,null,null,"Whitfield & Brown",null,"Whitfield & Brown","Whitfield & Brown",null,null,null,null,null,null,null,null,null,null,null,null,null,null,null,null,null,null,null,null,null,null,null,null,"C4 - Stage 1 & 2 w/o planning consultant","C4 - Stage 1 & 2 w/o planning consultant","C4 - Stage 1 & 2 w/o planning consultant","C4 - Stage 1 & 2 w/o planning consultant"]
[null,null,null,null,null,null,null,null,null,null,null,null,null,null,null,null,null,null,null,null,null,null,null,null,null,null,"Winworth",null,"Wiggett","Winworth",null,null,null,null,null,null,null,null,null,null,null,null,null,null,null,null,null,null,null,null,null,null,null,null,"C4 - Stage 1 & 2 with planning consultant","C4 - Stage 1 & 2 with planning consultant","C4 - Stage 1 & 2 with planning consultant","C4 - Stage 1 & 2 with planning consultant"]
[]
[]
[null,null,null,null,null,null,null,null,null,null,null,null,null,null,null,null,null,null,null,null,null,null,null,null,null,null,null,null,null,null,null,null,null,null,null,null,null,null,null,null,null,null,null,null,null,{"$f":"INDEX($AU$17:$BT$21,,MATCH('SVT Calculator'!D11,$AU$16:$BT$16,0))","v":{"$error":"#N/A"}}]

{"sheet":"Main Contractor","index":8,"n_rows":34,"n_cols":12,"rows_kept":34,"cut":false,"hidden":false,"merged":[[21,2,30,4],[21,0,28,1]]}
[]
[{"$f":"'SVT Calculator'!C13","v":0}]
[{"$f":"'SVT Calculator'!C15","v":0}]
[{"$f":"'SVT Calculator'!C11","v":0}]
[{"$f":"'SVT Calculator'!C3","v":0},"Pledge Target","Pledge Value","Target Adjustment","Adjustment value","How will this be achieved? Specific Activities","Actions \n(Who is doing what / next steps)","How will this be evidenced? ","Start Date","End Date","Outcomes Running Total ","Progress / Updates"]
["Full time, 6 month roles",{"$f":"'SVT Calculator'!C16","v":0},{"$f":"'Social Value Proxies'!C11","v":0},null,{"$f":"D6*'Social Value Proxies'!U11","v":0}]
["Work placement weeks",{"$f":"'SVT Calculator'!C17","v":0},{"$f":"'Social Value Proxies'!C12","v":0},null,{"$f":"D7*'Social Value Proxies'!U12","v":0}]
["Specialist advice hours for Careers IAG",{"$f":"'SVT Calculator'!C18","v":0},{"$f":"'Social Value Proxies'!C13","v":0},null,{"$f":"D8*'Social Value Proxies'!U13","v":0}]
["Specialist advice hours for VCSE or SME",{"$f":"'SVT Calculator'!C19","v":0},{"$f":"'Social Value Proxies'!C14","v":0},null,{"$f":"D9*'Social Value Proxies'!U14","v":0}]
["Hours for Digital Inclusion",{"$f":"'SVT Calculator'!C20","v":0},{"$f":"'Social Value Proxies'!C15","v":0},null,{"$f":"D10*'Social Value Proxies'!U15","v":0}]
["£s towards Digital equipment",{"$f":"'SVT Calculator'!C21","v":0},{"$f":"'Social Value Proxies'!C16","v":0},null,{"$f":"D11*'Social Value Proxies'!U16","v":0}]
["£s towards community projects",{"$f":"'SVT Calculator'!C22","v":0},{"$f":"'Social Value Proxies'!C17","v":0},null,{"$f":"D12*'Social Value Proxies'!U17","v":0}]
["Hours volunteered for community project",{"$f":"'SVT Calculator'!C23","v":0},{"$f":"'Social Value Proxies'!C18","v":0},null,{"$f":"D13*'Social Value Proxies'!U18","v":0}]
["£s for poverty initiatives",{"$f":"'SVT Calculator'!C24","v":0},{"$f":"'Social Value Proxies'!C19","v":0},null,{"$f":"D14*'Social Value Proxies'!U19","v":0}]
["Hours to promote healthy living",{"$f":"'SVT Calculator'!C25","v":0},{"$f":"'Social Value Proxies'!C20","v":0},null,{"$f":"D15*'Social Value Proxies'!U20","v":0}]
["Hours for Homelessness projects ",{"$f":"'SVT Calculator'!C26","v":0},{"$f":"'Social Value Proxies'!C21","v":0},null,{"$f":"D16*'Social Value Proxies'!U21","v":0}]
["Carbon Literacy training provided",{"$f":"'SVT Calculator'!C27","v":0},{"$f":"'Social Value Proxies'!C22","v":0},null,{"$f":"D17*'Social Value Proxies'!U22","v":0}]
["Service Provider total",null,{"$f":"'Social Value Proxies'!C23","v":0},null,{"$f":"SUM(E6:E17)","v":0}]
["Social Return on Investment",null,{"$f":"'Social Value Proxies'!C24","v":""},null,{"$f":"E18/A3","v":{"$error":"#DIV/0!"}}]
[]
[]
["For advice on how social value targets could be allocated to have the most impact, plus get help with place based delivery, get in touch with CommunityInvestment@greatplaces.org.uk ",null,"They can help by:\n•Engaging the relevant internal stakeholders\n•Provide community insight and data\n•Foster links between partners and external stakeholders\n•Share knowledge on existing projects and partnerships\n•Signpost Great Places customers to opportunities\n•Assist with delivery of targets"]
[]
[]
[]
[]
[]
[]
[]
[]
["This calculator uses data from National Toms Framework, 2019 version. "]
["**National TOMS"]
["Attribution\nTitle: National TOMs 2019\nAuthor: Social Value Portal Ltd\nSource: socialvalueportal.com\nLicense: Creative Commons Attribution-NonCommercial-NoDerivatives 4.0 International License "]
["https://creativecommons.org/licenses/by-nc-nd/4.0/"]

{"sheet":"Consultant 1","index":9,"n_rows":35,"n_cols":12,"rows_kept":35,"cut":false,"hidden":false,"merged":[[20,0,22,1],[20,2,29,4]]}
[]
[{"$f":"'SVT Calculator'!D13","v":0},"Stage 1"]
[{"$f":"'SVT Calculator'!D15","v":0}]
[{"$f":"'SVT Calculator'!D11","v":0}]
[{"$f":"'SVT Calculator'!C3","v":0},"Pledge Target","Pledge Value","Target Adjustment","Adjustment value","How will this be achieved? Specific Activities or Projects","Actions \n(Who is doing what / next steps)","How will this be evidenced? ","Start Date","End Date","Outcomes Running Total ","Progress / Updates"]
["Work placement weeks",{"$f":"'SVT Calculator'!D17","v":0},{"$f":"'Social Value Proxies'!D12","v":0},null,{"$f":"D6*'Social Value Proxies'!U11","v":0}]
["Specialist advice hours for Careers IAG",{"$f":"'SVT Calculator'!D18","v":0},{"$f":"'Social Value Proxies'!D13","v":0},null,{"$f":"D7*'Social Value Proxies'!U12","v":0}]
["Specialist advice hours for VCSE or SME",{"$f":"'SVT Calculator'!D19","v":0},{"$f":"'Social Value Proxies'!D14","v":0},null,{"$f":"D8*'Social Value Proxies'!U13","v":0}]
["Hours for Digital Inclusion",{"$f":"'SVT Calculator'!D20","v":0},{"$f":"'Social Value Proxies'!D15","v":0},null,{"$f":"D9*'Social Value Proxies'!U14","v":0}]
["£s towards Digital equipment",{"$f":"'SVT Calculator'!D21","v":0},{"$f":"'Social Value Proxies'!D16","v":0},null,{"$f":"D10*'Social Value Proxies'!U15","v":0}]
["£s towards community projects",{"$f":"'SVT Calculator'!D22","v":0},{"$f":"'Social Value Proxies'!D17","v":0},null,{"$f":"D11*'Social Value Proxies'!U16","v":0}]
["Hours volunteered for community project",{"$f":"'SVT Calculator'!D23","v":0},{"$f":"'Social Value Proxies'!D18","v":0},null,{"$f":"D12*'Social Value Proxies'!U17","v":0}]
["£s for poverty initiatives",{"$f":"'SVT Calculator'!D24","v":0},{"$f":"'Social Value Proxies'!D19","v":0},null,{"$f":"D13*'Social Value Proxies'!U18","v":0}]
["Hours to promote healthy living",{"$f":"'SVT Calculator'!D25","v":0},{"$f":"'Social Value Proxies'!D20","v":0},null,{"$f":"D14*'Social Value Proxies'!U19","v":0}]
["Hours for Homelessness projects ",{"$f":"'SVT Calculator'!D26","v":0},{"$f":"'Social Value Proxies'!D21","v":0},null,{"$f":"D15*'Social Value Proxies'!U20","v":0}]
["Carbon Literacy training provided",{"$f":"'SVT Calculator'!D27","v":0},{"$f":"'Social Value Proxies'!D22","v":0},null,{"$f":"D16*'Social Value Proxies'!U21","v":0}]
["Service Provider total",null,{"$f":"'Social Value Proxies'!D23","v":0},null,{"$f":"SUM(E6:E16)","v":0}]
["Social Return on Investment",null,{"$f":"'Social Value Proxies'!D24","v":""},null,{"$f":"E17/A3","v":{"$error":"#DIV/0!"}}]
[]
[]
["For advice on how social value targets could be allocated to have the most impact, plus get help with place based delivery, get in touch with CommunityInvestment@greatplaces.org.uk ",null,"They can help by:\n•Engaging the relevant internal stakeholders\n•Provide community insight and data\n•Foster links between partners and external stakeholders\n•Share knowledge on existing projects and partnerships\n•Signpost Great Places customers to opportunities\n•Assist with delivery of targets"]
[]
[]
[]
[]
[]
[]
[]
[]
[]
[]
["This calculator uses data from National Toms Framework, 2019 version. "]
["**National TOMS"]
["Attribution\nTitle: National TOMs 2019\nAuthor: Social Value Portal Ltd\nSource: socialvalueportal.com\nLicense: Creative Commons Attribution-NonCommercial-NoDerivatives 4.0 International License "]
["https://creativecommons.org/licenses/by-nc-nd/4.0/"]

{"sheet":"Consultant 2","index":10,"n_rows":35,"n_cols":12,"rows_kept":35,"cut":false,"hidden":false,"merged":[[0,6,3,7],[0,5,1,5],[20,2,29,4],[20,0,22,1]]}
[]
[{"$f":"'SVT Calculator'!E13","v":0}]
[{"$f":"'SVT Calculator'!E15","v":0}]
[{"$f":"'SVT Calculator'!E11","v":0}]
[{"$f":"'SVT Calculator'!C3","v":0},"Pledge Target","Pledge Value","Target Adjustment","Adjustment value","How will this be achieved? Specific Activities or Projects","Actions \n(Who is doing what / next steps)","How will this be evidenced? ","Start Date","End Date","Outcomes Running Total ","Progress / Updates"]
["Work placement weeks",{"$f":"'SVT Calculator'!E17","v":0},{"$f":"'Social Value Proxies'!E11","v":0},null,{"$f":"D6*'Social Value Proxies'!U11","v":0}]
["Specialist advice hours for Careers IAG",{"$f":"'SVT Calculator'!E18","v":0},{"$f":"'Social Value Proxies'!E12","v":0},null,{"$f":"D7*'Social Value Proxies'!U12","v":0}]
["Specialist advice hours for VCSE or SME",{"$f":"'SVT Calculator'!E19","v":0},{"$f":"'Social Value Proxies'!E13","v":0},null,{"$f":"D8*'Social Value Proxies'!U13","v":0}]
["Hours for Digital Inclusion",{"$f":"'SVT Calculator'!E20","v":0},{"$f":"'Social Value Proxies'!E14","v":0},null,{"$f":"D9*'Social Value Proxies'!U14","v":0}]
["£s towards Digital equipment",{"$f":"'SVT Calculator'!E21","v":0},{"$f":"'Social Value Proxies'!E15","v":0},null,{"$f":"D10*'Social Value Proxies'!U15","v":0}]
["£s towards community projects",{"$f":"'SVT Calculator'!E22","v":0},{"$f":"'Social Value Proxies'!E16","v":0},null,{"$f":"D11*'Social Value Proxies'!U16","v":0}]
["Hours volunteered for community project",{"$f":"'SVT Calculator'!E23","v":0},{"$f":"'Social Value Proxies'!E17","v":0},null,{"$f":"D12*'Social Value Proxies'!U17","v":0}]
["£s for poverty initiatives",{"$f":"'SVT Calculator'!E24","v":0},{"$f":"'Social Value Proxies'!E18","v":0},null,{"$f":"D13*'Social Value Proxies'!U18","v":0}]
["Hours to promote healthy living",{"$f":"'SVT Calculator'!E25","v":0},{"$f":"'Social Value Proxies'!E19","v":0},null,{"$f":"D14*'Social Value Proxies'!U19","v":0}]
["Hours for Homelessness projects ",{"$f":"'SVT Calculator'!E26","v":0},{"$f":"'Social Value Proxies'!E20","v":0},null,{"$f":"D15*'Social Value Proxies'!U20","v":0}]
["Carbon Literacy training provided",{"$f":"'SVT Calculator'!E27","v":0},{"$f":"'Social Value Proxies'!E21","v":0},null,{"$f":"D16*'Social Value Proxies'!U21","v":0}]
["Service Provider total",null,{"$f":"'Social Value Proxies'!E23","v":0},null,{"$f":"SUM(E6:E16)","v":0}]
["Social Return on Investment",null,{"$f":"'Social Value Proxies'!E24","v":""},null,{"$f":"E17/A3","v":{"$error":"#DIV/0!"}}]
[]
[]
["For advice on how social value targets could be allocated to have the most impact, plus get help with place based delivery, get in touch with CommunityInvestment@greatplaces.org.uk ",null,"They can help by:\n•Engaging the relevant internal stakeholders\n•Provide community insight and data\n•Foster links between partners and external stakeholders\n•Share knowledge on existing projects and partnerships\n•Signpost Great Places customers to opportunities\n•Assist with delivery of targets"]
[]
[]
[]
[]
[]
[]
[]
[]
[]
[]
["This calculator uses data from National Toms Framework, 2019 version. "]
["**National TOMS"]
["Attribution\nTitle: National TOMs 2019\nAuthor: Social Value Portal Ltd\nSource: socialvalueportal.com\nLicense: Creative Commons Attribution-NonCommercial-NoDerivatives 4.0 International License "]
["https://creativecommons.org/licenses/by-nc-nd/4.0/"]

{"sheet":"Consultant 3","index":11,"n_rows":35,"n_cols":12,"rows_kept":35,"cut":false,"hidden":false,"merged":[[0,6,3,7],[0,5,1,5],[20,2,29,4],[20,0,22,1]]}
[]
[{"$f":"'SVT Calculator'!F13","v":0}]
[{"$f":"'SVT Calculator'!F15","v":0}]
[{"$f":"'SVT Calculator'!F11","v":0}]
[{"$f":"'SVT Calculator'!C3","v":0},"Pledge Target","Pledge Value","Target Adjustment","Adjustment value","How will this be achieved? Specific Activities or Projects","Actions \n(Who is doing what / next steps)","How will this be evidenced? ","Start Date","End Date","Outcomes Running Total ","Progress / Updates"]
["Work placement weeks",{"$f":"'SVT Calculator'!F17","v":0},{"$f":"'Social Value Proxies'!F11","v":0},null,{"$f":"D6*'Social Value Proxies'!U11","v":0}]
["Specialist advice hours for Careers IAG",{"$f":"'SVT Calculator'!F18","v":0},{"$f":"'Social Value Proxies'!F12","v":0},null,{"$f":"D7*'Social Value Proxies'!U12","v":0}]
["Specialist advice hours for VCSE or SME",{"$f":"'SVT Calculator'!F19","v":0},{"$f":"'Social Value Proxies'!F13","v":0},null,{"$f":"D8*'Social Value Proxies'!U13","v":0}]
["Hours for Digital Inclusion",{"$f":"'SVT Calculator'!F20","v":0},{"$f":"'Social Value Proxies'!F14","v":0},null,{"$f":"D9*'Social Value Proxies'!U14","v":0}]
["£s towards Digital equipment",{"$f":"'SVT Calculator'!F21","v":0},{"$f":"'Social Value Proxies'!F15","v":0},null,{"$f":"D10*'Social Value Proxies'!U15","v":0}]
["£s towards community projects",{"$f":"'SVT Calculator'!F22","v":0},{"$f":"'Social Value Proxies'!F16","v":0},null,{"$f":"D11*'Social Value Proxies'!U16","v":0}]
["Hours volunteered for community project",{"$f":"'SVT Calculator'!F23","v":0},{"$f":"'Social Value Proxies'!F17","v":0},null,{"$f":"D12*'Social Value Proxies'!U17","v":0}]
["£s for poverty initiatives",{"$f":"'SVT Calculator'!F24","v":0},{"$f":"'Social Value Proxies'!F18","v":0},null,{"$f":"D13*'Social Value Proxies'!U18","v":0}]
["Hours to promote healthy living",{"$f":"'SVT Calculator'!F25","v":0},{"$f":"'Social Value Proxies'!F19","v":0},null,{"$f":"D14*'Social Value Proxies'!U19","v":0}]
["Hours for Homelessness projects ",{"$f":"'SVT Calculator'!F26","v":0},{"$f":"'Social Value Proxies'!F20","v":0},null,{"$f":"D15*'Social Value Proxies'!U20","v":0}]
["Carbon Literacy training provided",{"$f":"'SVT Calculator'!F27","v":0},{"$f":"'Social Value Proxies'!F21","v":0},null,{"$f":"D16*'Social Value Proxies'!U21","v":0}]
["Service Provider total",null,{"$f":"'Social Value Proxies'!F23","v":0},null,{"$f":"SUM(E6:E16)","v":0}]
["Social Return on Investment",null,{"$f":"'Social Value Proxies'!F24","v":""},null,{"$f":"E17/A3","v":{"$error":"#DIV/0!"}}]
[]
[]
["For advice on how social value targets could be allocated to have the most impact, plus get help with place based delivery, get in touch with CommunityInvestment@greatplaces.org.uk ",null,"They can help by:\n•Engaging the relevant internal stakeholders\n•Provide community insight and data\n•Foster links between partners and external stakeholders\n•Share knowledge on existing projects and partnerships\n•Signpost Great Places customers to opportunities\n•Assist with delivery of targets"]
[]
[]
[]
[]
[]
[]
[]
[]
[]
[]
["This calculator uses data from National Toms Framework, 2019 version. "]
["**National TOMS"]
["Attribution\nTitle: National TOMs 2019\nAuthor: Social Value Portal Ltd\nSource: socialvalueportal.com\nLicense: Creative Commons Attribution-NonCommercial-NoDerivatives 4.0 International License "]
["https://creativecommons.org/licenses/by-nc-nd/4.0/"]

{"sheet":"Consultant 4","index":12,"n_rows":35,"n_cols":12,"rows_kept":35,"cut":false,"hidden":false,"merged":[[0,6,3,7],[0,5,1,5],[20,2,29,4],[20,0,22,1]]}
[]
[{"$f":"'SVT Calculator'!G13","v":0}]
[{"$f":"'SVT Calculator'!G15","v":0}]
[{"$f":"'SVT Calculator'!G11","v":0}]
[{"$f":"'SVT Calculator'!C3","v":0},"Pledge Target","Pledge Value","Target Adjustment","Adjustment value","How will this be achieved? Specific Activities or Projects","Actions \n(Who is doing what / next steps)","How will this be evidenced? ","Start Date","End Date","Outcomes Running Total ","Progress / Updates"]
["Work placement weeks",{"$f":"'SVT Calculator'!G17","v":0},{"$f":"'Social Value Proxies'!G11","v":0},null,{"$f":"D6*'Social Value Proxies'!U11","v":0}]
["Specialist advice hours for Careers IAG",{"$f":"'SVT Calculator'!G18","v":0},{"$f":"'Social Value Proxies'!G12","v":0},null,{"$f":"D7*'Social Value Proxies'!U12","v":0}]
["Specialist advice hours for VCSE or SME",{"$f":"'SVT Calculator'!G19","v":0},{"$f":"'Social Value Proxies'!G13","v":0},null,{"$f":"D8*'Social Value Proxies'!U13","v":0}]
["Hours for Digital Inclusion",{"$f":"'SVT Calculator'!G20","v":0},{"$f":"'Social Value Proxies'!G14","v":0},null,{"$f":"D9*'Social Value Proxies'!U14","v":0}]
["£s towards Digital equipment",{"$f":"'SVT Calculator'!G21","v":0},{"$f":"'Social Value Proxies'!G15","v":0},null,{"$f":"D10*'Social Value Proxies'!U15","v":0}]
["£s towards community projects",{"$f":"'SVT Calculator'!G22","v":0},{"$f":"'Social Value Proxies'!G16","v":0},null,{"$f":"D11*'Social Value Proxies'!U16","v":0}]
["Hours volunteered for community project",{"$f":"'SVT Calculator'!G23","v":0},{"$f":"'Social Value Proxies'!G17","v":0},null,{"$f":"D12*'Social Value Proxies'!U17","v":0}]
["£s for poverty initiatives",{"$f":"'SVT Calculator'!G24","v":0},{"$f":"'Social Value Proxies'!G18","v":0},null,{"$f":"D13*'Social Value Proxies'!U18","v":0}]
["Hours to promote healthy living",{"$f":"'SVT Calculator'!G25","v":0},{"$f":"'Social Value Proxies'!G19","v":0},null,{"$f":"D14*'Social Value Proxies'!U19","v":0}]
["Hours for Homelessness projects ",{"$f":"'SVT Calculator'!G26","v":0},{"$f":"'Social Value Proxies'!G20","v":0},null,{"$f":"D15*'Social Value Proxies'!U20","v":0}]
["Carbon Literacy training provided",{"$f":"'SVT Calculator'!G27","v":0},{"$f":"'Social Value Proxies'!G21","v":0},null,{"$f":"D16*'Social Value Proxies'!U21","v":0}]
["Service Provider total",null,{"$f":"'Social Value Proxies'!G23","v":0},null,{"$f":"SUM(E6:E16)","v":0}]
["Social Return on Investment",{"$f":"'SVT Calculator'!G29","v":""},{"$f":"'Social Value Proxies'!G24","v":""},null,{"$f":"E17/A3","v":{"$error":"#DIV/0!"}}]
[]
[]
["For advice on how social value targets could be allocated to have the most impact, plus get help with place based delivery, get in touch with CommunityInvestment@greatplaces.org.uk ",null,"They can help by:\n•Engaging the relevant internal stakeholders\n•Provide community insight and data\n•Foster links between partners and external stakeholders\n•Share knowledge on existing projects and partnerships\n•Signpost Great Places customers to opportunities\n•Assist with delivery of targets"]
[]
[]
[]
[]
[]
[]
[]
[]
[]
[]
["This calculator uses data from National Toms Framework, 2019 version. "]
["**National TOMS"]
["Attribution\nTitle: National TOMs 2019\nAuthor: Social Value Portal Ltd\nSource: socialvalueportal.com\nLicense: Creative Commons Attribution-NonCommercial-NoDerivatives 4.0 International License "]
["https://creativecommons.org/licenses/by-nc-nd/4.0/"]

{"sheet":"Consultant 5","index":13,"n_rows":35,"n_cols":12,"rows_kept":35,"cut":false,"hidden":false,"merged":[[0,6,3,7],[0,5,1,5],[20,2,29,4],[20,0,22,1]]}
[]
[{"$f":"'SVT Calculator'!H13","v":0}]
[{"$f":"'SVT Calculator'!H15","v":0}]
[{"$f":"'SVT Calculator'!H11","v":0}]
[{"$f":"'SVT Calculator'!C3","v":0},"Pledge Target","Pledge Value","Target Adjustment","Adjustment value","How will this be achieved? Specific Activities or Projects","Actions \n(Who is doing what / next steps)","How will this be evidenced? ","Start Date","End Date","Outcomes Running Total ","Progress / Updates"]
["Work placement weeks",{"$f":"'SVT Calculator'!H17","v":0},{"$f":"'Social Value Proxies'!H11","v":0},null,{"$f":"D6*'Social Value Proxies'!U11","v":0}]
["Specialist advice hours for Careers IAG",{"$f":"'SVT Calculator'!H18","v":0},{"$f":"'Social Value Proxies'!H12","v":0},null,{"$f":"D7*'Social Value Proxies'!U12","v":0}]
["Specialist advice hours for VCSE or SME",{"$f":"'SVT Calculator'!H19","v":0},{"$f":"'Social Value Proxies'!H13","v":0},null,{"$f":"D8*'Social Value Proxies'!U13","v":0}]
["Hours for Digital Inclusion",{"$f":"'SVT Calculator'!H20","v":0},{"$f":"'Social Value Proxies'!H14","v":0},null,{"$f":"D9*'Social Value Proxies'!U14","v":0}]
["£s towards Digital equipment",{"$f":"'SVT Calculator'!H21","v":0},{"$f":"'Social Value Proxies'!H15","v":0},null,{"$f":"D10*'Social Value Proxies'!U15","v":0}]
["£s towards community projects",{"$f":"'SVT Calculator'!H22","v":0},{"$f":"'Social Value Proxies'!H16","v":0},null,{"$f":"D11*'Social Value Proxies'!U16","v":0}]
["Hours volunteered for community project",{"$f":"'SVT Calculator'!H23","v":0},{"$f":"'Social Value Proxies'!H17","v":0},null,{"$f":"D12*'Social Value Proxies'!U17","v":0}]
["£s for poverty initiatives",{"$f":"'SVT Calculator'!H24","v":0},{"$f":"'Social Value Proxies'!H18","v":0},null,{"$f":"D13*'Social Value Proxies'!U18","v":0}]
["Hours to promote healthy living",{"$f":"'SVT Calculator'!H25","v":0},{"$f":"'Social Value Proxies'!H19","v":0},null,{"$f":"D14*'Social Value Proxies'!U19","v":0}]
["Hours for Homelessness projects ",{"$f":"'SVT Calculator'!H26","v":0},{"$f":"'Social Value Proxies'!H20","v":0},null,{"$f":"D15*'Social Value Proxies'!U20","v":0}]
["Carbon Literacy training provided",{"$f":"'SVT Calculator'!H27","v":0},{"$f":"'Social Value Proxies'!H21","v":0},null,{"$f":"D16*'Social Value Proxies'!U21","v":0}]
["Service Provider total",null,{"$f":"'Social Value Proxies'!H23","v":0},null,{"$f":"SUM(E6:E16)","v":0}]
["Social Return on Investment",{"$f":"'SVT Calculator'!H29","v":""},{"$f":"'Social Value Proxies'!H24","v":""},null,{"$f":"E17/A3","v":{"$error":"#DIV/0!"}}]
[]
[]
["For advice on how social value targets could be allocated to have the most impact, plus get help with place based delivery, get in touch with CommunityInvestment@greatplaces.org.uk ",null,"They can help by:\n•Engaging the relevant internal stakeholders\n•Provide community insight and data\n•Foster links between partners and external stakeholders\n•Share knowledge on existing projects and partnerships\n•Signpost Great Places customers to opportunities\n•Assist with delivery of targets"]
[]
[]
[]
[]
[]
[]
[]
[]
[]
[]
["This calculator uses data from National Toms Framework, 2019 version. "]
["**National TOMS"]
["Attribution\nTitle: National TOMs 2019\nAuthor: Social Value Portal Ltd\nSource: socialvalueportal.com\nLicense: Creative Commons Attribution-NonCommercial-NoDerivatives 4.0 International License "]
["https://creativecommons.org/licenses/by-nc-nd/4.0/"]

{"sheet":"Consultant 6","index":14,"n_rows":35,"n_cols":12,"rows_kept":35,"cut":false,"hidden":false,"merged":[[0,5,1,5],[0,6,3,7],[20,0,22,1],[20,2,29,4]]}
[]
[{"$f":"'SVT Calculator'!H13","v":0}]
[{"$f":"'SVT Calculator'!H15","v":0}]
[{"$f":"'SVT Calculator'!H11","v":0}]
[{"$f":"'SVT Calculator'!C3","v":0},"Pledge Target","Pledge Value","Target Adjustment","Adjustment value","How will this be achieved? Specific Activities or Projects","Actions \n(Who is doing what / next steps)","How will this be evidenced? ","Start Date","End Date","Outcomes Running Total ","Progress / Updates"]
["Work placement weeks",{"$f":"'SVT Calculator'!I17","v":0},{"$f":"'Social Value Proxies'!I12","v":0},null,{"$f":"D6*'Social Value Proxies'!U11","v":0}]
["Specialist advice hours for Careers IAG",{"$f":"'SVT Calculator'!I18","v":0},{"$f":"'Social Value Proxies'!I13","v":0},null,{"$f":"D7*'Social Value Proxies'!U12","v":0}]
["Specialist advice hours for VCSE or SME",{"$f":"'SVT Calculator'!I19","v":0},{"$f":"'Social Value Proxies'!I14","v":0},null,{"$f":"D8*'Social Value Proxies'!U13","v":0}]
["Hours for Digital Inclusion",{"$f":"'SVT Calculator'!I20","v":0},{"$f":"'Social Value Proxies'!I15","v":0},null,{"$f":"D9*'Social Value Proxies'!U14","v":0}]
["£s towards Digital equipment",{"$f":"'SVT Calculator'!I21","v":0},{"$f":"'Social Value Proxies'!I16","v":0},null,{"$f":"D10*'Social Value Proxies'!U15","v":0}]
["£s towards community projects",{"$f":"'SVT Calculator'!I22","v":0},{"$f":"'Social Value Proxies'!I17","v":0},null,{"$f":"D11*'Social Value Proxies'!U16","v":0}]
["Hours volunteered for community project",{"$f":"'SVT Calculator'!I23","v":0},{"$f":"'Social Value Proxies'!I18","v":0},null,{"$f":"D12*'Social Value Proxies'!U17","v":0}]
["£s for poverty initiatives",{"$f":"'SVT Calculator'!I24","v":0},{"$f":"'Social Value Proxies'!I19","v":0},null,{"$f":"D13*'Social Value Proxies'!U18","v":0}]
["Hours to promote healthy living",{"$f":"'SVT Calculator'!I25","v":0},{"$f":"'Social Value Proxies'!I20","v":0},null,{"$f":"D14*'Social Value Proxies'!U19","v":0}]
["Hours for Homelessness projects ",{"$f":"'SVT Calculator'!I26","v":0},{"$f":"'Social Value Proxies'!I21","v":0},null,{"$f":"D15*'Social Value Proxies'!U20","v":0}]
["Carbon Literacy training provided",{"$f":"'SVT Calculator'!I27","v":0},{"$f":"'Social Value Proxies'!I22","v":0},null,{"$f":"D16*'Social Value Proxies'!U21","v":0}]
["Service Provider total",null,{"$f":"'Social Value Proxies'!H23","v":0},null,{"$f":"SUM(E6:E16)","v":0}]
["Social Return on Investment",{"$f":"'SVT Calculator'!H29","v":""},{"$f":"'Social Value Proxies'!H24","v":""},null,{"$f":"E17/A3","v":{"$error":"#DIV/0!"}}]
[]
[]
["For advice on how social value targets could be allocated to have the most impact, plus get help with place based delivery, get in touch with CommunityInvestment@greatplaces.org.uk ",null,"They can help by:\n•Engaging the relevant internal stakeholders\n•Provide community insight and data\n•Foster links between partners and external stakeholders\n•Share knowledge on existing projects and partnerships\n•Signpost Great Places customers to opportunities\n•Assist with delivery of targets"]
[]
[]
[]
[]
[]
[]
[]
[]
[]
[]
["This calculator uses data from National Toms Framework, 2019 version. "]
["**National TOMS"]
["Attribution\nTitle: National TOMs 2019\nAuthor: Social Value Portal Ltd\nSource: socialvalueportal.com\nLicense: Creative Commons Attribution-NonCommercial-NoDerivatives 4.0 International License "]
["https://creativecommons.org/licenses/by-nc-nd/4.0/"]

{"sheet":"Consultant 7","index":15,"n_rows":35,"n_cols":12,"rows_kept":35,"cut":false,"hidden":false,"merged":[[0,5,1,5],[0,6,3,7],[20,0,22,1],[20,2,29,4]]}
[]
[{"$f":"'SVT Calculator'!H13","v":0}]
[{"$f":"'SVT Calculator'!H15","v":0}]
[{"$f":"'SVT Calculator'!H11","v":0}]
[{"$f":"'SVT Calculator'!C3","v":0},"Pledge Target","Pledge Value","Target Adjustment","Adjustment value","How will this be achieved? Specific Activities or Projects","Actions \n(Who is doing what / next steps)","How will this be evidenced? ","Start Date","End Date","Outcomes Running Total ","Progress / Updates"]
["Work placement weeks",{"$f":"'SVT Calculator'!J17","v":0},{"$f":"'Social Value Proxies'!J12","v":0},null,{"$f":"D6*'Social Value Proxies'!U11","v":0}]
["Specialist advice hours for Careers IAG",{"$f":"'SVT Calculator'!J18","v":0},{"$f":"'Social Value Proxies'!J13","v":0},null,{"$f":"D7*'Social Value Proxies'!U12","v":0}]
["Specialist advice hours for VCSE or SME",{"$f":"'SVT Calculator'!J19","v":0},{"$f":"'Social Value Proxies'!J14","v":0},null,{"$f":"D8*'Social Value Proxies'!U13","v":0}]
["Hours for Digital Inclusion",{"$f":"'SVT Calculator'!J20","v":0},{"$f":"'Social Value Proxies'!J15","v":0},null,{"$f":"D9*'Social Value Proxies'!U14","v":0}]
["£s towards Digital equipment",{"$f":"'SVT Calculator'!J21","v":0},{"$f":"'Social Value Proxies'!J16","v":0},null,{"$f":"D10*'Social Value Proxies'!U15","v":0}]
["£s towards community projects",{"$f":"'SVT Calculator'!J22","v":0},{"$f":"'Social Value Proxies'!J17","v":0},null,{"$f":"D11*'Social Value Proxies'!U16","v":0}]
["Hours volunteered for community project",{"$f":"'SVT Calculator'!J23","v":0},{"$f":"'Social Value Proxies'!J18","v":0},null,{"$f":"D12*'Social Value Proxies'!U17","v":0}]
["£s for poverty initiatives",{"$f":"'SVT Calculator'!J24","v":0},{"$f":"'Social Value Proxies'!J19","v":0},null,{"$f":"D13*'Social Value Proxies'!U18","v":0}]
["Hours to promote healthy living",{"$f":"'SVT Calculator'!J25","v":0},{"$f":"'Social Value Proxies'!J20","v":0},null,{"$f":"D14*'Social Value Proxies'!U19","v":0}]
["Hours for Homelessness projects ",{"$f":"'SVT Calculator'!J26","v":0},{"$f":"'Social Value Proxies'!J21","v":0},null,{"$f":"D15*'Social Value Proxies'!U20","v":0}]
["Carbon Literacy training provided",{"$f":"'SVT Calculator'!J27","v":0},{"$f":"'Social Value Proxies'!J22","v":0},null,{"$f":"D16*'Social Value Proxies'!U21","v":0}]
["Service Provider total",null,{"$f":"'Social Value Proxies'!H23","v":0},null,{"$f":"SUM(E6:E16)","v":0}]
["Social Return on Investment",{"$f":"'SVT Calculator'!H29","v":""},{"$f":"'Social Value Proxies'!H24","v":""},null,{"$f":"E17/A3","v":{"$error":"#DIV/0!"}}]
[]
[]
["For advice on how social value targets could be allocated to have the most impact, plus get help with place based delivery, get in touch with CommunityInvestment@greatplaces.org.uk ",null,"They can help by:\n•Engaging the relevant internal stakeholders\n•Provide community insight and data\n•Foster links between partners and external stakeholders\n•Share knowledge on existing projects and partnerships\n•Signpost Great Places customers to opportunities\n•Assist with delivery of targets"]
[]
[]
[]
[]
[]
[]
[]
[]
[]
[]
["This calculator uses data from National Toms Framework, 2019 version. "]
["**National TOMS"]
["Attribution\nTitle: National TOMs 2019\nAuthor: Social Value Portal Ltd\nSource: socialvalueportal.com\nLicense: Creative Commons Attribution-NonCommercial-NoDerivatives 4.0 International License "]
["https://creativecommons.org/licenses/by-nc-nd/4.0/"]

{"sheet":"C8 - C9 (1)","index":16,"n_rows":35,"n_cols":12,"rows_kept":35,"cut":false,"hidden":false,"merged":[[0,6,3,7],[0,5,1,5],[20,2,29,4],[20,0,22,1]]}
[]
[{"$f":"'SVT Calculator'!K13","v":0}]
[{"$f":"'SVT Calculator'!K15","v":0}]
[{"$f":"'SVT Calculator'!K11","v":0}]
[{"$f":"'SVT Calculator'!C3","v":0},"Pledge Target","Pledge Value","Target Adjustment","Adjustment value","How will this be achieved? Specific Activities or Projects","Actions \n(Who is doing what / next steps)","How will this be evidenced? ","Start Date","End Date","Outcomes Running Total ","Progress / Updates"]
["Work placement weeks",{"$f":"'SVT Calculator'!K17","v":0},{"$f":"'Social Value Proxies'!K12","v":0},null,{"$f":"D6*'Social Value Proxies'!U11","v":0}]
["Specialist advice hours for Careers IAG",{"$f":"'SVT Calculator'!K18","v":0},{"$f":"'Social Value Proxies'!K13","v":0},null,{"$f":"D7*'Social Value Proxies'!U12","v":0}]
["Specialist advice hours for VCSE or SME",{"$f":"'SVT Calculator'!K19","v":0},{"$f":"'Social Value Proxies'!K14","v":0},null,{"$f":"D8*'Social Value Proxies'!U13","v":0}]
["Hours for Digital Inclusion",{"$f":"'SVT Calculator'!K20","v":0},{"$f":"'Social Value Proxies'!K15","v":0},null,{"$f":"D9*'Social Value Proxies'!U14","v":0}]
["£s towards Digital equipment",{"$f":"'SVT Calculator'!K21","v":0},{"$f":"'Social Value Proxies'!K16","v":0},null,{"$f":"D10*'Social Value Proxies'!U15","v":0}]
["£s towards community projects",{"$f":"'SVT Calculator'!K22","v":0},{"$f":"'Social Value Proxies'!K17","v":0},null,{"$f":"D11*'Social Value Proxies'!U16","v":0}]
["Hours volunteered for community project",{"$f":"'SVT Calculator'!K23","v":0},{"$f":"'Social Value Proxies'!K18","v":0},null,{"$f":"D12*'Social Value Proxies'!U17","v":0}]
["£s for poverty initiatives",{"$f":"'SVT Calculator'!K24","v":0},{"$f":"'Social Value Proxies'!K19","v":0},null,{"$f":"D13*'Social Value Proxies'!U18","v":0}]
["Hours to promote healthy living",{"$f":"'SVT Calculator'!K25","v":0},{"$f":"'Social Value Proxies'!K20","v":0},null,{"$f":"D14*'Social Value Proxies'!U19","v":0}]
["Hours for Homelessness projects ",{"$f":"'SVT Calculator'!K26","v":0},{"$f":"'Social Value Proxies'!K21","v":0},null,{"$f":"D15*'Social Value Proxies'!U20","v":0}]
["Carbon Literacy training provided",{"$f":"'SVT Calculator'!K27","v":0},{"$f":"'Social Value Proxies'!K22","v":0},null,{"$f":"D16*'Social Value Proxies'!U21","v":0}]
["Service Provider total",null,{"$f":"'Social Value Proxies'!K23","v":0},null,{"$f":"SUM(E6:E16)","v":0}]
["Social Return on Investment",null,{"$f":"'Social Value Proxies'!K24","v":""},null,{"$f":"E17/A3","v":{"$error":"#DIV/0!"}}]
[]
[]
["For advice on how social value targets could be allocated to have the most impact, plus get help with place based delivery, get in touch with CommunityInvestment@greatplaces.org.uk ",null,"They can help by:\n•Engaging the relevant internal stakeholders\n•Provide community insight and data\n•Foster links between partners and external stakeholders\n•Share knowledge on existing projects and partnerships\n•Signpost Great Places customers to opportunities\n•Assist with delivery of targets"]
[]
[]
[]
[]
[]
[]
[]
[]
[]
[]
["This calculator uses data from National Toms Framework, 2019 version. "]
["**National TOMS"]
["Attribution\nTitle: National TOMs 2019\nAuthor: Social Value Portal Ltd\nSource: socialvalueportal.com\nLicense: Creative Commons Attribution-NonCommercial-NoDerivatives 4.0 International License "]
["https://creativecommons.org/licenses/by-nc-nd/4.0/"]

{"sheet":"C8 - C9 (2)","index":17,"n_rows":35,"n_cols":12,"rows_kept":35,"cut":false,"hidden":false,"merged":[[0,6,3,7],[0,5,1,5],[20,2,29,4],[20,0,22,1]]}
[]
[{"$f":"'SVT Calculator'!L13","v":0}]
[{"$f":"'SVT Calculator'!K15","v":0}]
[{"$f":"'SVT Calculator'!K11","v":0}]
[{"$f":"'SVT Calculator'!C3","v":0},"Pledge Target","Pledge Value","Target Adjustment","Adjustment value","How will this be achieved? Specific Activities or Projects","Actions \n(Who is doing what / next steps)","How will this be evidenced? ","Start Date","End Date","Outcomes Running Total ","Progress / Updates"]
["Work placement weeks",{"$f":"'SVT Calculator'!L17","v":0},{"$f":"'Social Value Proxies'!L12","v":0},null,{"$f":"D6*'Social Value Proxies'!U11","v":0}]
["Specialist advice hours for Careers IAG",{"$f":"'SVT Calculator'!L18","v":0},{"$f":"'Social Value Proxies'!L13","v":0},null,{"$f":"D7*'Social Value Proxies'!U12","v":0}]
["Specialist advice hours for VCSE or SME",{"$f":"'SVT Calculator'!L19","v":0},{"$f":"'Social Value Proxies'!L14","v":0},null,{"$f":"D8*'Social Value Proxies'!U13","v":0}]
["Hours for Digital Inclusion",{"$f":"'SVT Calculator'!L20","v":0},{"$f":"'Social Value Proxies'!L15","v":0},null,{"$f":"D9*'Social Value Proxies'!U14","v":0}]
["£s towards Digital equipment",{"$f":"'SVT Calculator'!L21","v":0},{"$f":"'Social Value Proxies'!L16","v":0},null,{"$f":"D10*'Social Value Proxies'!U15","v":0}]
["£s towards community projects",{"$f":"'SVT Calculator'!L22","v":0},{"$f":"'Social Value Proxies'!L17","v":0},null,{"$f":"D11*'Social Value Proxies'!U16","v":0}]
["Hours volunteered for community project",{"$f":"'SVT Calculator'!L23","v":0},{"$f":"'Social Value Proxies'!L18","v":0},null,{"$f":"D12*'Social Value Proxies'!U17","v":0}]
["£s for poverty initiatives",{"$f":"'SVT Calculator'!L24","v":0},{"$f":"'Social Value Proxies'!L19","v":0},null,{"$f":"D13*'Social Value Proxies'!U18","v":0}]
["Hours to promote healthy living",{"$f":"'SVT Calculator'!L25","v":0},{"$f":"'Social Value Proxies'!L20","v":0},null,{"$f":"D14*'Social Value Proxies'!U19","v":0}]
["Hours for Homelessness projects ",{"$f":"'SVT Calculator'!L26","v":0},{"$f":"'Social Value Proxies'!L21","v":0},null,{"$f":"D15*'Social Value Proxies'!U20","v":0}]
["Carbon Literacy training provided",{"$f":"'SVT Calculator'!L27","v":0},{"$f":"'Social Value Proxies'!L22","v":0},null,{"$f":"D16*'Social Value Proxies'!U21","v":0}]
["Service Provider total",null,{"$f":"'Social Value Proxies'!K23","v":0},null,{"$f":"SUM(E6:E16)","v":0}]
["Social Return on Investment",null,{"$f":"'Social Value Proxies'!K24","v":""},null,{"$f":"E17/A3","v":{"$error":"#DIV/0!"}}]
[]
[]
["For advice on how social value targets could be allocated to have the most impact, plus get help with place based delivery, get in touch with CommunityInvestment@greatplaces.org.uk ",null,"They can help by:\n•Engaging the relevant internal stakeholders\n•Provide community insight and data\n•Foster links between partners and external stakeholders\n•Share knowledge on existing projects and partnerships\n•Signpost Great Places customers to opportunities\n•Assist with delivery of targets"]
[]
[]
[]
[]
[]
[]
[]
[]
[]
[]
["This calculator uses data from National Toms Framework, 2019 version. "]
["**National TOMS"]
["Attribution\nTitle: National TOMs 2019\nAuthor: Social Value Portal Ltd\nSource: socialvalueportal.com\nLicense: Creative Commons Attribution-NonCommercial-NoDerivatives 4.0 International License "]
["https://creativecommons.org/licenses/by-nc-nd/4.0/"]

{"sheet":"C11","index":18,"n_rows":35,"n_cols":12,"rows_kept":35,"cut":false,"hidden":false,"merged":[[0,5,1,5],[0,6,3,7],[20,0,22,1],[20,2,29,4]]}
[]
[{"$f":"'SVT Calculator'!H13","v":0}]
[{"$f":"'SVT Calculator'!H15","v":0}]
[{"$f":"'SVT Calculator'!H11","v":0}]
[{"$f":"'SVT Calculator'!C3","v":0},"Pledge Target","Pledge Value","Target Adjustment","Adjustment value","How will this be achieved? Specific Activities or Projects","Actions \n(Who is doing what / next steps)","How will this be evidenced? ","Start Date","End Date","Outcomes Running Total ","Progress / Updates"]
["Work placement weeks",{"$f":"'SVT Calculator'!M17","v":0},{"$f":"'Social Value Proxies'!M12","v":0},null,{"$f":"D6*'Social Value Proxies'!U11","v":0}]
["Specialist advice hours for Careers IAG",{"$f":"'SVT Calculator'!M18","v":0},{"$f":"'Social Value Proxies'!M13","v":0},null,{"$f":"D7*'Social Value Proxies'!U12","v":0}]
["Specialist advice hours for VCSE or SME",{"$f":"'SVT Calculator'!M19","v":0},{"$f":"'Social Value Proxies'!M14","v":0},null,{"$f":"D8*'Social Value Proxies'!U13","v":0}]
["Hours for Digital Inclusion",{"$f":"'SVT Calculator'!M20","v":0},{"$f":"'Social Value Proxies'!M15","v":0},null,{"$f":"D9*'Social Value Proxies'!U14","v":0}]
["£s towards Digital equipment",{"$f":"'SVT Calculator'!M21","v":0},{"$f":"'Social Value Proxies'!M16","v":0},null,{"$f":"D10*'Social Value Proxies'!U15","v":0}]
["£s towards community projects",{"$f":"'SVT Calculator'!M22","v":0},{"$f":"'Social Value Proxies'!M17","v":0},null,{"$f":"D11*'Social Value Proxies'!U16","v":0}]
["Hours volunteered for community project",{"$f":"'SVT Calculator'!M23","v":0},{"$f":"'Social Value Proxies'!M18","v":0},null,{"$f":"D12*'Social Value Proxies'!U17","v":0}]
["£s for poverty initiatives",{"$f":"'SVT Calculator'!M24","v":0},{"$f":"'Social Value Proxies'!M19","v":0},null,{"$f":"D13*'Social Value Proxies'!U18","v":0}]
["Hours to promote healthy living",{"$f":"'SVT Calculator'!M25","v":0},{"$f":"'Social Value Proxies'!M20","v":0},null,{"$f":"D14*'Social Value Proxies'!U19","v":0}]
["Hours for Homelessness projects ",{"$f":"'SVT Calculator'!M26","v":0},{"$f":"'Social Value Proxies'!M21","v":0},null,{"$f":"D15*'Social Value Proxies'!U20","v":0}]
["Carbon Literacy training provided",{"$f":"'SVT Calculator'!M27","v":0},{"$f":"'Social Value Proxies'!M22","v":0},null,{"$f":"D16*'Social Value Proxies'!U21","v":0}]
["Service Provider total",null,{"$f":"'Social Value Proxies'!H23","v":0},null,{"$f":"SUM(E6:E16)","v":0}]
["Social Return on Investment",{"$f":"'SVT Calculator'!H29","v":""},{"$f":"'Social Value Proxies'!H24","v":""},null,{"$f":"E17/A3","v":{"$error":"#DIV/0!"}}]
[]
[]
["For advice on how social value targets could be allocated to have the most impact, plus get help with place based delivery, get in touch with CommunityInvestment@greatplaces.org.uk ",null,"They can help by:\n•Engaging the relevant internal stakeholders\n•Provide community insight and data\n•Foster links between partners and external stakeholders\n•Share knowledge on existing projects and partnerships\n•Signpost Great Places customers to opportunities\n•Assist with delivery of targets"]
[]
[]
[]
[]
[]
[]
[]
[]
[]
[]
["This calculator uses data from National Toms Framework, 2019 version. "]
["**National TOMS"]
["Attribution\nTitle: National TOMs 2019\nAuthor: Social Value Portal Ltd\nSource: socialvalueportal.com\nLicense: Creative Commons Attribution-NonCommercial-NoDerivatives 4.0 International License "]
["https://creativecommons.org/licenses/by-nc-nd/4.0/"]

{"sheet":"C5 Day Rates","index":19,"n_rows":35,"n_cols":12,"rows_kept":35,"cut":false,"hidden":false,"merged":[[0,6,3,7],[0,5,1,5],[20,2,29,4],[20,0,22,1]]}
[]
[{"$f":"'SVT Calculator'!O13","v":0}]
[{"$f":"'SVT Calculator'!O15","v":0}]
[{"$f":"'SVT Calculator'!O11","v":0}]
[{"$f":"'SVT Calculator'!C3","v":0},"Pledge Target","Pledge Value","Target Adjustment","Adjustment value","How will this be achieved? Specific Activities or Projects","Actions \n(Who is doing what / next steps)","How will this be evidenced? ","Start Date","End Date","Outcomes Running Total ","Progress / Updates"]
["Work placement weeks",{"$f":"'SVT Calculator'!O17","v":0},{"$f":"'Social Value Proxies'!O12","v":0},null,{"$f":"D6*'Social Value Proxies'!U11","v":0}]
["Specialist advice hours for Careers IAG",{"$f":"'SVT Calculator'!O18","v":0},{"$f":"'Social Value Proxies'!O13","v":0},null,{"$f":"D7*'Social Value Proxies'!U12","v":0}]
["Specialist advice hours for VCSE or SME",{"$f":"'SVT Calculator'!O19","v":0},{"$f":"'Social Value Proxies'!O14","v":0},null,{"$f":"D8*'Social Value Proxies'!U13","v":0}]
["Hours for Digital Inclusion",{"$f":"'SVT Calculator'!O20","v":0},{"$f":"'Social Value Proxies'!O15","v":0},null,{"$f":"D9*'Social Value Proxies'!U14","v":0}]
["£s towards Digital equipment",{"$f":"'SVT Calculator'!O21","v":0},{"$f":"'Social Value Proxies'!O16","v":0},null,{"$f":"D10*'Social Value Proxies'!U15","v":0}]
["£s towards community projects",{"$f":"'SVT Calculator'!O22","v":0},{"$f":"'Social Value Proxies'!O17","v":0},null,{"$f":"D11*'Social Value Proxies'!U16","v":0}]
["Hours volunteered for community project",{"$f":"'SVT Calculator'!O23","v":0},{"$f":"'Social Value Proxies'!O18","v":0},null,{"$f":"D12*'Social Value Proxies'!U17","v":0}]
["£s for poverty initiatives",{"$f":"'SVT Calculator'!O24","v":0},{"$f":"'Social Value Proxies'!O19","v":0},null,{"$f":"D13*'Social Value Proxies'!U18","v":0}]
["Hours to promote healthy living",{"$f":"'SVT Calculator'!O25","v":0},{"$f":"'Social Value Proxies'!O20","v":0},null,{"$f":"D14*'Social Value Proxies'!U19","v":0}]
["Hours for Homelessness projects ",{"$f":"'SVT Calculator'!O26","v":0},{"$f":"'Social Value Proxies'!O21","v":0},null,{"$f":"D15*'Social Value Proxies'!U20","v":0}]
["Carbon Literacy training provided",{"$f":"'SVT Calculator'!O27","v":0},{"$f":"'Social Value Proxies'!O22","v":0},null,{"$f":"D16*'Social Value Proxies'!U21","v":0}]
["Service Provider total",null,{"$f":"SUM(C6:C16)","v":0},null,{"$f":"SUM(E6:E16)","v":0}]
["Social Return on Investment",null,{"$f":"C17/A3","v":{"$error":"#DIV/0!"}},null,{"$f":"E17/A3","v":{"$error":"#DIV/0!"}}]
[]
[]
["For advice on how social value targets could be allocated to have the most impact, plus get help with place based delivery, get in touch with CommunityInvestment@greatplaces.org.uk ",null,"They can help by:\n•Engaging the relevant internal stakeholders\n•Provide community insight and data\n•Foster links between partners and external stakeholders\n•Share knowledge on existing projects and partnerships\n•Signpost Great Places customers to opportunities\n•Assist with delivery of targets"]
[]
[]
[]
[]
[]
[]
[]
[]
[]
[]
["This calculator uses data from National Toms Framework, 2019 version. "]
["**National TOMS"]
["Attribution\nTitle: National TOMs 2019\nAuthor: Social Value Portal Ltd\nSource: socialvalueportal.com\nLicense: Creative Commons Attribution-NonCommercial-NoDerivatives 4.0 International License "]
["https://creativecommons.org/licenses/by-nc-nd/4.0/"]

{"sheet":"C10 Day Rates","index":20,"n_rows":35,"n_cols":12,"rows_kept":35,"cut":false,"hidden":false,"merged":[[0,6,3,7],[0,5,1,5],[20,2,29,4],[20,0,22,1]]}
[]
[{"$f":"'SVT Calculator'!P13","v":0}]
[{"$f":"'SVT Calculator'!P15","v":0}]
[{"$f":"'SVT Calculator'!P11","v":0}]
[{"$f":"'SVT Calculator'!C3","v":0},"Pledge Target","Pledge Value","Target Adjustment","Adjustment value","How will this be achieved? Specific Activities or Projects","Actions \n(Who is doing what / next steps)","How will this be evidenced? ","Start Date","End Date","Outcomes Running Total ","Progress / Updates"]
["Work placement weeks",{"$f":"'SVT Calculator'!P17","v":0},{"$f":"'Social Value Proxies'!P12","v":0},null,{"$f":"D6*'Social Value Proxies'!U11","v":0}]
["Specialist advice hours for Careers IAG",{"$f":"'SVT Calculator'!P18","v":0},{"$f":"'Social Value Proxies'!P13","v":0},null,{"$f":"D7*'Social Value Proxies'!U12","v":0}]
["Specialist advice hours for VCSE or SME",{"$f":"'SVT Calculator'!P19","v":0},{"$f":"'Social Value Proxies'!P14","v":0},null,{"$f":"D8*'Social Value Proxies'!U13","v":0}]
["Hours for Digital Inclusion",{"$f":"'SVT Calculator'!P20","v":0},{"$f":"'Social Value Proxies'!P15","v":0},null,{"$f":"D9*'Social Value Proxies'!U14","v":0}]
["£s towards Digital equipment",{"$f":"'SVT Calculator'!P21","v":0},{"$f":"'Social Value Proxies'!P16","v":0},null,{"$f":"D10*'Social Value Proxies'!U15","v":0}]
["£s towards community projects",{"$f":"'SVT Calculator'!P22","v":0},{"$f":"'Social Value Proxies'!P17","v":0},null,{"$f":"D11*'Social Value Proxies'!U16","v":0}]
["Hours volunteered for community project",{"$f":"'SVT Calculator'!P23","v":0},{"$f":"'Social Value Proxies'!P18","v":0},null,{"$f":"D12*'Social Value Proxies'!U17","v":0}]
["£s for poverty initiatives",{"$f":"'SVT Calculator'!P24","v":0},{"$f":"'Social Value Proxies'!P19","v":0},null,{"$f":"D13*'Social Value Proxies'!U18","v":0}]
["Hours to promote healthy living",{"$f":"'SVT Calculator'!P25","v":0},{"$f":"'Social Value Proxies'!P20","v":0},null,{"$f":"D14*'Social Value Proxies'!U19","v":0}]
["Hours for Homelessness projects ",{"$f":"'SVT Calculator'!P26","v":0},{"$f":"'Social Value Proxies'!P21","v":0},null,{"$f":"D15*'Social Value Proxies'!U20","v":0}]
["Carbon Literacy training provided",{"$f":"'SVT Calculator'!P27","v":0},{"$f":"'Social Value Proxies'!P22","v":0},null,{"$f":"D16*'Social Value Proxies'!U21","v":0}]
["Service Provider total",null,{"$f":"SUM(C6:C16)","v":0},null,{"$f":"SUM(E6:E16)","v":0}]
["Social Return on Investment",null,{"$f":"C17/A3","v":{"$error":"#DIV/0!"}},null,{"$f":"E17/A3","v":{"$error":"#DIV/0!"}}]
[]
[]
["For advice on how social value targets could be allocated to have the most impact, plus get help with place based delivery, get in touch with CommunityInvestment@greatplaces.org.uk ",null,"They can help by:\n•Engaging the relevant internal stakeholders\n•Provide community insight and data\n•Foster links between partners and external stakeholders\n•Share knowledge on existing projects and partnerships\n•Signpost Great Places customers to opportunities\n•Assist with delivery of targets"]
[]
[]
[]
[]
[]
[]
[]
[]
[]
[]
["This calculator uses data from National Toms Framework, 2019 version. "]
["**National TOMS"]
["Attribution\nTitle: National TOMs 2019\nAuthor: Social Value Portal Ltd\nSource: socialvalueportal.com\nLicense: Creative Commons Attribution-NonCommercial-NoDerivatives 4.0 International License "]
["https://creativecommons.org/licenses/by-nc-nd/4.0/"]

{"sheet":"Pricing Schedules","index":21,"n_rows":0,"n_cols":0,"rows_kept":0,"cut":false,"hidden":true,"merged":[]}

{"sheet":"Social Value Summary","index":22,"n_rows":0,"n_cols":0,"rows_kept":0,"cut":false,"hidden":true,"merged":[]}